Workbook

Sheet Main
B10: 2024-01-30
B12: Sheet No. | C12: Template Name | D12: Summary
B13: 1 | C13: Future Intra | D13: For Intraday trading in F&O segment
B14: 2 | C14: Cash Intra | D14: For Intraday trading in cash market segment
B15: 3 | C15: Mid-cap Intra | D15: For Intraday trading in Mid-cap stocks
B16: 4 | C16: Bulk Deals | D16: Reveals Bulk Deals carried on NSE & BSE
B17: 5 | C17: Call Tracker
K27: `

Sheet Future Intra
M5: Back to Main Page
A6: FOR INTRA DAY TRADING | L6: =Main!B10 -> 2024-01-30
A9: Sr.no | B9: Sector | C9: Scrip | D9: Expiry Date | E9: CLOSE RATE | F9: Pivot Point | G9: Supports | J9: Resistances
E10: Point | F10: Point | G10: S1 | H10: S2 | I10: S3 | J10: R1 | K10: R2 | L10: R3 | M10: HIGH | N10: LOW | O10: OI | P10: % Change in OI
A11: 1 | B11: Index | C11: NIFTY | D11: 2024-02-29 | E11: 21855.25 | F11: 21771.75 | G11: 21658.50 | H11: 21461.75 | I11: 21348.50 | J11: 21968.50 | K11: 22081.75 | L11: 22278.50 | M11: 21885 | N11: 21575 | O11: 13279800 | P11: 3.16%
A12: 2 | B12: Index | C12: BANKNIFTY | D12: 2024-02-29 | E12: 45735.05 | F12: 45742.67 | G12: 45446.33 | H12: 45157.62 | I12: 44861.28 | J12: 46031.38 | K12: 46327.72 | L12: 46616.43 | M12: 46039 | N12: 45453.95 | O12: 3482220 | P12: -5.53%
A13: 3 | B13: Index | C13: FINNIFTY | D13: 2024-01-30 | E13: 20450.75 | F13: 20405.25 | G13: 20310.50 | H13: 20170.25 | I13: 20075.50 | J13: 20545.50 | K13: 20640.25 | L13: 20780.50 | M13: 20500 | N13: 20265 | O13: 97240 | P13: -18.04%
A14: 4 | B14: Index | C14: MIDCPNIFTY | D14: 2024-02-26 | E14: 10669.25 | F14: 10595.32 | G14: 10505.68 | H14: 10342.12 | I14: 10252.48 | J14: 10758.88 | K14: 10848.52 | L14: 11012.08 | M14: 10684.95 | N14: 10431.75 | O14: 664500 | P14: -25.02%
A15: 5 | B15: Chemical | C15: AARTIIND | D15: 2024-02-29 | E15: 645.40 | F15: 644.10 | G15: 639.15 | H15: 632.90 | I15: 627.95 | J15: 650.35 | K15: 655.30 | L15: 661.55 | M15: 649.05 | N15: 637.85 | O15: 11848000 | P15: 1.95%
A16: 6 | B16: Capital_Goods | C16: ABB | D16: 2024-02-29 | E16: 4817.25 | F16: 4796.23 | G16: 4758.37 | H16: 4699.48 | I16: 4661.62 | J16: 4855.12 | K16: 4892.98 | L16: 4951.87 | M16: 4834.1 | N16: 4737.35 | O16: 1005375 | P16: 6.64%
A17: 7 | B17: Pharma | C17: ABBOTINDIA | D17: 2024-02-29 | E17: 25654.65 | F17: 25558.25 | G17: 25371.50 | H17: 25088.35 | I17: 24901.60 | J17: 25841.40 | K17: 26028.15 | L17: 26311.30 | M17: 25745 | N17: 25275.1 | O17: 171480 | P17: 2.66%
A18: 8 | B18: Others | C18: ABCAPITAL | D18: 2024-02-29 | E18: 169.60 | F18: 168.90 | G18: 167.30 | H18: 165.00 | I18: 163.40 | J18: 171.20 | K18: 172.80 | L18: 175.10 | M18: 170.5 | N18: 166.6 | O18: 58492800 | P18: -0.42%
A19: 9 | B19: Textile | C19: ABFRL | D19: 2024-02-29 | E19: 244.60 | F19: 246.07 | G19: 241.08 | H19: 237.57 | I19: 232.58 | J19: 249.58 | K19: 254.57 | L19: 258.08 | M19: 251.05 | N19: 242.55 | O19: 35050600 | P19: 6.39%
A20: 10 | B20: Cement | C20: ACC | D20: 2024-02-29 | E20: 2511.40 | F20: 2517.67 | G20: 2456.33 | H20: 2401.27 | I20: 2339.93 | J20: 2572.73 | K20: 2634.07 | L20: 2689.13 | M20: 2579 | N20: 2462.6 | O20: 4102500 | P20: -4.14%
A21: 11 | B21: Others | C21: ADANIENT | D21: 2024-02-29 | E21: 3092.90 | F21: 3052.62 | G21: 2983.38 | H21: 2873.87 | I21: 2804.63 | J21: 3162.13 | K21: 3231.37 | L21: 3340.88 | M21: 3121.85 | N21: 2943.1 | O21: 13532700 | P21: -2.26%
A22: 12 | B22: Others | C22: ADANIPORTS | D22: 2024-02-29 | E22: 1202.95 | F22: 1190.15 | G22: 1167.85 | H22: 1132.75 | I22: 1110.45 | J22: 1225.25 | K22: 1247.55 | L22: 1282.65 | M22: 1212.45 | N22: 1155.05 | O22: 43834400 | P22: -2.99%
A23: 13 | B23: Pharma | C23: ALKEM | D23: 2024-02-29 | E23: 4990.15 | F23: 4983.38 | G23: 4963.72 | H23: 4937.28 | I23: 4917.62 | J23: 5009.82 | K23: 5029.48 | L23: 5055.92 | M23: 5003.05 | N23: 4956.95 | O23: 788000 | P23: 2.87%
A24: 14 | B24: Cement | C24: AMBUJACEM | D24: 2024-02-29 | E24: 576.70 | F24: 574.65 | G24: 567.50 | H24: 558.30 | I24: 551.15 | J24: 583.85 | K24: 591.00 | L24: 600.20 | M24: 581.8 | N24: 565.45 | O24: 51067800 | P24: 0.48%
A25: 15 | B25: Others | C25: APOLLOHOSP | D25: 2024-02-29 | E25: 6354.15 | F25: 6306.90 | G25: 6251.60 | H25: 6149.05 | I25: 6093.75 | J25: 6409.45 | K25: 6464.75 | L25: 6567.30 | M25: 6362.2 | N25: 6204.35 | O25: 1816875 | P25: -2.95%
A26: 16 | B26: Automobile | C26: APOLLOTYRE | D26: 2024-02-29 | E26: 529.95 | F26: 526.93 | G26: 520.77 | H26: 511.58 | I26: 505.42 | J26: 536.12 | K26: 542.28 | L26: 551.47 | M26: 533.1 | N26: 517.75 | O26: 11753800 | P26: 4.25%
A27: 17 | B27: Automobile | C27: ASHOKLEY | D27: 2024-02-29 | E27: 175.00 | F27: 173.67 | G27: 171.53 | H27: 168.07 | I27: 165.93 | J27: 177.13 | K27: 179.27 | L27: 182.73 | M27: 175.8 | N27: 170.2 | O27: 92540000 | P27: -0.64%
A28: 18 | B28: FMCG | C28: ASIANPAINT | D28: 2024-02-29 | E28: 2998.80 | F28: 2989.47 | G28: 2969.33 | H28: 2939.87 | I28: 2919.73 | J28: 3018.93 | K28: 3039.07 | L28: 3068.53 | M28: 3009.6 | N28: 2960 | O28: 7175200 | P28: 5.33%
A29: 19 | B29: Others | C29: ASTRAL | D29: 2024-02-29 | E29: 1878.85 | F29: 1862.32 | G29: 1840.63 | H29: 1802.42 | I29: 1780.73 | J29: 1900.53 | K29: 1922.22 | L29: 1960.43 | M29: 1884 | N29: 1824.1 | O29: 2852324 | P29: -4.74%
A30: 20 | B30: Others | C30: ATUL | D30: 2024-02-29 | E30: 6327.40 | F30: 6351.57 | G30: 6266.03 | H30: 6204.67 | I30: 6119.13 | J30: 6412.93 | K30: 6498.47 | L30: 6559.83 | M30: 6437.1 | N30: 6290.2 | O30: 331650 | P30: 3.22%
A31: 21 | B31: Banking | C31: AUBANK | D31: 2024-02-29 | E31: 629.70 | F31: 644.18 | G31: 613.37 | H31: 597.03 | I31: 566.22 | J31: 660.52 | K31: 691.33 | L31: 707.67 | M31: 675 | N31: 627.85 | O31: 22598000 | P31: 16.20%
A32: 22 | B32: Pharma | C32: AUROPHARMA | D32: 2024-02-29 | E32: 1164.65 | F32: 1159.98 | G32: 1148.97 | H32: 1133.28 | I32: 1122.27 | J32: 1175.67 | K32: 1186.68 | L32: 1202.37 | M32: 1171 | N32: 1144.3 | O32: 21359800 | P32: -1.26%
A33: 23 | B33: Banking | C33: AXISBANK | D33: 2024-02-29 | E33: 1066.55 | F33: 1062.55 | G33: 1049.25 | H33: 1031.95 | I33: 1018.65 | J33: 1079.85 | K33: 1093.15 | L33: 1110.45 | M33: 1075.85 | N33: 1045.25 | O33: 55625000 | P33: -0.33%
A34: 24 | B34: Automobile | C34: BAJAJ-AUTO | D34: 2024-02-29 | E34: 7601.05 | F34: 7593.12 | G34: 7518.23 | H34: 7435.42 | I34: 7360.53 | J34: 7675.93 | K34: 7750.82 | L34: 7833.63 | M34: 7668 | N34: 7510.3 | O34: 2157875 | P34: -0.21%
A35: 25 | B35: Finance | C35: BAJAJFINSV | D35: 2024-02-29 | E35: 1648.80 | F35: 1644.48 | G35: 1635.77 | H35: 1622.73 | I35: 1614.02 | J35: 1657.52 | K35: 1666.23 | L35: 1679.27 | M35: 1653.2 | N35: 1631.45 | O35: 8810500 | P35: -1.01%
A36: 26 | B36: Finance | C36: BAJFINANCE | D36: 2024-02-29 | E36: 7246.30 | F36: 7222.83 | G36: 7163.57 | H36: 7080.83 | I36: 7021.57 | J36: 7305.57 | K36: 7364.83 | L36: 7447.57 | M36: 7282.1 | N36: 7140.1 | O36: 7054875 | P36: 1.73%
A37: 27 | B37: Automobile | C37: BALKRISIND | D37: 2024-02-29 | E37: 2514.85 | F37: 2521.92 | G37: 2495.83 | H37: 2476.82 | I37: 2450.73 | J37: 2540.93 | K37: 2567.02 | L37: 2586.03 | M37: 2548 | N37: 2502.9 | O37: 1810500 | P37: -1.79%
A38: 28 | B38: Others | C38: BALRAMCHIN | D38: 2024-02-29 | E38: 394.90 | F38: 393.90 | G38: 388.20 | H38: 381.50 | I38: 375.80 | J38: 400.60 | K38: 406.30 | L38: 413.00 | M38: 399.6 | N38: 387.2 | O38: 10027200 | P38: 8.76%
A39: 29 | B39: Banking | C39: BANDHANBNK | D39: 2024-02-29 | E39: 224.85 | F39: 225.52 | G39: 222.83 | H39: 220.82 | I39: 218.13 | J39: 227.53 | K39: 230.22 | L39: 232.23 | M39: 228.2 | N39: 223.5 | O39: 109442500 | P39: -2.17%
A40: 30 | B40: Banking | C40: BANKBARODA | D40: 2024-02-29 | E40: 235.55 | F40: 234.17 | G40: 230.63 | H40: 225.72 | I40: 222.18 | J40: 239.08 | K40: 242.62 | L40: 247.53 | M40: 237.7 | N40: 229.25 | O40: 137001150 | P40: -2.56%
A41: 31 | B41: FMCG | C41: BATAINDIA | D41: 2024-02-29 | E41: 1470.00 | F41: 1460.72 | G41: 1440.43 | H41: 1410.87 | I41: 1390.58 | J41: 1490.28 | K41: 1510.57 | L41: 1540.13 | M41: 1481 | N41: 1431.15 | O41: 1985625 | P41: 8.11%
A42: 32 | B42: Capital_Goods | C42: BEL | D42: 2024-02-29 | E42: 191.90 | F42: 191.35 | G42: 188.45 | H42: 185.00 | I42: 182.10 | J42: 194.80 | K42: 197.70 | L42: 201.15 | M42: 194.25 | N42: 187.9 | O42: 82382100 | P42: 2.54%
A43: 33 | B43: FMCG | C43: BERGEPAINT | D43: 2024-02-29 | E43: 558.10 | F43: 556.00 | G43: 553.00 | H43: 547.90 | I43: 544.90 | J43: 561.10 | K43: 564.10 | L43: 569.20 | M43: 559 | N43: 550.9 | O43: 9337680 | P43: 2.24%
A44: 34 | B44: Automobile | C44: BHARATFORG | D44: 2024-02-29 | E44: 1253.35 | F44: 1239.67 | G44: 1219.08 | H44: 1184.82 | I44: 1164.23 | J44: 1273.93 | K44: 1294.52 | L44: 1328.78 | M44: 1260.25 | N44: 1205.4 | O44: 5853000 | P44: 8.56%
A45: 35 | B45: Telecom | C45: BHARTIARTL | D45: 2024-02-29 | E45: 1170.65 | F45: 1171.05 | G45: 1165.10 | H45: 1159.55 | I45: 1153.60 | J45: 1176.60 | K45: 1182.55 | L45: 1188.10 | M45: 1177 | N45: 1165.5 | O45: 30613750 | P45: 3.70%
A46: 36 | B46: Capital_Goods | C46: BHEL | D46: 2024-02-29 | E46: 222.50 | F46: 222.20 | G46: 220.60 | H46: 218.70 | I46: 217.10 | J46: 224.10 | K46: 225.70 | L46: 227.60 | M46: 223.8 | N46: 220.3 | O46: 86850750 | P46: 2.34%
A47: 37 | B47: Pharma | C47: BIOCON | D47: 2024-02-29 | E47: 262.00 | F47: 260.85 | G47: 258.85 | H47: 255.70 | I47: 253.70 | J47: 264.00 | K47: 266.00 | L47: 269.15 | M47: 262.85 | N47: 257.7 | O47: 39905000 | P47: 4.97%
A48: 38 | B48: Automobile | C48: BOSCHLTD | D48: 2024-02-29 | E48: 23244.25 | F48: 23082.37 | G48: 22876.08 | H48: 22507.92 | I48: 22301.63 | J48: 23450.53 | K48: 23656.82 | L48: 24024.98 | M48: 23288.65 | N48: 22714.2 | O48: 126450 | P48: 3.65%
A49: 39 | B49: Oil_Gas | C49: BPCL | D49: 2024-02-29 | E49: 496.35 | F49: 491.18 | G49: 477.17 | H49: 457.98 | I49: 443.97 | J49: 510.37 | K49: 524.38 | L49: 543.57 | M49: 505.2 | N49: 472 | O49: 37463400 | P49: 1.33%
A50: 40 | B50: FMCG | C50: BRITANNIA | D50: 2024-02-29 | E50: 5161.30 | F50: 5173.50 | G50: 5116.35 | H50: 5071.40 | I50: 5014.25 | J50: 5218.45 | K50: 5275.60 | L50: 5320.55 | M50: 5230.65 | N50: 5128.55 | O50: 2342600 | P50: 0.57%
A51: 41 | B51: Technology | C51: BSOFT | D51: 2024-02-29 | E51: 836.60 | F51: 834.52 | G51: 827.88 | H51: 819.17 | I51: 812.53 | J51: 843.23 | K51: 849.87 | L51: 858.58 | M51: 841.15 | N51: 825.8 | O51: 5992000 | P51: -4.87%
A52: 42 | B52: Banking | C52: CANBK | D52: 2024-02-29 | E52: 478.20 | F52: 477.82 | G52: 471.43 | H52: 464.67 | I52: 458.28 | J52: 484.58 | K52: 490.97 | L52: 497.73 | M52: 484.2 | N52: 471.05 | O52: 56486700 | P52: -0.42%
A53: 43 | B53: Finance | C53: CANFINHOME | D53: 2024-02-29 | E53: 769.85 | F53: 773.37 | G53: 763.73 | H53: 757.62 | I53: 747.98 | J53: 779.48 | K53: 789.12 | L53: 795.23 | M53: 783 | N53: 767.25 | O53: 4329975 | P53: -2.70%
A54: 44 | B54: Others | C54: CHAMBLFERT | D54: 2024-02-29 | E54: 373.75 | F54: 373.05 | G54: 369.50 | H54: 365.25 | I54: 361.70 | J54: 377.30 | K54: 380.85 | L54: 385.10 | M54: 376.6 | N54: 368.8 | O54: 7172500 | P54: 3.57%
A55: 45 | B55: Finance | C55: CHOLAFIN | D55: 2024-02-29 | E55: 1230.95 | F55: 1241.00 | G55: 1206.95 | H55: 1182.95 | I55: 1148.90 | J55: 1265.00 | K55: 1299.05 | L55: 1323.05 | M55: 1275.05 | N55: 1217 | O55: 9810625 | P55: 2.41%
A56: 46 | B56: Pharma | C56: CIPLA | D56: 2024-02-29 | E56: 1347.55 | F56: 1348.58 | G56: 1333.47 | H56: 1319.38 | I56: 1304.27 | J56: 1362.67 | K56: 1377.78 | L56: 1391.87 | M56: 1363.7 | N56: 1334.5 | O56: 9989200 | P56: 4.37%
A57: 47 | B57: Others | C57: COALINDIA | D57: 2024-02-29 | E57: 412.85 | F57: 406.03 | G57: 397.42 | H57: 381.98 | I57: 373.37 | J57: 421.47 | K57: 430.08 | L57: 445.52 | M57: 414.65 | N57: 390.6 | O57: 72122400 | P57: 10.00%
A58: 48 | B58: Technology | C58: COFORGE | D58: 2024-02-29 | E58: 6285.50 | F58: 6283.25 | G58: 6216.50 | H58: 6147.50 | I58: 6080.75 | J58: 6352.25 | K58: 6419.00 | L58: 6488.00 | M58: 6350 | N58: 6214.25 | O58: 1291950 | P58: 6.22%
A59: 49 | B59: FMCG | C59: COLPAL | D59: 2024-02-29 | E59: 2537.70 | F59: 2529.27 | G59: 2511.53 | H59: 2485.37 | I59: 2467.63 | J59: 2555.43 | K59: 2573.17 | L59: 2599.33 | M59: 2547 | N59: 2503.1 | O59: 3792950 | P59: -2.00%
A60: 50 | B60: Others | C60: CONCOR | D60: 2024-02-29 | E60: 863.30 | F60: 850.32 | G60: 829.93 | H60: 796.57 | I60: 776.18 | J60: 883.68 | K60: 904.07 | L60: 937.43 | M60: 870.7 | N60: 816.95 | O60: 12001000 | P60: 8.17%
A61: 51 | B61: Others | C61: COROMANDEL | D61: 2024-02-29 | E61: 1147.15 | F61: 1139.87 | G61: 1128.18 | H61: 1109.22 | I61: 1097.53 | J61: 1158.83 | K61: 1170.52 | L61: 1189.48 | M61: 1151.55 | N61: 1120.9 | O61: 767200 | P61: 7.24%
A62: 52 | B62: Capital_Goods | C62: CROMPTON | D62: 2024-02-29 | E62: 303.15 | F62: 304.53 | G62: 300.57 | H62: 297.98 | I62: 294.02 | J62: 307.12 | K62: 311.08 | L62: 313.67 | M62: 308.5 | N62: 301.95 | O62: 16531200 | P62: 0.92%
A63: 53 | B63: Banking | C63: CUB | D63: 2024-02-29 | E63: 144.25 | F63: 143.93 | G63: 143.12 | H63: 141.98 | I63: 141.17 | J63: 145.07 | K63: 145.88 | L63: 147.02 | M63: 144.75 | N63: 142.8 | O63: 31440000 | P63: -2.01%
A64: 54 | B64: Capital_Goods | C64: CUMMINSIND | D64: 2024-02-29 | E64: 2262.85 | F64: 2244.30 | G64: 2190.15 | H64: 2117.45 | I64: 2063.30 | J64: 2317.00 | K64: 2371.15 | L64: 2443.85 | M64: 2298.45 | N64: 2171.6 | O64: 3213300 | P64: 0.45%
A65: 55 | B65: FMCG | C65: DABUR | D65: 2024-02-29 | E65: 538.05 | F65: 535.32 | G65: 530.88 | H65: 523.72 | I65: 519.28 | J65: 542.48 | K65: 546.92 | L65: 554.08 | M65: 539.75 | N65: 528.15 | O65: 23031250 | P65: 1.76%
A66: 56 | B66: Cement | C66: DALBHARAT | D66: 2024-02-29 | E66: 2273.90 | F66: 2260.73 | G66: 2231.47 | H66: 2189.03 | I66: 2159.77 | J66: 2303.17 | K66: 2332.43 | L66: 2374.87 | M66: 2290 | N66: 2218.3 | O66: 3209000 | P66: -0.39%
A67: 57 | B67: Chemical | C67: DEEPAKNTR | D67: 2024-02-29 | E67: 2258.25 | F67: 2256.92 | G67: 2245.08 | H67: 2231.92 | I67: 2220.08 | J67: 2270.08 | K67: 2281.92 | L67: 2295.08 | M67: 2268.75 | N67: 2243.75 | O67: 2133600 | P67: 1.83%
A68: 58 | B68: Others | C68: DELTACORP | D68: 2024-02-29 | E68: 139.50 | F68: 139.70 | G68: 137.60 | H68: 135.70 | I68: 133.60 | J68: 141.60 | K68: 143.70 | L68: 145.60 | M68: 141.8 | N68: 137.8 | O68: 16599000 | P68: 3.04%
A69: 59 | B69: Pharma | C69: DIVISLAB | D69: 2024-02-29 | E69: 3598.75 | F69: 3595.92 | G69: 3577.83 | H69: 3556.92 | I69: 3538.83 | J69: 3616.83 | K69: 3634.92 | L69: 3655.83 | M69: 3614 | N69: 3575 | O69: 3875400 | P69: 1.09%
A70: 60 | B70: Others | C70: DIXON | D70: 2024-02-29 | E70: 5909.95 | F70: 5912.30 | G70: 5869.70 | H70: 5829.45 | I70: 5786.85 | J70: 5952.55 | K70: 5995.15 | L70: 6035.40 | M70: 5954.9 | N70: 5872.05 | O70: 1125700 | P70: 6.82%
A71: 61 | B71: Realty | C71: DLF | D71: 2024-02-29 | E71: 771.40 | F71: 768.77 | G71: 761.68 | H71: 751.97 | I71: 744.88 | J71: 778.48 | K71: 785.57 | L71: 795.28 | M71: 775.85 | N71: 759.05 | O71: 51890850 | P71: -0.35%
A72: 62 | B72: Pharma | C72: DRREDDY | D72: 2024-02-29 | E72: 5887.20 | F72: 5863.08 | G72: 5807.22 | H72: 5727.23 | I72: 5671.37 | J72: 5943.07 | K72: 5998.93 | L72: 6078.92 | M72: 5918.95 | N72: 5783.1 | O72: 1911375 | P72: 1.99%
A73: 63 | B73: Automobile | C73: EICHERMOT | D73: 2024-02-29 | E73: 3694.50 | F73: 3669.37 | G73: 3635.18 | H73: 3575.87 | I73: 3541.68 | J73: 3728.68 | K73: 3762.87 | L73: 3822.18 | M73: 3703.55 | N73: 3610.05 | O73: 4185300 | P73: 3.76%
A74: 64 | B74: Automobile | C74: ESCORTS | D74: 2024-02-29 | E74: 3045.35 | F74: 3025.43 | G74: 2985.87 | H74: 2926.38 | I74: 2886.82 | J74: 3084.92 | K74: 3124.48 | L74: 3183.97 | M74: 3065 | N74: 2965.95 | O74: 3014275 | P74: 2.20%
A75: 65 | B75: Automobile | C75: EXIDEIND | D75: 2024-02-29 | E75: 317.90 | F75: 316.40 | G75: 313.50 | H75: 309.10 | I75: 306.20 | J75: 320.80 | K75: 323.70 | L75: 328.10 | M75: 319.3 | N75: 312 | O75: 18154800 | P75: 2.54%
A76: 66 | B76: Banking | C76: FEDERALBNK | D76: 2024-02-29 | E76: 146.20 | F76: 145.58 | G76: 143.87 | H76: 141.53 | I76: 139.82 | J76: 147.92 | K76: 149.63 | L76: 151.97 | M76: 147.3 | N76: 143.25 | O76: 108460000 | P76: -6.91%
A77: 67 | B77: Oil_Gas | C77: GAIL | D77: 2024-02-29 | E77: 173.10 | F77: 171.80 | G77: 167.50 | H77: 161.90 | I77: 157.60 | J77: 177.40 | K77: 181.70 | L77: 187.30 | M77: 176.1 | N77: 166.2 | O77: 162595500 | P77: 13.00%
A78: 68 | B78: Pharma | C78: GLENMARK | D78: 2024-02-29 | E78: 907.15 | F78: 903.63 | G78: 895.47 | H78: 883.78 | I78: 875.62 | J78: 915.32 | K78: 923.48 | L78: 935.17 | M78: 911.8 | N78: 891.95 | O78: 11415850 | P78: -1.20%
A79: 69 | B79: Infrastructure | C79: GMRINFRA | D79: 2024-02-29 | E79: 78.65 | F79: 78.85 | G79: 77.05 | H79: 75.45 | I79: 73.65 | J79: 80.45 | K79: 82.25 | L79: 83.85 | M79: 80.65 | N79: 77.25 | O79: 221073750 | P79: 0.79%
A80: 70 | B80: Others | C80: GNFC | D80: 2024-02-29 | E80: 756.55 | F80: 751.38 | G80: 742.77 | H80: 728.98 | I80: 720.37 | J80: 765.17 | K80: 773.78 | L80: 787.57 | M80: 760 | N80: 737.6 | O80: 7285200 | P80: -1.93%
A81: 71 | B81: FMCG | C81: GODREJCP | D81: 2024-02-29 | E81: 1176.85 | F81: 1179.87 | G81: 1162.33 | H81: 1147.82 | I81: 1130.28 | J81: 1194.38 | K81: 1211.92 | L81: 1226.43 | M81: 1197.4 | N81: 1165.35 | O81: 7038500 | P81: 8.71%
A82: 72 | B82: Realty | C82: GODREJPROP | D82: 2024-02-29 | E82: 2412.40 | F82: 2390.53 | G82: 2362.77 | H82: 2313.13 | I82: 2285.37 | J82: 2440.17 | K82: 2467.93 | L82: 2517.57 | M82: 2418.3 | N82: 2340.9 | O82: 4095450 | P82: 13.05%
A83: 73 | B83: Pharma | C83: GRANULES | D83: 2024-02-29 | E83: 413.50 | F83: 414.28 | G83: 409.92 | H83: 406.33 | I83: 401.97 | J83: 417.87 | K83: 422.23 | L83: 425.82 | M83: 418.65 | N83: 410.7 | O83: 11868000 | P83: 0.82%
A84: 74 | B84: Cement | C84: GRASIM | D84: 2024-02-29 | E84: 2115.05 | F84: 2118.38 | G84: 2093.57 | H84: 2072.08 | I84: 2047.27 | J84: 2139.87 | K84: 2164.68 | L84: 2186.17 | M84: 2143.2 | N84: 2096.9 | O84: 9084942 | P84: -0.24%
A85: 75 | B85: Oil_Gas | C85: GUJGASLTD | D85: 2024-02-29 | E85: 557.70 | F85: 559.63 | G85: 554.02 | H85: 550.33 | I85: 544.72 | J85: 563.32 | K85: 568.93 | L85: 572.62 | M85: 565.25 | N85: 555.95 | O85: 5460000 | P85: 2.06%
A86: 76 | B86: Others | C86: HAL | D86: 2024-02-29 | E86: 2993.45 | F86: 2972.73 | G86: 2945.67 | H86: 2897.88 | I86: 2870.82 | J86: 3020.52 | K86: 3047.58 | L86: 3095.37 | M86: 2999.8 | N86: 2924.95 | O86: 7648200 | P86: 1.29%
A87: 77 | B87: Capital_Goods | C87: HAVELLS | D87: 2024-02-29 | E87: 1321.50 | F87: 1314.77 | G87: 1303.58 | H87: 1285.67 | I87: 1274.48 | J87: 1332.68 | K87: 1343.87 | L87: 1361.78 | M87: 1325.95 | N87: 1296.85 | O87: 4927500 | P87: -1.51%
A88: 78 | B88: Technology | C88: HCLTECH | D88: 2024-02-29 | E88: 1580.05 | F88: 1576.30 | G88: 1557.60 | H88: 1535.15 | I88: 1516.45 | J88: 1598.75 | K88: 1617.45 | L88: 1639.90 | M88: 1595 | N88: 1553.85 | O88: 12390700 | P88: 1.20%
A89: 79 | B89: Finance | C89: HDFCAMC | D89: 2024-02-29 | E89: 3506.55 | F89: 3485.78 | G89: 3441.57 | H89: 3376.58 | I89: 3332.37 | J89: 3550.77 | K89: 3594.98 | L89: 3659.97 | M89: 3530 | N89: 3420.8 | O89: 2418300 | P89: 1.23%
A90: 80 | B90: Banking | C90: HDFCBANK | D90: 2024-02-29 | E90: 1466.20 | F90: 1465.67 | G90: 1457.78 | H90: 1449.37 | I90: 1441.48 | J90: 1474.08 | K90: 1481.97 | L90: 1490.38 | M90: 1473.55 | N90: 1457.25 | O90: 185712450 | P90: -1.43%
A91: 81 | B91: Finance | C91: HDFCLIFE | D91: 2024-02-29 | E91: 583.15 | F91: 584.18 | G91: 579.97 | H91: 576.78 | I91: 572.57 | J91: 587.37 | K91: 591.58 | L91: 594.77 | M91: 588.4 | N91: 581 | O91: 26881800 | P91: 3.61%
A92: 82 | B92: Automobile | C92: HEROMOTOCO | D92: 2024-02-29 | E92: 4541.70 | F92: 4494.78 | G92: 4436.87 | H92: 4332.03 | I92: 4274.12 | J92: 4599.62 | K92: 4657.53 | L92: 4762.37 | M92: 4552.7 | N92: 4389.95 | O92: 2707800 | P92: 3.36%
A93: 83 | B93: Metals | C93: HINDALCO | D93: 2024-02-29 | E93: 572.35 | F93: 571.43 | G93: 567.37 | H93: 562.38 | I93: 558.32 | J93: 576.42 | K93: 580.48 | L93: 585.47 | M93: 575.5 | N93: 566.45 | O93: 29611400 | P93: 2.61%
A94: 84 | B94: Metals | C94: HINDCOPPER | D94: 2024-02-29 | E94: 286.05 | F94: 284.23 | G94: 277.47 | H94: 268.88 | I94: 262.12 | J94: 292.82 | K94: 299.58 | L94: 308.17 | M94: 291 | N94: 275.65 | O94: 37672400 | P94: 7.44%
A95: 85 | B95: Oil_Gas | C95: HINDPETRO | D95: 2024-02-29 | E95: 454.75 | F95: 449.22 | G95: 437.38 | H95: 420.02 | I95: 408.18 | J95: 466.58 | K95: 478.42 | L95: 495.78 | M95: 461.05 | N95: 431.85 | O95: 28998000 | P95: -3.96%
A96: 86 | B96: FMCG | C96: HINDUNILVR | D96: 2024-02-29 | E96: 2457.95 | F96: 2452.03 | G96: 2438.07 | H96: 2418.18 | I96: 2404.22 | J96: 2471.92 | K96: 2485.88 | L96: 2505.77 | M96: 2466 | N96: 2432.15 | O96: 10938300 | P96: 0.27%
A97: 87 | B97: Banking | C97: ICICIBANK | D97: 2024-02-29 | E97: 1021.05 | F97: 1024.17 | G97: 1011.48 | H97: 1001.92 | I97: 989.23 | J97: 1033.73 | K97: 1046.42 | L97: 1055.98 | M97: 1036.85 | N97: 1014.6 | O97: 97771100 | P97: -2.99%
A98: 88 | B98: Finance | C98: ICICIGI | D98: 2024-02-29 | E98: 1498.85 | F98: 1491.85 | G98: 1481.00 | H98: 1463.15 | I98: 1452.30 | J98: 1509.70 | K98: 1520.55 | L98: 1538.40 | M98: 1502.7 | N98: 1474 | O98: 3241500 | P98: -0.96%
A99: 89 | B99: Finance | C99: ICICIPRULI | D99: 2024-02-29 | E99: 494.95 | F99: 491.40 | G99: 485.50 | H99: 476.05 | I99: 470.15 | J99: 500.85 | K99: 506.75 | L99: 516.20 | M99: 497.3 | N99: 481.95 | O99: 13396500 | P99: -1.47%
A100: 90 | B100: Telecom | C100: IDEA | D100: 2024-02-29 | E100: 14.80 | F100: 14.93 | G100: 14.57 | H100: 14.33 | I100: 13.97 | J100: 15.17 | K100: 15.53 | L100: 15.77 | M100: 15.3 | N100: 14.7 | O100: 1802960000 | P100: 1.64%
A101: 91 | B101: Finance | C101: IDFC | D101: 2024-02-29 | E101: 118.95 | F101: 118.55 | G101: 117.55 | H101: 116.15 | I101: 115.15 | J101: 119.95 | K101: 120.95 | L101: 122.35 | M101: 119.55 | N101: 117.15 | O101: 67825000 | P101: 1.35%
A102: 92 | B102: Banking | C102: IDFCFIRSTB | D102: 2024-02-29 | E102: 83.15 | F102: 82.43 | G102: 81.57 | H102: 79.98 | I102: 79.12 | J102: 84.02 | K102: 84.88 | L102: 86.47 | M102: 83.3 | N102: 80.85 | O102: 309585000 | P102: -3.26%
A103: 93 | B103: Others | C103: IEX | D103: 2024-02-29 | E103: 140.65 | F103: 139.85 | G103: 137.80 | H103: 134.95 | I103: 132.90 | J103: 142.70 | K103: 144.75 | L103: 147.60 | M103: 141.9 | N103: 137 | O103: 62426250 | P103: 2.70%
A104: 94 | B104: Oil_Gas | C104: IGL | D104: 2024-02-29 | E104: 420.60 | F104: 415.92 | G104: 407.93 | H104: 395.27 | I104: 387.28 | J104: 428.58 | K104: 436.57 | L104: 449.23 | M104: 423.9 | N104: 403.25 | O104: 16095750 | P104: 8.63%
A105: 95 | B105: Infrastructure | C105: INDHOTEL | D105: 2024-02-29 | E105: 499.00 | F105: 493.13 | G105: 484.32 | H105: 469.63 | I105: 460.82 | J105: 507.82 | K105: 516.63 | L105: 531.32 | M105: 501.95 | N105: 478.45 | O105: 14892000 | P105: -4.23%
A106: 96 | B106: Cement | C106: INDIACEM | D106: 2024-02-29 | E106: 260.55 | F106: 258.08 | G106: 254.52 | H106: 248.48 | I106: 244.92 | J106: 264.12 | K106: 267.68 | L106: 273.72 | M106: 261.65 | N106: 252.05 | O106: 22298100 | P106: 3.77%
A107: 97 | B107: Others | C107: INDIAMART | D107: 2024-02-29 | E107: 2549.45 | F107: 2519.13 | G107: 2478.87 | H107: 2408.28 | I107: 2368.02 | J107: 2589.72 | K107: 2629.98 | L107: 2700.57 | M107: 2559.4 | N107: 2448.55 | O107: 993000 | P107: -4.39%
A108: 98 | B108: Others | C108: INDIGO | D108: 2024-02-29 | E108: 2917.55 | F108: 2909.92 | G108: 2880.53 | H108: 2843.52 | I108: 2814.13 | J108: 2946.93 | K108: 2976.32 | L108: 3013.33 | M108: 2939.3 | N108: 2872.9 | O108: 5346900 | P108: 11.37%
A109: 99 | B109: Banking | C109: INDUSINDBK | D109: 2024-02-29 | E109: 1535.25 | F109: 1534.60 | G109: 1523.80 | H109: 1512.35 | I109: 1501.55 | J109: 1546.05 | K109: 1556.85 | L109: 1568.30 | M109: 1545.4 | N109: 1523.15 | O109: 25933000 | P109: -1.18%
A110: 100 | B110: Telecom | C110: INDUSTOWER | D110: 2024-02-29 | E110: 233.45 | F110: 232.15 | G110: 228.90 | H110: 224.35 | I110: 221.10 | J110: 236.70 | K110: 239.95 | L110: 244.50 | M110: 235.4 | N110: 227.6 | O110: 91439600 | P110: -1.24%
A111: 101 | B111: Technology | C111: INFY | D111: 2024-02-29 | E111: 1665.20 | F111: 1670.90 | G111: 1652.80 | H111: 1640.40 | I111: 1622.30 | J111: 1683.30 | K111: 1701.40 | L111: 1713.80 | M111: 1689 | N111: 1658.5 | O111: 22718800 | P111: 1.90%
A112: 102 | B112: Oil_Gas | C112: IOC | D112: 2024-02-29 | E112: 147.85 | F112: 146.87 | G112: 144.43 | H112: 141.02 | I112: 138.58 | J112: 150.28 | K112: 152.72 | L112: 156.13 | M112: 149.3 | N112: 143.45 | O112: 114367500 | P112: -4.32%
A113: 103 | B113: Pharma | C113: IPCALAB | D113: 2024-02-29 | E113: 1127.25 | F113: 1122.03 | G113: 1113.17 | H113: 1099.08 | I113: 1090.22 | J113: 1136.12 | K113: 1144.98 | L113: 1159.07 | M113: 1130.9 | N113: 1107.95 | O113: 2076750 | P113: 1.85%
A114: 104 | B114: Others | C114: IRCTC | D114: 2024-02-29 | E114: 989.80 | F114: 988.12 | G114: 978.73 | H114: 967.67 | I114: 958.28 | J114: 999.18 | K114: 1008.57 | L114: 1019.63 | M114: 997.5 | N114: 977.05 | O114: 15596000 | P114: 3.20%
A115: 105 | B115: FMCG | C115: ITC | D115: 2024-02-29 | E115: 444.90 | F115: 447.30 | G115: 440.55 | H115: 436.20 | I115: 429.45 | J115: 451.65 | K115: 458.40 | L115: 462.75 | M115: 454.05 | N115: 442.95 | O115: 91163200 | P115: 7.82%
A116: 106 | B116: Metals | C116: JINDALSTEL | D116: 2024-02-29 | E116: 736.45 | F116: 732.32 | G116: 724.83 | H116: 713.22 | I116: 705.73 | J116: 743.93 | K116: 751.42 | L116: 763.03 | M116: 739.8 | N116: 720.7 | O116: 25922500 | P116: 2.38%
A117: 107 | B117: Cement | C117: JKCEMENT | D117: 2024-02-29 | E117: 4343.55 | F117: 4306.02 | G117: 4256.03 | H117: 4168.52 | I117: 4118.53 | J117: 4393.53 | K117: 4443.52 | L117: 4531.03 | M117: 4356 | N117: 4218.5 | O117: 1021500 | P117: -0.75%
A118: 108 | B118: Metals | C118: JSWSTEEL | D118: 2024-02-29 | E118: 815.55 | F118: 816.92 | G118: 806.78 | H118: 798.02 | I118: 787.88 | J118: 825.68 | K118: 835.82 | L118: 844.58 | M118: 827.05 | N118: 808.15 | O118: 15643800 | P118: 1.03%
A119: 109 | B119: Others | C119: JUBLFOOD | D119: 2024-02-29 | E119: 509.95 | F119: 510.33 | G119: 501.62 | H119: 493.28 | I119: 484.57 | J119: 518.67 | K119: 527.38 | L119: 535.72 | M119: 519.05 | N119: 502 | O119: 17912500 | P119: 4.37%
A120: 110 | B120: Banking | C120: KOTAKBANK | D120: 2024-02-29 | E120: 1833.10 | F120: 1818.83 | G120: 1795.32 | H120: 1757.53 | I120: 1734.02 | J120: 1856.62 | K120: 1880.13 | L120: 1917.92 | M120: 1842.35 | N120: 1781.05 | O120: 29744000 | P120: -5.93%
A121: 111 | B121: Finance | C121: L&TFH | D121: 2024-02-29 | E121: 168.50 | F121: 168.67 | G121: 167.53 | H121: 166.57 | I121: 165.43 | J121: 169.63 | K121: 170.77 | L121: 171.73 | M121: 169.8 | N121: 167.7 | O121: 40590814 | P121: -1.70%
A122: 112 | B122: Others | C122: LALPATHLAB | D122: 2024-02-29 | E122: 2434.30 | F122: 2421.13 | G122: 2377.12 | H122: 2319.93 | I122: 2275.92 | J122: 2478.32 | K122: 2522.33 | L122: 2579.52 | M122: 2465.15 | N122: 2363.95 | O122: 1099800 | P122: 2.23%
A123: 113 | B123: Pharma | C123: LAURUSLABS | D123: 2024-02-29 | E123: 376.00 | F123: 378.18 | G123: 370.47 | H123: 364.93 | I123: 357.22 | J123: 383.72 | K123: 391.43 | L123: 396.97 | M123: 385.9 | N123: 372.65 | O123: 14667600 | P123: 3.23%
A124: 114 | B124: Finance | C124: LICHSGFIN | D124: 2024-02-29 | E124: 604.65 | F124: 600.02 | G124: 587.08 | H124: 569.52 | I124: 556.58 | J124: 617.58 | K124: 630.52 | L124: 648.08 | M124: 612.95 | N124: 582.45 | O124: 14980000 | P124: 6.48%
A125: 115 | B125: Capital_Goods | C125: LT | D125: 2024-02-29 | E125: 3735.95 | F125: 3705.35 | G125: 3646.75 | H125: 3557.55 | I125: 3498.95 | J125: 3794.55 | K125: 3853.15 | L125: 3942.35 | M125: 3763.95 | N125: 3616.15 | O125: 10607100 | P125: 2.19%
A126: 116 | B126: Technology | C126: LTIM | D126: 2024-02-29 | E126: 5492.30 | F126: 5495.93 | G126: 5441.47 | H126: 5390.63 | I126: 5336.17 | J126: 5546.77 | K126: 5601.23 | L126: 5652.07 | M126: 5550.4 | N126: 5445.1 | O126: 1991250 | P126: 6.87%
A127: 117 | B127: Technology | C127: LTTS | D127: 2024-02-29 | E127: 5480.30 | F127: 5460.15 | G127: 5425.10 | H127: 5369.90 | I127: 5334.85 | J127: 5515.35 | K127: 5550.40 | L127: 5605.60 | M127: 5495.2 | N127: 5404.95 | O127: 577600 | P127: 1.76%
A128: 118 | B128: Pharma | C128: LUPIN | D128: 2024-02-29 | E128: 1490.80 | F128: 1483.70 | G128: 1469.40 | H128: 1448.00 | I128: 1433.70 | J128: 1505.10 | K128: 1519.40 | L128: 1540.80 | M128: 1498 | N128: 1462.3 | O128: 7486800 | P128: -2.43%
A129: 119 | B129: Automobile | C129: M&M | D129: 2024-02-29 | E129: 1652.25 | F129: 1648.42 | G129: 1640.73 | H129: 1629.22 | I129: 1621.53 | J129: 1659.93 | K129: 1667.62 | L129: 1679.13 | M129: 1656.1 | N129: 1636.9 | O129: 12888050 | P129: 1.65%
A130: 120 | B130: Finance | C130: M&MFIN | D130: 2024-02-29 | E130: 279.70 | F130: 277.17 | G130: 272.83 | H130: 265.97 | I130: 261.63 | J130: 284.03 | K130: 288.37 | L130: 295.23 | M130: 281.5 | N130: 270.3 | O130: 28194000 | P130: 1.89%
A131: 121 | B131: Finance | C131: MANAPPURAM | D131: 2024-02-29 | E131: 180.65 | F131: 180.60 | G131: 177.55 | H131: 174.45 | I131: 171.40 | J131: 183.70 | K131: 186.75 | L131: 189.85 | M131: 183.65 | N131: 177.5 | O131: 54978000 | P131: 1.56%
A132: 122 | B132: FMCG | C132: MARICO | D132: 2024-02-29 | E132: 518.85 | F132: 520.77 | G132: 514.23 | H132: 509.62 | I132: 503.08 | J132: 525.38 | K132: 531.92 | L132: 536.53 | M132: 527.3 | N132: 516.15 | O132: 11035200 | P132: 4.79%
A133: 123 | B133: Automobile | C133: MARUTI | D133: 2024-02-29 | E133: 10067.00 | F133: 10015.35 | G133: 9912.80 | H133: 9758.60 | I133: 9656.05 | J133: 10169.55 | K133: 10272.10 | L133: 10426.30 | M133: 10117.9 | N133: 9861.15 | O133: 3129650 | P133: 5.72%
A134: 124 | B134: FMCG | C134: MCDOWELL-N | D134: 2024-02-29 | E134: 1102.45 | F134: 1109.00 | G134: 1091.45 | H134: 1080.45 | I134: 1062.90 | J134: 1120.00 | K134: 1137.55 | L134: 1148.55 | M134: 1126.55 | N134: 1098 | O134: 7933800 | P134: -0.74%
A135: 125 | B135: Others | C135: MCX | D135: 2024-02-29 | E135: 3430.95 | F135: 3380.97 | G135: 3299.98 | H135: 3169.02 | I135: 3088.03 | J135: 3511.93 | K135: 3592.92 | L135: 3723.88 | M135: 3461.95 | N135: 3250 | O135: 2548800 | P135: 0.39%
A136: 126 | B136: Pharma | C136: METROPOLIS | D136: 2024-02-29 | E136: 1549.10 | F136: 1552.30 | G136: 1528.80 | H136: 1508.50 | I136: 1485.00 | J136: 1572.60 | K136: 1596.10 | L136: 1616.40 | M136: 1575.8 | N136: 1532 | O136: 1000800 | P136: 17.91%
A137: 127 | B137: Finance | C137: MFSL | D137: 2024-02-29 | E137: 908.95 | F137: 899.35 | G137: 885.60 | H137: 862.25 | I137: 848.50 | J137: 922.70 | K137: 936.45 | L137: 959.80 | M137: 913.1 | N137: 876 | O137: 6186400 | P137: 1.28%
A138: 128 | B138: Oil_Gas | C138: MGL | D138: 2024-02-29 | E138: 1408.35 | F138: 1401.92 | G138: 1385.98 | H138: 1363.62 | I138: 1347.68 | J138: 1424.28 | K138: 1440.22 | L138: 1462.58 | M138: 1417.85 | N138: 1379.55 | O138: 2759200 | P138: -3.47%
A139: 129 | B139: Automobile | C139: MOTHERSON | D139: 2024-02-29 | E139: 117.35 | F139: 117.15 | G139: 115.50 | H139: 113.65 | I139: 112.00 | J139: 119.00 | K139: 120.65 | L139: 122.50 | M139: 118.8 | N139: 115.3 | O139: 93925900 | P139: 6.80%
A140: 130 | B140: Technology | C140: MPHASIS | D140: 2024-02-29 | E140: 2587.95 | F140: 2572.53 | G140: 2543.27 | H140: 2498.58 | I140: 2469.32 | J140: 2617.22 | K140: 2646.48 | L140: 2691.17 | M140: 2601.8 | N140: 2527.85 | O140: 2537425 | P140: -0.72%
A141: 131 | B141: Automobile | C141: MRF | D141: 2024-02-29 | E141: 144903.20 | F141: 142230.62 | G141: 139316.23 | H141: 133729.27 | I141: 130814.88 | J141: 147817.58 | K141: 150731.97 | L141: 156318.93 | M141: 145145 | N141: 136643.65 | O141: 32030 | P141: -4.12%
A142: 132 | B142: Finance | C142: MUTHOOTFIN | D142: 2024-02-29 | E142: 1399.75 | F142: 1398.50 | G142: 1388.80 | H142: 1377.85 | I142: 1368.15 | J142: 1409.45 | K142: 1419.15 | L142: 1430.10 | M142: 1408.2 | N142: 1387.55 | O142: 5616050 | P142: -0.28%
A143: 133 | B143: Metals | C143: NATIONALUM | D143: 2024-02-29 | E143: 146.25 | F143: 145.73 | G143: 142.47 | H143: 138.68 | I143: 135.42 | J143: 149.52 | K143: 152.78 | L143: 156.57 | M143: 149 | N143: 141.95 | O143: 92152500 | P143: 10.57%
A144: 134 | B144: Others | C144: NAUKRI | D144: 2024-02-29 | E144: 5010.10 | F144: 5020.83 | G144: 4955.87 | H144: 4901.63 | I144: 4836.67 | J144: 5075.07 | K144: 5140.03 | L144: 5194.27 | M144: 5085.8 | N144: 4966.6 | O144: 1120950 | P144: 3.91%
A145: 135 | B145: Chemical | C145: NAVINFLUOR | D145: 2024-02-29 | E145: 3350.80 | F145: 3348.33 | G145: 3312.47 | H145: 3274.13 | I145: 3238.27 | J145: 3386.67 | K145: 3422.53 | L145: 3460.87 | M145: 3384.2 | N145: 3310 | O145: 1359000 | P145: 0.83%
A146: 136 | B146: FMCG | C146: NESTLEIND | D146: 2024-02-29 | E146: 2511.15 | F146: 2506.80 | G146: 2494.50 | H146: 2477.85 | I146: 2465.55 | J146: 2523.45 | K146: 2535.75 | L146: 2552.40 | M146: 2519.1 | N146: 2490.15 | O146: 6029200 | P146: -1.05%
A147: 137 | B147: Metals | C147: NMDC | D147: 2024-02-29 | E147: 222.65 | F147: 221.57 | G147: 219.23 | H147: 215.82 | I147: 213.48 | J147: 224.98 | K147: 227.32 | L147: 230.73 | M147: 223.9 | N147: 218.15 | O147: 85567500 | P147: 4.00%
A148: 138 | B148: Power | C148: NTPC | D148: 2024-02-29 | E148: 323.55 | F148: 321.22 | G148: 317.23 | H148: 310.92 | I148: 306.93 | J148: 327.53 | K148: 331.52 | L148: 337.83 | M148: 325.2 | N148: 314.9 | O148: 94485000 | P148: -1.45%
A149: 139 | B149: Realty | C149: OBEROIRLTY | D149: 2024-02-29 | E149: 1316.25 | F149: 1307.33 | G149: 1294.37 | H149: 1272.48 | I149: 1259.52 | J149: 1329.22 | K149: 1342.18 | L149: 1364.07 | M149: 1320.3 | N149: 1285.45 | O149: 6818700 | P149: 3.99%
A150: 140 | B150: Technology | C150: OFSS | D150: 2024-02-29 | E150: 6683.80 | F150: 6700.97 | G150: 6601.93 | H150: 6520.07 | I150: 6421.03 | J150: 6782.83 | K150: 6881.87 | L150: 6963.73 | M150: 6800 | N150: 6619.1 | O150: 711200 | P150: 4.31%
A151: 141 | B151: Oil_Gas | C151: ONGC | D151: 2024-02-29 | E151: 252.90 | F151: 248.63 | G151: 242.37 | H151: 231.83 | I151: 225.57 | J151: 259.17 | K151: 265.43 | L151: 275.97 | M151: 254.9 | N151: 238.1 | O151: 75556250 | P151: -0.74%
A152: 142 | B152: Textile | C152: PAGEIND | D152: 2024-02-29 | E152: 37626.65 | F152: 37276.28 | G152: 36853.57 | H152: 36080.48 | I152: 35657.77 | J152: 38049.37 | K152: 38472.08 | L152: 39245.17 | M152: 37699 | N152: 36503.2 | O152: 157230 | P152: -4.26%
A153: 143 | B153: Pharma | C153: PEL | D153: 2024-02-29 | E153: 887.85 | F153: 884.05 | G153: 863.80 | H153: 839.75 | I153: 819.50 | J153: 908.10 | K153: 928.35 | L153: 952.40 | M153: 904.3 | N153: 860 | O153: 11987250 | P153: -0.50%
A154: 144 | B154: Technology | C154: PERSISTENT | D154: 2024-02-29 | E154: 8614.15 | F154: 8523.47 | G154: 8417.98 | H154: 8221.82 | I154: 8116.33 | J154: 8719.63 | K154: 8825.12 | L154: 9021.28 | M154: 8628.95 | N154: 8327.3 | O154: 1576100 | P154: -0.48%
A155: 145 | B155: Oil_Gas | C155: PETRONET | D155: 2024-02-29 | E155: 264.05 | F155: 263.43 | G155: 259.27 | H155: 254.48 | I155: 250.32 | J155: 268.22 | K155: 272.38 | L155: 277.17 | M155: 267.6 | N155: 258.65 | O155: 33666000 | P155: -11.27%
A156: 146 | B156: Finance | C156: PFC | D156: 2024-02-29 | E156: 447.35 | F156: 439.90 | G156: 430.80 | H156: 414.25 | I156: 405.15 | J156: 456.45 | K156: 465.55 | L156: 482.10 | M156: 449 | N156: 423.35 | O156: 60798750 | P156: -1.02%
A157: 147 | B157: FMCG | C157: PIDILITIND | D157: 2024-02-29 | E157: 2584.15 | F157: 2592.62 | G157: 2565.33 | H157: 2546.52 | I157: 2519.23 | J157: 2611.43 | K157: 2638.72 | L157: 2657.53 | M157: 2619.9 | N157: 2573.8 | O157: 3354750 | P157: 2.05%
A158: 148 | B158: Chemical | C158: PIIND | D158: 2024-02-29 | E158: 3310.20 | F158: 3296.55 | G158: 3275.50 | H158: 3240.80 | I158: 3219.75 | J158: 3331.25 | K158: 3352.30 | L158: 3387.00 | M158: 3317.6 | N158: 3261.85 | O158: 1814250 | P158: -0.71%
A159: 149 | B159: Banking | C159: PNB | D159: 2024-02-29 | E159: 107.75 | F159: 107.85 | G159: 105.45 | H159: 103.15 | I159: 100.75 | J159: 110.15 | K159: 112.55 | L159: 114.85 | M159: 110.25 | N159: 105.55 | O159: 259096000 | P159: -1.27%
A160: 150 | B160: Others | C160: POLYCAB | D160: 2024-02-29 | E160: 4373.90 | F160: 4371.85 | G160: 4315.95 | H160: 4258.00 | I160: 4202.10 | J160: 4429.80 | K160: 4485.70 | L160: 4543.65 | M160: 4427.75 | N160: 4313.9 | O160: 2275100 | P160: 5.78%
A161: 151 | B161: Power | C161: POWERGRID | D161: 2024-02-29 | E161: 251.10 | F161: 249.53 | G161: 246.47 | H161: 241.83 | I161: 238.77 | J161: 254.17 | K161: 257.23 | L161: 261.87 | M161: 252.6 | N161: 244.9 | O161: 53974800 | P161: -6.01%
A162: 152 | B162: Media | C162: PVRINOX | D162: 2024-02-29 | E162: 1498.65 | F162: 1495.05 | G162: 1482.70 | H162: 1466.75 | I162: 1454.40 | J162: 1511.00 | K162: 1523.35 | L162: 1539.30 | M162: 1507.4 | N162: 1479.1 | O162: 6058195 | P162: -0.27%
A163: 153 | B163: Cement | C163: RAMCOCEM | D163: 2024-02-29 | E163: 989.90 | F163: 986.25 | G163: 978.15 | H163: 966.40 | I163: 958.30 | J163: 998.00 | K163: 1006.10 | L163: 1017.85 | M163: 994.35 | N163: 974.5 | O163: 3255500 | P163: -2.27%
A164: 154 | B164: Banking | C164: RBLBANK | D164: 2024-02-29 | E164: 256.80 | F164: 257.30 | G164: 253.70 | H164: 250.60 | I164: 247.00 | J164: 260.40 | K164: 264.00 | L164: 267.10 | M164: 260.9 | N164: 254.2 | O164: 53777500 | P164: 3.93%
A165: 155 | B165: Power | C165: RECLTD | D165: 2024-02-29 | E165: 503.60 | F165: 495.70 | G165: 482.90 | H165: 462.20 | I165: 449.40 | J165: 516.40 | K165: 529.20 | L165: 549.90 | M165: 508.5 | N165: 475 | O165: 38912000 | P165: 3.78%
A166: 156 | B166: Oil_Gas | C166: RELIANCE | D166: 2024-02-29 | E166: 2910.75 | F166: 2856.30 | G166: 2786.60 | H166: 2662.45 | I166: 2592.75 | J166: 2980.45 | K166: 3050.15 | L166: 3174.30 | M166: 2926 | N166: 2732.15 | O166: 34670500 | P166: 7.26%
A167: 157 | B167: Metals | C167: SAIL | D167: 2024-02-29 | E167: 121.50 | F167: 120.87 | G167: 118.98 | H167: 116.47 | I167: 114.58 | J167: 123.38 | K167: 125.27 | L167: 127.78 | M167: 122.75 | N167: 118.35 | O167: 165408000 | P167: 5.97%
A168: 158 | B168: Banking | C168: SBICARD | D168: 2024-02-29 | E168: 687.15 | F168: 695.62 | G168: 672.18 | H168: 657.22 | I168: 633.78 | J168: 710.58 | K168: 734.02 | L168: 748.98 | M168: 719.05 | N168: 680.65 | O168: 22953600 | P168: 22.82%
A169: 159 | B169: Finance | C169: SBILIFE | D169: 2024-02-29 | E169: 1424.70 | F169: 1418.95 | G169: 1403.45 | H169: 1382.20 | I169: 1366.70 | J169: 1440.20 | K169: 1455.70 | L169: 1476.95 | M169: 1434.45 | N169: 1397.7 | O169: 6870000 | P169: -8.97%
A170: 160 | B170: Banking | C170: SBIN | D170: 2024-02-29 | E170: 627.35 | F170: 626.72 | G170: 619.83 | H170: 612.32 | I170: 605.43 | J170: 634.23 | K170: 641.12 | L170: 648.63 | M170: 633.6 | N170: 619.2 | O170: 131472000 | P170: 0.92%
A171: 161 | B171: Cement | C171: SHREECEM | D171: 2024-02-29 | E171: 28594.95 | F171: 28635.17 | G171: 28188.08 | H171: 27781.22 | I171: 27334.13 | J171: 29042.03 | K171: 29489.12 | L171: 29895.98 | M171: 29082.25 | N171: 28228.3 | O171: 190450 | P171: 3.28%
A172: 162 | B172: Capital_Goods | C172: SIEMENS | D172: 2024-02-29 | E172: 4317.55 | F172: 4292.38 | G172: 4244.12 | H172: 4170.68 | I172: 4122.42 | J172: 4365.82 | K172: 4414.08 | L172: 4487.52 | M172: 4340.65 | N172: 4218.95 | O172: 1243500 | P172: -5.99%
A173: 163 | B173: Textile | C173: SRF | D173: 2024-02-29 | E173: 2246.95 | F173: 2252.32 | G173: 2226.23 | H173: 2205.52 | I173: 2179.43 | J173: 2273.03 | K173: 2299.12 | L173: 2319.83 | M173: 2278.4 | N173: 2231.6 | O173: 4407000 | P173: 8.35%
A174: 164 | B174: Finance | C174: SHRIRAMFIN | D174: 2024-02-29 | E174: 2411.70 | F174: 2387.83 | G174: 2335.87 | H174: 2260.03 | I174: 2208.07 | J174: 2463.67 | K174: 2515.63 | L174: 2591.47 | M174: 2439.8 | N174: 2312 | O174: 7182900 | P174: 1.48%
A175: 165 | B175: Pharma | C175: SUNPHARMA | D175: 2024-02-29 | E175: 1400.70 | F175: 1392.92 | G175: 1371.13 | H175: 1341.57 | I175: 1319.78 | J175: 1422.48 | K175: 1444.27 | L175: 1473.83 | M175: 1414.7 | N175: 1363.35 | O175: 13192900 | P175: 4.94%
A176: 166 | B176: Media | C176: SUNTV | D176: 2024-02-29 | E176: 660.95 | F176: 659.35 | G176: 653.90 | H176: 646.85 | I176: 641.40 | J176: 666.40 | K176: 671.85 | L176: 678.90 | M176: 664.8 | N176: 652.3 | O176: 7483500 | P176: 0.26%
A177: 167 | B177: Pharma | C177: SYNGENE | D177: 2024-02-29 | E177: 688.40 | F177: 682.28 | G177: 674.17 | H177: 659.93 | I177: 651.82 | J177: 696.52 | K177: 704.63 | L177: 718.87 | M177: 690.4 | N177: 668.05 | O177: 6457000 | P177: 0.14%
A178: 168 | B178: Chemical | C178: TATACHEM | D178: 2024-02-29 | E178: 1018.55 | F178: 1015.90 | G178: 1010.10 | H178: 1001.65 | I178: 995.85 | J178: 1024.35 | K178: 1030.15 | L178: 1038.60 | M178: 1021.7 | N178: 1007.45 | O178: 11300850 | P178: 2.77%
A179: 169 | B179: Telecom | C179: TATACOMM | D179: 2024-02-29 | E179: 1727.55 | F179: 1729.77 | G179: 1718.33 | H179: 1709.12 | I179: 1697.68 | J179: 1738.98 | K179: 1750.42 | L179: 1759.63 | M179: 1741.2 | N179: 1720.55 | O179: 6144000 | P179: 0.38%
A180: 170 | B180: FMCG | C180: TATACONSUM | D180: 2024-02-29 | E180: 1149.40 | F180: 1148.67 | G180: 1140.68 | H180: 1131.97 | I180: 1123.98 | J180: 1157.38 | K180: 1165.37 | L180: 1174.08 | M180: 1156.65 | N180: 1139.95 | O180: 8720100 | P180: -1.66%
A181: 171 | B181: Automobile | C181: TATAMOTORS | D181: 2024-02-29 | E181: 847.30 | F181: 837.32 | G181: 824.43 | H181: 801.57 | I181: 788.68 | J181: 860.18 | K181: 873.07 | L181: 895.93 | M181: 850.2 | N181: 814.45 | O181: 60576750 | P181: 4.12%
A182: 172 | B182: Power | C182: TATAPOWER | D182: 2024-02-29 | E182: 384.75 | F182: 381.08 | G182: 372.17 | H182: 359.58 | I182: 350.67 | J182: 393.67 | K182: 402.58 | L182: 415.17 | M182: 390 | N182: 368.5 | O182: 90119250 | P182: 2.00%
A183: 173 | B183: Metals | C183: TATASTEEL | D183: 2024-02-29 | E183: 136.05 | F183: 135.62 | G183: 134.78 | H183: 133.52 | I183: 132.68 | J183: 136.88 | K183: 137.72 | L183: 138.98 | M183: 136.45 | N183: 134.35 | O183: 216557000 | P183: -2.44%
A184: 174 | B184: Technology | C184: TCS | D184: 2024-02-29 | E184: 3828.40 | F184: 3829.05 | G184: 3810.95 | H184: 3793.50 | I184: 3775.40 | J184: 3846.50 | K184: 3864.60 | L184: 3882.05 | M184: 3847.15 | N184: 3811.6 | O184: 12392625 | P184: 2.87%
A185: 175 | B185: Technology | C185: TECHM | D185: 2024-02-29 | E185: 1323.90 | F185: 1328.68 | G185: 1316.22 | H185: 1308.53 | I185: 1296.07 | J185: 1336.37 | K185: 1348.83 | L185: 1356.52 | M185: 1341.15 | N185: 1321 | O185: 13576200 | P185: 0.19%
A186: 176 | B186: FMCG | C186: TITAN | D186: 2024-02-29 | E186: 3888.35 | F186: 3860.30 | G186: 3815.90 | H186: 3743.45 | I186: 3699.05 | J186: 3932.75 | K186: 3977.15 | L186: 4049.60 | M186: 3904.7 | N186: 3787.85 | O186: 4711175 | P186: 0.80%
A187: 177 | B187: Pharma | C187: TORNTPHARM | D187: 2024-02-29 | E187: 2436.40 | F187: 2443.67 | G187: 2415.08 | H187: 2393.77 | I187: 2365.18 | J187: 2464.98 | K187: 2493.57 | L187: 2514.88 | M187: 2472.25 | N187: 2422.35 | O187: 1426500 | P187: -0.56%
A188: 178 | B188: Others | C188: TRENT | D188: 2024-02-29 | E188: 3271.30 | F188: 3281.00 | G188: 3242.00 | H188: 3212.70 | I188: 3173.70 | J188: 3310.30 | K188: 3349.30 | L188: 3378.60 | M188: 3320 | N188: 3251.7 | O188: 3136400 | P188: 3.50%
A189: 179 | B189: Automobile | C189: TVSMOTOR | D189: 2024-02-29 | E189: 1980.20 | F189: 1971.77 | G189: 1952.58 | H189: 1924.97 | I189: 1905.78 | J189: 1999.38 | K189: 2018.57 | L189: 2046.18 | M189: 1990.95 | N189: 1944.15 | O189: 5173700 | P189: 3.04%
A190: 180 | B190: FMCG | C190: UBL | D190: 2024-02-29 | E190: 1815.15 | F190: 1825.95 | G190: 1799.25 | H190: 1783.35 | I190: 1756.65 | J190: 1841.85 | K190: 1868.55 | L190: 1884.45 | M190: 1852.65 | N190: 1810.05 | O190: 2304400 | P190: 1.62%
A191: 181 | B191: Cement | C191: ULTRACEMCO | D191: 2024-02-29 | E191: 10320.20 | F191: 10236.72 | G191: 10133.48 | H191: 9946.77 | I191: 9843.53 | J191: 10423.43 | K191: 10526.67 | L191: 10713.38 | M191: 10339.95 | N191: 10050 | O191: 1738700 | P191: -0.56%
A192: 182 | B192: Chemical | C192: UPL | D192: 2024-02-29 | E192: 543.70 | F192: 542.32 | G192: 538.53 | H192: 533.37 | I192: 529.58 | J192: 547.48 | K192: 551.27 | L192: 556.43 | M192: 546.1 | N192: 537.15 | O192: 36821200 | P192: 0.58%
A193: 183 | B193: Metals | C193: VEDL | D193: 2024-02-29 | E193: 269.20 | F193: 267.53 | G193: 263.62 | H193: 258.03 | I193: 254.12 | J193: 273.12 | K193: 277.03 | L193: 282.62 | M193: 271.45 | N193: 261.95 | O193: 94661100 | P193: -0.14%
A194: 184 | B194: Capital_Goods | C194: VOLTAS | D194: 2024-02-29 | E194: 1047.10 | F194: 1036.30 | G194: 1022.80 | H194: 998.50 | I194: 985.00 | J194: 1060.60 | K194: 1074.10 | L194: 1098.40 | M194: 1049.8 | N194: 1012 | O194: 9307800 | P194: 4.96%
A195: 185 | B195: Technology | C195: WIPRO | D195: 2024-02-29 | E195: 476.45 | F195: 476.73 | G195: 473.47 | H195: 470.48 | I195: 467.22 | J195: 479.72 | K195: 482.98 | L195: 485.97 | M195: 480 | N195: 473.75 | O195: 48514500 | P195: -2.73%
A196: 186 | B196: Media | C196: ZEEL | D196: 2024-02-29 | E196: 163.25 | F196: 165.13 | G196: 160.72 | H196: 158.18 | I196: 153.77 | J196: 167.67 | K196: 172.08 | L196: 174.62 | M196: 169.55 | N196: 162.6 | O196: 106710000 | P196: 8.35%
A197: 187 | B197: Pharma | C197: ZYDUSLIFE | D197: 2024-02-29 | E197: 754.40 | F197: 748.55 | G197: 741.35 | H197: 728.30 | I197: 721.10 | J197: 761.60 | K197: 768.80 | L197: 781.85 | M197: 755.75 | N197: 735.5 | O197: 5979600 | P197: 4.47%
A221: Pivot Point: This is trigger point for intra day buy/sell based on the price range of the previous day
A222: As per the tool,the trader should take BUY position just above Pivot and keep the stop loss of pivot point and the first target would be Resistance 1(R1)
A223: If R1 is crossed then R2 becomes the next target with stop loss of at R1
A224: Similarly if price goes below pivot point then the trader should sell and keep a stop loss of pivot point and the first target would be S1
A225: If S1 is crossed then S2 becomes the next target with stop loss of at S1
A227: Disclaimer:
A228: This document has been prepared by the Retail Research Desk of Asit C Mehta
A229: Investment Intermediates Ltd. and is meant for use of the recipient only
A230: and is not for circulation. This document is not to be reported or
... 6 more rows

Sheet Cash Intra
M5: Back to Main Page
A6: FOR INTRA DAY TRADING | K6: =Main!B10 -> 2024-01-30
A8: Sr.no | C8: CLOSE RATE | D8: Pivot Point | E8: Supports | H8: Resistances
E9: S1 | F9: S2 | G9: S3 | H9: R1 | I9: R2 | J9: R3 | K9: HIGH | L9: LOW | M9: Total Trade Quanity in Lakhs
A10: 1 | B10: Nifty 50 | C10: 21737.60 | D10: 21643.48 | E10: 21523.72 | F10: 21309.83 | G10: 21190.07 | H10: 21857.37 | I10: 21977.13 | J10: 22191.02 | K10: 21763.25 | L10: 21429.60
A11: 2 | B11: Nifty Bank | C11: 45442.35 | D11: 45404.53 | E11: 45148.72 | F11: 44855.08 | G11: 44599.27 | H11: 45698.17 | I11: 45953.98 | J11: 46247.62 | K11: 45660.35 | L11: 45110.90
A12: 3 | B12: Nifty CPSE | C12: 5420.00 | D12: 5367.30 | E12: 5291.65 | F12: 5163.30 | G12: 5087.65 | H12: 5495.65 | I12: 5571.30 | J12: 5699.65 | K12: 5442.95 | L12: 5238.95
A13: 4 | B13: Nifty Infra | C13: 7937.80 | D13: 7860.30 | E13: 7770.70 | F13: 7603.60 | G13: 7514.00 | H13: 8027.40 | I13: 8117.00 | J13: 8284.10 | K13: 7949.90 | L13: 7693.20
A14: 5 | B14: Nifty IT | C14: 36531.90 | D14: 36512.22 | E14: 36371.18 | F14: 36210.47 | G14: 36069.43 | H14: 36672.93 | I14: 36813.97 | J14: 36974.68 | K14: 36653.25 | L14: 36351.50
A15: 6 | B15: Nifty PSE | C15: 8657.80 | D15: 8575.02 | E15: 8467.63 | F15: 8277.47 | G15: 8170.08 | H15: 8765.18 | I15: 8872.57 | J15: 9062.73 | K15: 8682.40 | L15: 8384.85
A16: 7 | B16: Nifty Midcap 50 | C16: 13543.80 | D16: 13456.38 | E16: 13355.97 | F16: 13168.13 | G16: 13067.72 | H16: 13644.22 | I16: 13744.63 | J16: 13932.47 | K16: 13556.80 | L16: 13268.55
A17: 8 | B17: ABB | C17: 4791.55 | D17: 4771.37 | E17: 4735.58 | F17: 4679.62 | G17: 4643.83 | H17: 4827.33 | I17: 4863.12 | J17: 4919.08 | K17: 4807.15 | L17: 4715.4 | M17: 0.87854
A18: 9 | B18: ABBOTINDIA | C18: 25568.05 | D18: 25465.88 | E18: 25122.52 | F18: 24676.98 | G18: 24333.62 | H18: 25911.42 | I18: 26254.78 | J18: 26700.32 | K18: 25809.25 | L18: 25020.35 | M18: 0.32932
A19: 10 | B19: ABCAPITAL | C19: 168.3 | D19: 167.75 | E19: 166.35 | F19: 164.40 | G19: 163.00 | H19: 169.70 | I19: 171.10 | J19: 173.05 | K19: 169.15 | L19: 165.8 | M19: 29.97788
A20: 11 | B20: ABFRL | C20: 243.05 | D20: 244.38 | E20: 239.77 | F20: 236.48 | G20: 231.87 | H20: 247.67 | I20: 252.28 | J20: 255.57 | K20: 249 | L20: 241.1 | M20: 58.47555
A21: 12 | B21: ACC | C21: 2492.9 | D21: 2504.30 | E21: 2443.60 | F21: 2394.30 | G21: 2333.60 | H21: 2553.60 | I21: 2614.30 | J21: 2663.60 | K21: 2565 | L21: 2455 | M21: 16.63558
A22: 13 | B22: ADANIENT | C22: 3064.65 | D22: 3026.80 | E22: 2960.90 | F22: 2857.15 | G22: 2791.25 | H22: 3130.55 | I22: 3196.45 | J22: 3300.20 | K22: 3092.7 | L22: 2923.05 | M22: 44.02976
A23: 14 | B23: ADANIGREEN | C23: 1715.5 | D23: 1712.98 | E23: 1675.97 | F23: 1636.43 | G23: 1599.42 | H23: 1752.52 | I23: 1789.53 | J23: 1829.07 | K23: 1750 | L23: 1673.45 | M23: 34.35566
A24: 15 | B24: ADANIPORTS | C24: 1196.65 | D24: 1184.18 | E24: 1163.47 | F24: 1130.28 | G24: 1109.57 | H24: 1217.37 | I24: 1238.08 | J24: 1271.27 | K24: 1204.9 | L24: 1151 | M24: 67.68033
A25: 16 | B25: ADANIPOWER | C25: 570.45 | D25: 564.47 | E25: 558.48 | F25: 546.52 | G25: 540.53 | H25: 576.43 | I25: 582.42 | J25: 594.38 | K25: 570.45 | L25: 552.5 | M25: 57.30005
A26: 17 | B26: ALKEM | C26: 4975.35 | D26: 4979.57 | E26: 4936.23 | F26: 4897.12 | G26: 4853.78 | H26: 5018.68 | I26: 5062.02 | J26: 5101.13 | K26: 5022.9 | L26: 4940.45 | M26: 0.62787
A27: 18 | B27: AMBUJACEM | C27: 574.1 | D27: 571.93 | E27: 564.97 | F27: 555.83 | G27: 548.87 | H27: 581.07 | I27: 588.03 | J27: 597.17 | K27: 578.9 | L27: 562.8 | M27: 78.28638
A28: 19 | B28: APOLLOHOSP | C28: 6329.75 | D28: 6285.52 | E28: 6222.03 | F28: 6114.32 | G28: 6050.83 | H28: 6393.23 | I28: 6456.72 | J28: 6564.43 | K28: 6349 | L28: 6177.8 | M28: 5.54591
A29: 20 | B29: APOLLOTYRE | C29: 527.25 | D29: 523.78 | E29: 518.62 | F29: 509.98 | G29: 504.82 | H29: 532.42 | I29: 537.58 | J29: 546.22 | K29: 528.95 | L29: 515.15 | M29: 13.28581
A30: 21 | B30: ASHOKLEY | C30: 173.7 | D30: 172.50 | E30: 169.95 | F30: 166.20 | G30: 163.65 | H30: 176.25 | I30: 178.80 | J30: 182.55 | K30: 175.05 | L30: 168.75 | M30: 165.90997
A31: 22 | B31: ASIANPAINT | C31: 2976.05 | D31: 2968.18 | E31: 2947.92 | F31: 2919.78 | G31: 2899.52 | H31: 2996.32 | I31: 3016.58 | J31: 3044.72 | K31: 2988.45 | L31: 2940.05 | M31: 18.62723
A32: 23 | B32: ASTRAL | C32: 1868.75 | D32: 1851.25 | E32: 1827.50 | F32: 1786.25 | G32: 1762.50 | H32: 1892.50 | I32: 1916.25 | J32: 1957.50 | K32: 1875 | L32: 1810 | M32: 10.46879
A33: 24 | B33: ATGL | C33: 1035.7 | D33: 1031.25 | E33: 1009.50 | F33: 983.30 | G33: 961.55 | H33: 1057.45 | I33: 1079.20 | J33: 1105.40 | K33: 1053 | L33: 1005.05 | M33: 18.16753
A34: 25 | B34: AUBANK | C34: 626.35 | D34: 640.13 | E34: 610.27 | F34: 594.18 | G34: 564.32 | H34: 656.22 | I34: 686.08 | J34: 702.17 | K34: 670 | L34: 624.05 | M34: 216.66348
A35: 26 | B35: AUROPHARMA | C35: 1160.85 | D35: 1157.73 | E35: 1145.17 | F35: 1129.48 | G35: 1116.92 | H35: 1173.42 | I35: 1185.98 | J35: 1201.67 | K35: 1170.3 | L35: 1142.05 | M35: 24.8762
A36: 27 | B36: AWL | C36: 360.65 | D36: 358.93 | E36: 353.62 | F36: 346.58 | G36: 341.27 | H36: 365.97 | I36: 371.28 | J36: 378.32 | K36: 364.25 | L36: 351.9 | M36: 22.66795
A37: 28 | B37: AXISBANK | C37: 1061.25 | D37: 1055.08 | E37: 1042.17 | F37: 1023.08 | G37: 1010.17 | H37: 1074.17 | I37: 1087.08 | J37: 1106.17 | K37: 1068 | L37: 1036 | M37: 111.88604
A38: 29 | B38: BAJAJ-AUTO | C38: 7548.8 | D38: 7556.27 | E38: 7472.53 | F38: 7396.27 | G38: 7312.53 | H38: 7632.53 | I38: 7716.27 | J38: 7792.53 | K38: 7640 | L38: 7480 | M38: 4.57853
A39: 30 | B39: BAJAJFINSV | C39: 1636.95 | D39: 1632.35 | E39: 1623.10 | F39: 1609.25 | G39: 1600.00 | H39: 1646.20 | I39: 1655.45 | J39: 1669.30 | K39: 1641.6 | L39: 1618.5 | M39: 9.4022
A40: 31 | B40: BAJAJHLDNG | C40: 8246.55 | D40: 8268.03 | E40: 8156.07 | F40: 8065.58 | G40: 7953.62 | H40: 8358.52 | I40: 8470.48 | J40: 8560.97 | K40: 8380 | L40: 8177.55 | M40: 0.32525
A41: 32 | B41: BAJFINANCE | C41: 7191.65 | D41: 7167.23 | E41: 7109.52 | F41: 7027.38 | G41: 6969.67 | H41: 7249.37 | I41: 7307.08 | J41: 7389.22 | K41: 7224.95 | L41: 7085.1 | M41: 18.60361
A42: 33 | B42: BALKRISIND | C42: 2508.7 | D42: 2514.38 | E42: 2478.77 | F42: 2448.83 | G42: 2413.22 | H42: 2544.32 | I42: 2579.93 | J42: 2609.87 | K42: 2550 | L42: 2484.45 | M42: 5.99618
A43: 34 | B43: BANDHANBNK | C43: 223.3 | D43: 224.05 | E43: 221.40 | F43: 219.50 | G43: 216.85 | H43: 225.95 | I43: 228.60 | J43: 230.50 | K43: 226.7 | L43: 222.15 | M43: 102.12834
A44: 35 | B44: BANKBARODA | C44: 234.25 | D44: 232.55 | E44: 229.35 | F44: 224.45 | G44: 221.25 | H44: 237.45 | I44: 240.65 | J44: 245.55 | K44: 235.75 | L44: 227.65 | M44: 206.41625
A45: 36 | B45: BANKINDIA | C45: 135.5 | D45: 134.85 | E45: 133.05 | F45: 130.60 | G45: 128.80 | H45: 137.30 | I45: 139.10 | J45: 141.55 | K45: 136.65 | L45: 132.4 | M45: 163.80958
A46: 37 | B46: BATAINDIA | C46: 1458.25 | D46: 1452.05 | E46: 1431.20 | F46: 1404.15 | G46: 1383.30 | H46: 1479.10 | I46: 1499.95 | J46: 1527.00 | K46: 1472.9 | L46: 1425 | M46: 5.56305
A47: 38 | B47: BEL | C47: 190.9 | D47: 190.72 | E47: 187.73 | F47: 184.57 | G47: 181.58 | H47: 193.88 | I47: 196.87 | J47: 200.03 | K47: 193.7 | L47: 187.55 | M47: 289.19512
A48: 39 | B48: BERGEPAINT | C48: 559.85 | D48: 558.28 | E48: 552.67 | F48: 545.48 | G48: 539.87 | H48: 565.47 | I48: 571.08 | J48: 578.27 | K48: 563.9 | L48: 551.1 | M48: 5.9584
A49: 40 | B49: BHARATFORG | C49: 1243.65 | D49: 1231.37 | E49: 1212.73 | F49: 1181.82 | G49: 1163.18 | H49: 1262.28 | I49: 1280.92 | J49: 1311.83 | K49: 1250 | L49: 1200.45 | M49: 18.42394
A50: 41 | B50: BHARTIARTL | C50: 1162.15 | D50: 1163.30 | E50: 1156.85 | F50: 1151.55 | G50: 1145.10 | H50: 1168.60 | I50: 1175.05 | J50: 1180.35 | K50: 1169.75 | L50: 1158 | M50: 40.15858
A51: 42 | B51: BHEL | C51: 221.3 | D51: 221.47 | E51: 219.73 | F51: 218.17 | G51: 216.43 | H51: 223.03 | I51: 224.77 | J51: 226.33 | K51: 223.2 | L51: 219.9 | M51: 222.69048
A52: 43 | B52: BIOCON | C52: 260.1 | D52: 259.35 | E52: 257.15 | F52: 254.20 | G52: 252.00 | H52: 262.30 | I52: 264.50 | J52: 267.45 | K52: 261.55 | L52: 256.4 | M52: 33.14421
A53: 44 | B53: BOSCHLTD | C53: 23248.8 | D53: 23124.18 | E53: 22899.67 | F53: 22550.53 | G53: 22326.02 | H53: 23473.32 | I53: 23697.83 | J53: 24046.97 | K53: 23348.7 | L53: 22775.05 | M53: 0.64222
A54: 45 | B54: BPCL | C54: 492.65 | D54: 487.82 | E54: 474.23 | F54: 455.82 | G54: 442.23 | H54: 506.23 | I54: 519.82 | J54: 538.23 | K54: 501.4 | L54: 469.4 | M54: 139.34742
A55: 46 | B55: BRITANNIA | C55: 5136.9 | D55: 5155.87 | E55: 5092.23 | F55: 5047.57 | G55: 4983.93 | H55: 5200.53 | I55: 5264.17 | J55: 5308.83 | K55: 5219.5 | L55: 5111.2 | M55: 2.7571
A56: 47 | B56: CANBK | C56: 474.55 | D56: 474.22 | E56: 468.43 | F56: 462.32 | G56: 456.53 | H56: 480.33 | I56: 486.12 | J56: 492.23 | K56: 480 | L56: 468.1 | M56: 88.02489
A57: 48 | B57: CGPOWER | C57: 467.05 | D57: 464.40 | E57: 451.80 | F57: 436.55 | G57: 423.95 | H57: 479.65 | I57: 492.25 | J57: 507.50 | K57: 477 | L57: 449.15 | M57: 26.76099
A58: 49 | B58: CHOLAFIN | C58: 1230.8 | D58: 1240.55 | E58: 1209.75 | F58: 1188.70 | G58: 1157.90 | H58: 1261.60 | I58: 1292.40 | J58: 1313.45 | K58: 1271.35 | L58: 1219.5 | M58: 25.11468
A59: 50 | B59: CIPLA | C59: 1336.85 | D59: 1342.38 | E59: 1319.77 | F59: 1302.68 | G59: 1280.07 | H59: 1359.47 | I59: 1382.08 | J59: 1399.17 | K59: 1365 | L59: 1325.3 | M59: 24.80508
A60: 51 | B60: COALINDIA | C60: 412.8 | D60: 406.33 | E60: 397.97 | F60: 383.13 | G60: 374.77 | H60: 421.17 | I60: 429.53 | J60: 444.37 | K60: 414.7 | L60: 391.5 | M60: 271.49058
A61: 52 | B61: COFORGE | C61: 6254.75 | D61: 6259.67 | E61: 6195.33 | F61: 6135.92 | G61: 6071.58 | H61: 6319.08 | I61: 6383.42 | J61: 6442.83 | K61: 6324 | L61: 6200.25 | M61: 4.23776
A62: 53 | B62: COLPAL | C62: 2526.55 | D62: 2514.85 | E62: 2496.70 | F62: 2466.85 | G62: 2448.70 | H62: 2544.70 | I62: 2562.85 | J62: 2592.70 | K62: 2533 | L62: 2485 | M62: 2.76386
A63: 54 | B63: CONCOR | C63: 860.35 | D63: 847.80 | E63: 827.75 | F63: 795.15 | G63: 775.10 | H63: 880.40 | I63: 900.45 | J63: 933.05 | K63: 867.85 | L63: 815.2 | M63: 60.47472
A64: 55 | B64: COROMANDEL | C64: 1137.55 | D64: 1137.50 | E64: 1128.60 | F64: 1119.65 | G64: 1110.75 | H64: 1146.45 | I64: 1155.35 | J64: 1164.30 | K64: 1146.4 | L64: 1128.55 | M64: 2.09061
A65: 56 | B65: CROMPTON | C65: 300.9 | D65: 302.37 | E65: 298.03 | F65: 295.17 | G65: 290.83 | H65: 305.23 | I65: 309.57 | J65: 312.43 | K65: 306.7 | L65: 299.5 | M65: 20.67278
A66: 57 | B66: CUMMINSIND | C66: 2255.15 | D66: 2236.65 | E66: 2182.55 | F66: 2109.95 | G66: 2055.85 | H66: 2309.25 | I66: 2363.35 | J66: 2435.95 | K66: 2290.75 | L66: 2164.05 | M66: 11.35151
A67: 58 | B67: DABUR | C67: 534.25 | D67: 528.40 | E67: 520.85 | F67: 507.45 | G67: 499.90 | H67: 541.80 | I67: 549.35 | J67: 562.75 | K67: 535.95 | L67: 515 | M67: 13.1611
A68: 59 | B68: DALBHARAT | C68: 2256.45 | D68: 2251.93 | E68: 2225.52 | F68: 2194.58 | G68: 2168.17 | H68: 2282.87 | I68: 2309.28 | J68: 2340.22 | K68: 2278.35 | L68: 2221 | M68: 4.58573
A69: 60 | B69: DEEPAKNTR | C69: 2240.1 | D69: 2237.70 | E69: 2225.40 | F69: 2210.70 | G69: 2198.40 | H69: 2252.40 | I69: 2264.70 | J69: 2279.40 | K69: 2250 | L69: 2223 | M69: 1.3459
A70: 61 | B70: DELHIVERY | C70: 427.85 | D70: 422.30 | E70: 411.60 | F70: 395.35 | G70: 384.65 | H70: 438.55 | I70: 449.25 | J70: 465.50 | K70: 433 | L70: 406.05 | M70: 59.9622
A71: 62 | B71: DEVYANI | C71: 171.55 | D71: 173.82 | E71: 168.78 | F71: 166.02 | G71: 160.98 | H71: 176.58 | I71: 181.62 | J71: 184.38 | K71: 178.85 | L71: 171.05 | M71: 30.74552
A72: 63 | B72: DIVISLAB | C72: 3570.6 | D72: 3568.90 | E72: 3551.80 | F72: 3533.00 | G72: 3515.90 | H72: 3587.70 | I72: 3604.80 | J72: 3623.60 | K72: 3586 | L72: 3550.1 | M72: 7.6597
A73: 64 | B73: DIXON | C73: 5871.65 | D73: 5878.32 | E73: 5835.43 | F73: 5799.22 | G73: 5756.33 | H73: 5914.53 | I73: 5957.42 | J73: 5993.63 | K73: 5921.2 | L73: 5842.1 | M73: 2.1439
A74: 65 | B74: DLF | C74: 767.35 | D74: 764.77 | E74: 757.83 | F74: 748.32 | G74: 741.38 | H74: 774.28 | I74: 781.22 | J74: 790.73 | K74: 771.7 | L74: 755.25 | M74: 55.04653
A75: 66 | B75: DMART | C75: 3749.4 | D75: 3734.20 | E75: 3704.20 | F75: 3659.00 | G75: 3629.00 | H75: 3779.40 | I75: 3809.40 | J75: 3854.60 | K75: 3764.2 | L75: 3689 | M75: 2.16522
A76: 67 | B76: DRREDDY | C76: 5843.7 | D76: 5825.50 | E76: 5758.40 | F76: 5673.10 | G76: 5606.00 | H76: 5910.80 | I76: 5977.90 | J76: 6063.20 | K76: 5892.6 | L76: 5740.2 | M76: 3.01914
A77: 68 | B77: EICHERMOT | C77: 3669.05 | D77: 3646.70 | E77: 3612.40 | F77: 3555.75 | G77: 3521.45 | H77: 3703.35 | I77: 3737.65 | J77: 3794.30 | K77: 3681 | L77: 3590.05 | M77: 9.36432
A78: 69 | B78: ESCORTS | C78: 3023.2 | D78: 3003.95 | E78: 2967.45 | F78: 2911.70 | G78: 2875.20 | H78: 3059.70 | I78: 3096.20 | J78: 3151.95 | K78: 3040.45 | L78: 2948.2 | M78: 2.99823
A79: 70 | B79: FEDERALBNK | C79: 145.45 | D79: 144.87 | E79: 143.08 | F79: 140.72 | G79: 138.93 | H79: 147.23 | I79: 149.02 | J79: 151.38 | K79: 146.65 | L79: 142.5 | M79: 203.36392
A80: 71 | B80: FLUOROCHEM | C80: 3706.3 | D80: 3663.35 | E80: 3587.70 | F80: 3469.10 | G80: 3393.45 | H80: 3781.95 | I80: 3857.60 | J80: 3976.20 | K80: 3739 | L80: 3544.75 | M80: 1.23138
A81: 72 | B81: FORTIS | C81: 424.15 | D81: 425.43 | E81: 420.72 | F81: 417.28 | G81: 412.57 | H81: 428.87 | I81: 433.58 | J81: 437.02 | K81: 430.15 | L81: 422 | M81: 5.26104
A82: 73 | B82: GAIL | C82: 171.75 | D82: 170.65 | E82: 166.60 | F82: 161.45 | G82: 157.40 | H82: 175.80 | I82: 179.85 | J82: 185.00 | K82: 174.7 | L82: 165.5 | M82: 584.33818
A83: 74 | B83: GLAND | C83: 1880.6 | D83: 1884.47 | E83: 1860.23 | F83: 1839.87 | G83: 1815.63 | H83: 1904.83 | I83: 1929.07 | J83: 1949.43 | K83: 1908.7 | L83: 1864.1 | M83: 1.0885
A84: 75 | B84: GODREJCP | C84: 1168.1 | D84: 1168.62 | E84: 1156.23 | F84: 1144.37 | G84: 1131.98 | H84: 1180.48 | I84: 1192.87 | J84: 1204.73 | K84: 1181 | L84: 1156.75 | M84: 28.0057
A85: 76 | B85: GODREJPROP | C85: 2430.4 | D85: 2402.47 | E85: 2360.93 | F85: 2291.47 | G85: 2249.93 | H85: 2471.93 | I85: 2513.47 | J85: 2582.93 | K85: 2444 | L85: 2333 | M85: 15.72046
A86: 77 | B86: GRASIM | C86: 2104.5 | D86: 2102.42 | E86: 2079.83 | F86: 2055.17 | G86: 2032.58 | H86: 2127.08 | I86: 2149.67 | J86: 2174.33 | K86: 2125 | L86: 2077.75 | M86: 7.95647
A87: 78 | B87: GUJGASLTD | C87: 553.4 | D87: 555.63 | E87: 549.77 | F87: 546.13 | G87: 540.27 | H87: 559.27 | I87: 565.13 | J87: 568.77 | K87: 561.5 | L87: 552 | M87: 5.27332
A88: 79 | B88: HAL | C88: 2976.95 | D88: 2955.28 | E88: 2925.57 | F88: 2874.18 | G88: 2844.47 | H88: 3006.67 | I88: 3036.38 | J88: 3087.77 | K88: 2985 | L88: 2903.9 | M88: 12.13259
A89: 80 | B89: HAVELLS | C89: 1317.9 | D89: 1310.17 | E89: 1297.58 | F89: 1277.27 | G89: 1264.68 | H89: 1330.48 | I89: 1343.07 | J89: 1363.38 | K89: 1322.75 | L89: 1289.85 | M89: 11.95162
A90: 81 | B90: HCLTECH | C90: 1574.55 | D90: 1571.13 | E90: 1553.67 | F90: 1532.78 | G90: 1515.32 | H90: 1592.02 | I90: 1609.48 | J90: 1630.37 | K90: 1588.6 | L90: 1550.25 | M90: 25.21598
A91: 82 | B91: HDFCAMC | C91: 3510.1 | D91: 3485.20 | E91: 3431.20 | F91: 3352.30 | G91: 3298.30 | H91: 3564.10 | I91: 3618.10 | J91: 3697.00 | K91: 3539.2 | L91: 3406.3 | M91: 7.04595
A92: 83 | B92: HDFCBANK | C92: 1454.65 | D92: 1454.42 | E92: 1446.03 | F92: 1437.42 | G92: 1429.03 | H92: 1463.03 | I92: 1471.42 | J92: 1480.03 | K92: 1462.8 | L92: 1445.8 | M92: 328.22749
A93: 84 | B93: HDFCLIFE | C93: 578.55 | D93: 579.20 | E93: 574.40 | F93: 570.25 | G93: 565.45 | H93: 583.35 | I93: 588.15 | J93: 592.30 | K93: 584 | L93: 575.05 | M93: 43.99011
A94: 85 | B94: HEROMOTOCO | C94: 4593.5 | D94: 4548.28 | E94: 4471.57 | F94: 4349.63 | G94: 4272.92 | H94: 4670.22 | I94: 4746.93 | J94: 4868.87 | K94: 4625 | L94: 4426.35 | M94: 4.18127
A95: 86 | B95: HINDALCO | C95: 567.9 | D95: 567.28 | E95: 562.62 | F95: 557.33 | G95: 552.67 | H95: 572.57 | I95: 577.23 | J95: 582.52 | K95: 571.95 | L95: 562 | M95: 51.26212
A96: 87 | B96: HINDPETRO | C96: 452.3 | D96: 447.03 | E96: 435.42 | F96: 418.53 | G96: 406.92 | H96: 463.92 | I96: 475.53 | J96: 492.42 | K96: 458.65 | L96: 430.15 | M96: 138.05392
A97: 88 | B97: HINDUNILVR | C97: 2444.4 | D97: 2434.47 | E97: 2419.93 | F97: 2395.47 | G97: 2380.93 | H97: 2458.93 | I97: 2473.47 | J97: 2497.93 | K97: 2449 | L97: 2410 | M97: 15.87091
A98: 89 | B98: HINDZINC | C98: 314 | D98: 313.52 | E98: 312.03 | F98: 310.07 | G98: 308.58 | H98: 315.48 | I98: 316.97 | J98: 318.93 | K98: 315 | L98: 311.55 | M98: 3.66623
A99: 90 | B99: HONAUT | C99: 38572.25 | D99: 38603.92 | E99: 38243.78 | F99: 37915.32 | G99: 37555.18 | H99: 38932.38 | I99: 39292.52 | J99: 39620.98 | K99: 38964.05 | L99: 38275.45 | M99: 0.02706
A100: 91 | B100: ICICIBANK | C100: 1016.4 | D100: 1019.47 | E100: 1006.93 | F100: 997.47 | G100: 984.93 | H100: 1028.93 | I100: 1041.47 | J100: 1050.93 | K100: 1032 | L100: 1010 | M100: 140.78922
A101: 92 | B101: ICICIGI | C101: 1488.85 | D101: 1484.50 | E101: 1473.15 | F101: 1457.45 | G101: 1446.10 | H101: 1500.20 | I101: 1511.55 | J101: 1527.25 | K101: 1495.85 | L101: 1468.8 | M101: 3.74957
A102: 93 | B102: ICICIPRULI | C102: 491.6 | D102: 489.63 | E102: 484.97 | F102: 478.33 | G102: 473.67 | H102: 496.27 | I102: 500.93 | J102: 507.57 | K102: 494.3 | L102: 483 | M102: 52.23917
A103: 94 | B103: IDEA | C103: 14.7 | D103: 14.83 | E103: 14.47 | F103: 14.23 | G103: 13.87 | H103: 15.07 | I103: 15.43 | J103: 15.67 | K103: 15.2 | L103: 14.6 | M103: 2459.74552
A104: 95 | B104: IDFCFIRSTB | C104: 83.5 | D104: 82.62 | E104: 81.48 | F104: 79.47 | G104: 78.33 | H104: 84.63 | I104: 85.77 | J104: 87.78 | K104: 83.75 | L104: 80.6 | M104: 698.18447
A105: 96 | B105: IGL | C105: 419.1 | D105: 415.00 | E105: 408.50 | F105: 397.90 | G105: 391.40 | H105: 425.60 | I105: 432.10 | J105: 442.70 | K105: 421.5 | L105: 404.4 | M105: 38.79117
A106: 97 | B106: INDHOTEL | C106: 496.15 | D106: 489.92 | E106: 479.83 | F106: 463.52 | G106: 453.43 | H106: 506.23 | I106: 516.32 | J106: 532.63 | K106: 500 | L106: 473.6 | M106: 85.03267
A107: 98 | B107: INDIANB | C107: 480.5 | D107: 472.65 | E107: 463.40 | F107: 446.30 | G107: 437.05 | H107: 489.75 | I107: 499.00 | J107: 516.10 | K107: 481.9 | L107: 455.55 | M107: 44.51584
A108: 99 | B108: INDIGO | C108: 2896 | D108: 2889.72 | E108: 2858.03 | F108: 2820.07 | G108: 2788.38 | H108: 2927.68 | I108: 2959.37 | J108: 2997.33 | K108: 2921.4 | L108: 2851.75 | M108: 15.39851
A109: 100 | B109: INDUSINDBK | C109: 1526.8 | D109: 1526.63 | E109: 1515.52 | F109: 1504.23 | G109: 1493.12 | H109: 1537.92 | I109: 1549.03 | J109: 1560.32 | K109: 1537.75 | L109: 1515.35 | M109: 30.5802
A110: 101 | B110: INDUSTOWER | C110: 232.25 | D110: 230.77 | E110: 227.58 | F110: 222.92 | G110: 219.73 | H110: 235.43 | I110: 238.62 | J110: 243.28 | K110: 233.95 | L110: 226.1 | M110: 116.21907
A111: 102 | B111: INFY | C111: 1656.6 | D111: 1661.18 | E111: 1643.02 | F111: 1629.43 | G111: 1611.27 | H111: 1674.77 | I111: 1692.93 | J111: 1706.52 | K111: 1679.35 | L111: 1647.6 | M111: 42.53785
A112: 103 | B112: IOC | C112: 146.7 | D112: 146.20 | E112: 144.00 | F112: 141.30 | G112: 139.10 | H112: 148.90 | I112: 151.10 | J112: 153.80 | K112: 148.4 | L112: 143.5 | M112: 284.2076
A113: 104 | B113: IPCALAB | C113: 1132.6 | D113: 1126.22 | E113: 1117.38 | F113: 1102.17 | G113: 1093.33 | H113: 1141.43 | I113: 1150.27 | J113: 1165.48 | K113: 1135.05 | L113: 1111 | M113: 6.89193
A114: 105 | B114: IRCTC | C114: 981.8 | D114: 981.45 | E114: 973.00 | F114: 964.20 | G114: 955.75 | H114: 990.25 | I114: 998.70 | J114: 1007.50 | K114: 989.9 | L114: 972.65 | M114: 38.70322
A115: 106 | B115: IRFC | C115: 170.85 | D115: 172.82 | E115: 167.33 | F115: 163.82 | G115: 158.33 | H115: 176.33 | I115: 181.82 | J115: 185.33 | K115: 178.3 | L115: 169.3 | M115: 743.41987
A116: 107 | B116: ITC | C116: 449.8 | D116: 451.52 | E116: 445.78 | F116: 441.77 | G116: 436.03 | H116: 455.53 | I116: 461.27 | J116: 465.28 | K116: 457.25 | L116: 447.5 | M116: 178.69152
A117: 108 | B117: JINDALSTEL | C117: 730.75 | D117: 726.53 | E117: 719.22 | F117: 707.68 | G117: 700.37 | H117: 738.07 | I117: 745.38 | J117: 756.92 | K117: 733.85 | L117: 715 | M117: 20.34288
A118: 109 | B118: JSWENERGY | C118: 496.3 | D118: 497.37 | E118: 489.88 | F118: 483.47 | G118: 475.98 | H118: 503.78 | I118: 511.27 | J118: 517.68 | K118: 504.85 | L118: 490.95 | M118: 22.96482
A119: 110 | B119: JSWSTEEL | C119: 811.7 | D119: 813.10 | E119: 802.60 | F119: 793.50 | G119: 783.00 | H119: 822.20 | I119: 832.70 | J119: 841.80 | K119: 823.6 | L119: 804 | M119: 15.7483
A120: 111 | B120: JUBLFOOD | C120: 513.15 | D120: 511.90 | E120: 505.35 | F120: 497.55 | G120: 491.00 | H120: 519.70 | I120: 526.25 | J120: 534.05 | K120: 518.45 | L120: 504.1 | M120: 62.12204
A121: 112 | B121: KOTAKBANK | C121: 1822.9 | D121: 1809.65 | E121: 1789.25 | F121: 1755.60 | G121: 1735.20 | H121: 1843.30 | I121: 1863.70 | J121: 1897.35 | K121: 1830.05 | L121: 1776 | M121: 52.36148
A122: 113 | B122: L&TFH | C122: 167.6 | D122: 167.85 | E122: 166.70 | F122: 165.80 | G122: 164.65 | H122: 168.75 | I122: 169.90 | J122: 170.80 | K122: 169 | L122: 166.95 | M122: 45.25741
A123: 114 | B123: LALPATHLAB | C123: 2429.25 | D123: 2417.17 | E123: 2375.38 | F123: 2321.52 | G123: 2279.73 | H123: 2471.03 | I123: 2512.82 | J123: 2566.68 | K123: 2458.95 | L123: 2363.3 | M123: 1.69437
A124: 115 | B124: LAURUSLABS | C124: 374.2 | D124: 376.17 | E124: 369.33 | F124: 364.47 | G124: 357.63 | H124: 381.03 | I124: 387.87 | J124: 392.73 | K124: 383 | L124: 371.3 | M124: 28.07796
A125: 116 | B125: LICHSGFIN | C125: 600 | D125: 595.60 | E125: 582.40 | F125: 564.80 | G125: 551.60 | H125: 613.20 | I125: 626.40 | J125: 644.00 | K125: 608.8 | L125: 578 | M125: 67.52824
A126: 117 | B126: LICI | C126: 915.6 | D126: 917.03 | E126: 902.17 | F126: 888.73 | G126: 873.87 | H126: 930.47 | I126: 945.33 | J126: 958.77 | K126: 931.9 | L126: 903.6 | M126: 37.92964
A127: 118 | B127: LT | C127: 3708 | D127: 3680.65 | E127: 3627.45 | F127: 3546.90 | G127: 3493.70 | H127: 3761.20 | I127: 3814.40 | J127: 3894.95 | K127: 3733.85 | L127: 3600.1 | M127: 20.72982
A128: 119 | B128: LTIM | C128: 5448.35 | D128: 5454.15 | E128: 5394.20 | F128: 5340.05 | G128: 5280.10 | H128: 5508.30 | I128: 5568.25 | J128: 5622.40 | K128: 5514.1 | L128: 5400 | M128: 7.72171
A129: 120 | B129: LTTS | C129: 5437.65 | D129: 5419.55 | E129: 5385.15 | F129: 5332.65 | G129: 5298.25 | H129: 5472.05 | I129: 5506.45 | J129: 5558.95 | K129: 5453.95 | L129: 5367.05 | M129: 0.95567
A130: 121 | B130: LUPIN | C130: 1483.3 | D130: 1476.08 | E130: 1461.22 | F130: 1439.13 | G130: 1424.27 | H130: 1498.17 | I130: 1513.03 | J130: 1535.12 | K130: 1490.95 | L130: 1454 | M130: 9.79549
A131: 122 | B131: M&M | C131: 1640 | D131: 1636.67 | E131: 1628.33 | F131: 1616.67 | G131: 1608.33 | H131: 1648.33 | I131: 1656.67 | J131: 1668.33 | K131: 1645 | L131: 1625 | M131: 30.7567
A132: 123 | B132: M&MFIN | C132: 278.6 | D132: 276.12 | E132: 272.18 | F132: 265.77 | G132: 261.83 | H132: 282.53 | I132: 286.47 | J132: 292.88 | K132: 280.05 | L132: 269.7 | M132: 34.30721
A133: 124 | B133: MANKIND | C133: 2091.5 | D133: 2077.57 | E133: 2035.13 | F133: 1978.77 | G133: 1936.33 | H133: 2133.93 | I133: 2176.37 | J133: 2232.73 | K133: 2120 | L133: 2021.2 | M133: 1.72585
A134: 125 | B134: MARICO | C134: 516.6 | D134: 516.35 | E134: 508.85 | F134: 501.10 | G134: 493.60 | H134: 524.10 | I134: 531.60 | J134: 539.35 | K134: 523.85 | L134: 508.6 | M134: 21.46422
A135: 126 | B135: MARUTI | C135: 9991.4 | D135: 9967.15 | E135: 9899.30 | F135: 9807.20 | G135: 9739.35 | H135: 10059.25 | I135: 10127.10 | J135: 10219.20 | K135: 10035 | L135: 9875.05 | M135: 4.46516
A136: 127 | B136: MAXHEALTH | C136: 725.15 | D136: 717.10 | E136: 702.85 | F136: 680.55 | G136: 666.30 | H136: 739.40 | I136: 753.65 | J136: 775.95 | K136: 731.35 | L136: 694.8 | M136: 29.66004
A137: 128 | B137: MCDOWELL-N | C137: 1093.9 | D137: 1101.17 | E137: 1082.28 | F137: 1070.67 | G137: 1051.78 | H137: 1112.78 | I137: 1131.67 | J137: 1143.28 | K137: 1120.05 | L137: 1089.55 | M137: 7.86771
A138: 129 | B138: MFSL | C138: 901.8 | D138: 892.45 | E138: 879.35 | F138: 856.90 | G138: 843.80 | H138: 914.90 | I138: 928.00 | J138: 950.45 | K138: 905.55 | L138: 870 | M138: 10.04778
A139: 130 | B139: MOTHERSON | C139: 116.4 | D139: 116.33 | E139: 114.67 | F139: 112.93 | G139: 111.27 | H139: 118.07 | I139: 119.73 | J139: 121.47 | K139: 118 | L139: 114.6 | M139: 224.86732
A140: 131 | B140: MPHASIS | C140: 2582.7 | D140: 2565.07 | E140: 2532.73 | F140: 2482.77 | G140: 2450.43 | H140: 2615.03 | I140: 2647.37 | J140: 2697.33 | K140: 2597.4 | L140: 2515.1 | M140: 5.5754
A141: 132 | B141: MRF | C141: 143873.6 | D141: 141452.22 | E141: 138754.43 | F141: 133635.27 | G141: 130937.48 | H141: 146571.38 | I141: 149269.17 | J141: 154388.33 | K141: 144150 | L141: 136333.05 | M141: 0.26375
A142: 133 | B142: MSUMI | C142: 61.7 | D142: 61.67 | E142: 61.38 | F142: 61.07 | G142: 60.78 | H142: 61.98 | I142: 62.27 | J142: 62.58 | K142: 61.95 | L142: 61.35 | M142: 47.95514
A143: 134 | B143: MUTHOOTFIN | C143: 1393.95 | D143: 1394.17 | E143: 1383.88 | F143: 1373.82 | G143: 1363.53 | H143: 1404.23 | I143: 1414.52 | J143: 1424.58 | K143: 1404.45 | L143: 1384.1 | M143: 1.90949
A144: 135 | B144: NAUKRI | C144: 4975.25 | D144: 4983.87 | E144: 4918.93 | F144: 4862.62 | G144: 4797.68 | H144: 5040.18 | I144: 5105.12 | J144: 5161.43 | K144: 5048.8 | L144: 4927.55 | M144: 4.12804
A145: 136 | B145: NAVINFLUOR | C145: 3324.1 | D145: 3333.43 | E145: 3286.87 | F145: 3249.63 | G145: 3203.07 | H145: 3370.67 | I145: 3417.23 | J145: 3454.47 | K145: 3380 | L145: 3296.2 | M145: 2.20222
A146: 137 | B146: NESTLEIND | C146: 2498.55 | D146: 2493.38 | E146: 2481.77 | F146: 2464.98 | G146: 2453.37 | H146: 2510.17 | I146: 2521.78 | J146: 2538.57 | K146: 2505 | L146: 2476.6 | M146: 6.32719
A147: 138 | B147: NHPC | C147: 86.95 | D147: 87.12 | E147: 84.63 | F147: 82.32 | G147: 79.83 | H147: 89.43 | I147: 91.92 | J147: 94.23 | K147: 89.6 | L147: 84.8 | M147: 2293.99393
A148: 139 | B148: NMDC | C148: 220.95 | D148: 220.12 | E148: 218.23 | F148: 215.52 | G148: 213.63 | H148: 222.83 | I148: 224.72 | J148: 227.43 | K148: 222 | L148: 217.4 | M148: 169.93127
A149: 140 | B149: NTPC | C149: 324.55 | D149: 322.15 | E149: 318.55 | F149: 312.55 | G149: 308.95 | H149: 328.15 | I149: 331.75 | J149: 337.75 | K149: 325.75 | L149: 316.15 | M149: 246.94773
A150: 141 | B150: NYKAA | C150: 163.1 | D150: 162.38 | E150: 161.07 | F150: 159.03 | G150: 157.72 | H150: 164.42 | I150: 165.73 | J150: 167.77 | K150: 163.7 | L150: 160.35 | M150: 41.90712
A151: 142 | B151: OBEROIRLTY | C151: 1307.95 | D151: 1299.63 | E151: 1284.97 | F151: 1261.98 | G151: 1247.32 | H151: 1322.62 | I151: 1337.28 | J151: 1360.27 | K151: 1314.3 | L151: 1276.65 | M151: 15.35108
A152: 143 | B152: OFSS | C152: 6631.5 | D152: 6657.32 | E152: 6556.78 | F152: 6482.07 | G152: 6381.53 | H152: 6732.03 | I152: 6832.57 | J152: 6907.28 | K152: 6757.85 | L152: 6582.6 | M152: 2.00607
A153: 144 | B153: OIL | C153: 413.6 | D153: 412.97 | E153: 404.93 | F153: 396.27 | G153: 388.23 | H153: 421.63 | I153: 429.67 | J153: 438.33 | K153: 421 | L153: 404.3 | M153: 39.46643
A154: 145 | B154: ONGC | C154: 252.5 | D154: 248.85 | E154: 242.75 | F154: 233.00 | G154: 226.90 | H154: 258.60 | I154: 264.70 | J154: 274.45 | K154: 254.95 | L154: 239.1 | M154: 541.27939
A155: 146 | B155: PAGEIND | C155: 37635.2 | D155: 37323.98 | E155: 36736.97 | F155: 35838.73 | G155: 35251.72 | H155: 38222.22 | I155: 38809.23 | J155: 39707.47 | K155: 37911 | L155: 36425.75 | M155: 0.4135
A156: 147 | B156: PATANJALI | C156: 1568.35 | D156: 1572.13 | E156: 1551.32 | F156: 1534.28 | G156: 1513.47 | H156: 1589.17 | I156: 1609.98 | J156: 1627.02 | K156: 1592.95 | L156: 1555.1 | M156: 1.72854
A157: 148 | B157: PAYTM | C157: 752.05 | D157: 756.00 | E157: 743.10 | F157: 734.15 | G157: 721.25 | H157: 764.95 | I157: 777.85 | J157: 786.80 | K157: 768.9 | L157: 747.05 | M157: 31.08252
A158: 149 | B158: PEL | C158: 884.05 | D158: 880.05 | E158: 859.10 | F158: 834.15 | G158: 813.20 | H158: 905.00 | I158: 925.95 | J158: 950.90 | K158: 901 | L158: 855.1 | M158: 21.75143
A159: 150 | B159: PERSISTENT | C159: 8637.6 | D159: 8551.18 | E159: 8447.37 | F159: 8257.13 | G159: 8153.32 | H159: 8741.42 | I159: 8845.23 | J159: 9035.47 | K159: 8655 | L159: 8360.95 | M159: 5.16476
A160: 151 | B160: PETRONET | C160: 262.95 | D160: 262.28 | E160: 258.27 | F160: 253.58 | G160: 249.57 | H160: 266.97 | I160: 270.98 | J160: 275.67 | K160: 266.3 | L160: 257.6 | M160: 155.32941
A161: 152 | B161: PFC | C161: 446.75 | D161: 438.93 | E161: 429.42 | F161: 412.08 | G161: 402.57 | H161: 456.27 | I161: 465.78 | J161: 483.12 | K161: 448.45 | L161: 421.6 | M161: 383.20305
A162: 153 | B162: PGHH | C162: 17266.95 | D162: 17212.17 | E162: 17107.33 | F162: 16947.72 | G162: 16842.88 | H162: 17371.78 | I162: 17476.62 | J162: 17636.23 | K162: 17317 | L162: 17052.55 | M162: 0.02747
A163: 154 | B163: PIDILITIND | C163: 2569.3 | D163: 2577.93 | E163: 2546.62 | F163: 2523.93 | G163: 2492.62 | H163: 2600.62 | I163: 2631.93 | J163: 2654.62 | K163: 2609.25 | L163: 2555.25 | M163: 10.16146
A164: 155 | B164: PIIND | C164: 3293.15 | D164: 3283.32 | E164: 3257.83 | F164: 3222.52 | G164: 3197.03 | H164: 3318.63 | I164: 3344.12 | J164: 3379.43 | K164: 3308.8 | L164: 3248 | M164: 2.18314
A165: 156 | B165: PNB | C165: 107.5 | D165: 107.48 | E165: 105.47 | F165: 103.43 | G165: 101.42 | H165: 109.52 | I165: 111.53 | J165: 113.57 | K165: 109.5 | L165: 105.45 | M165: 1081.49443
A166: 157 | B166: POLICYBZR | C166: 900.1 | D166: 899.53 | E166: 890.52 | F166: 880.93 | G166: 871.92 | H166: 909.12 | I166: 918.13 | J166: 927.72 | K166: 908.55 | L166: 889.95 | M166: 8.19526
A167: 158 | B167: POLYCAB | C167: 4346.2 | D167: 4349.27 | E167: 4290.03 | F167: 4233.87 | G167: 4174.63 | H167: 4405.43 | I167: 4464.67 | J167: 4520.83 | K167: 4408.5 | L167: 4293.1 | M167: 8.78902
A168: 159 | B168: POONAWALLA | C168: 482.9 | D168: 480.42 | E168: 476.23 | F168: 469.57 | G168: 465.38 | H168: 487.08 | I168: 491.27 | J168: 497.93 | K168: 484.6 | L168: 473.75 | M168: 14.67086
A169: 160 | B169: POWERGRID | C169: 253.95 | D169: 251.37 | E169: 247.73 | F169: 241.52 | G169: 237.88 | H169: 257.58 | I169: 261.22 | J169: 267.43 | K169: 255 | L169: 245.15 | M169: 261.81011
A170: 161 | B170: PRESTIGE | C170: 1212.8 | D170: 1201.95 | E170: 1173.65 | F170: 1134.50 | G170: 1106.20 | H170: 1241.10 | I170: 1269.40 | J170: 1308.55 | K170: 1230.25 | L170: 1162.8 | M170: 10.05109
A171: 162 | B171: RAMCOCEM | C171: 985.55 | D171: 982.32 | E171: 974.63 | F171: 963.72 | G171: 956.03 | H171: 993.23 | I171: 1000.92 | J171: 1011.83 | K171: 990 | L171: 971.4 | M171: 3.73303
A172: 163 | B172: RECLTD | C172: 499.7 | D172: 492.60 | E172: 479.60 | F172: 459.50 | G172: 446.50 | H172: 512.70 | I172: 525.70 | J172: 545.80 | K172: 505.6 | L172: 472.5 | M172: 272.72127
A173: 164 | B173: RELIANCE | C173: 2896.1 | D173: 2840.48 | E173: 2775.97 | F173: 2655.83 | G173: 2591.32 | H173: 2960.62 | I173: 3025.13 | J173: 3145.27 | K173: 2905 | L173: 2720.35 | M173: 119.46719
A174: 165 | B174: SAIL | C174: 120.45 | D174: 120.03 | E174: 118.42 | F174: 116.38 | G174: 114.77 | H174: 122.07 | I174: 123.68 | J174: 125.72 | K174: 121.65 | L174: 118 | M174: 457.34036
A175: 166 | B175: SBICARD | C175: 715.55 | D175: 720.02 | E175: 705.63 | F175: 695.72 | G175: 681.33 | H175: 729.93 | I175: 744.32 | J175: 754.23 | K175: 734.4 | L175: 710.1 | M175: 88.41578
A176: 167 | B176: SBILIFE | C176: 1418.4 | D176: 1410.33 | E176: 1396.07 | F176: 1373.73 | G176: 1359.47 | H176: 1432.67 | I176: 1446.93 | J176: 1469.27 | K176: 1424.6 | L176: 1388 | M176: 16.07583
A177: 168 | B177: SBIN | C177: 622.95 | D177: 622.68 | E177: 615.87 | F177: 608.78 | G177: 601.97 | H177: 629.77 | I177: 636.58 | J177: 643.67 | K177: 629.5 | L177: 615.6 | M177: 195.7214
A178: 169 | B178: SHREECEM | C178: 28411.55 | D178: 28394.50 | E178: 27939.00 | F178: 27466.45 | G178: 27010.95 | H178: 28867.05 | I178: 29322.55 | J178: 29795.10 | K178: 28850 | L178: 27921.95 | M178: 0.35863
A179: 170 | B179: SHRIRAMFIN | C179: 2409 | D179: 2384.38 | E179: 2326.77 | F179: 2244.53 | G179: 2186.92 | H179: 2466.62 | I179: 2524.23 | J179: 2606.47 | K179: 2442 | L179: 2302.15 | M179: 35.79015
A180: 171 | B180: SIEMENS | C180: 4305.55 | D180: 4273.62 | E180: 4228.28 | F180: 4151.02 | G180: 4105.68 | H180: 4350.88 | I180: 4396.22 | J180: 4473.48 | K180: 4318.95 | L180: 4196.35 | M180: 4.60409
A181: 172 | B181: SONACOMS | C181: 597.3 | D181: 594.43 | E181: 589.87 | F181: 582.43 | G181: 577.87 | H181: 601.87 | I181: 606.43 | J181: 613.87 | K181: 599 | L181: 587 | M181: 11.13808
A182: 173 | B182: SRF | C182: 2246.6 | D182: 2252.87 | E182: 2223.73 | F182: 2200.87 | G182: 2171.73 | H182: 2275.73 | I182: 2304.87 | J182: 2327.73 | K182: 2282 | L182: 2230 | M182: 9.0188
A183: 174 | B183: SUNPHARMA | C183: 1400.85 | D183: 1392.30 | E183: 1363.75 | F183: 1326.65 | G183: 1298.10 | H183: 1429.40 | I183: 1457.95 | J183: 1495.05 | K183: 1420.85 | L183: 1355.2 | M183: 34.13149
A184: 175 | B184: SUNTV | C184: 662.65 | D184: 659.52 | E184: 652.58 | F184: 642.52 | G184: 635.58 | H184: 669.58 | I184: 676.52 | J184: 686.58 | K184: 666.45 | L184: 649.45 | M184: 4.93374
A185: 176 | B185: SYNGENE | C185: 683.25 | D185: 676.92 | E185: 668.83 | F185: 654.42 | G185: 646.33 | H185: 691.33 | I185: 699.42 | J185: 713.83 | K185: 685 | L185: 662.5 | M185: 23.79976
A186: 177 | B186: TATACHEM | C186: 1013.15 | D186: 1012.52 | E186: 1007.03 | F186: 1000.92 | G186: 995.43 | H186: 1018.63 | I186: 1024.12 | J186: 1030.23 | K186: 1018 | L186: 1006.4 | M186: 6.26512
A187: 178 | B187: TATACOMM | C187: 1713.5 | D187: 1715.63 | E187: 1704.42 | F187: 1695.33 | G187: 1684.12 | H187: 1724.72 | I187: 1735.93 | J187: 1745.02 | K187: 1726.85 | L187: 1706.55 | M187: 4.36769
A188: 179 | B188: TATACONSUM | C188: 1141.05 | D188: 1141.75 | E188: 1134.30 | F188: 1127.55 | G188: 1120.10 | H188: 1148.50 | I188: 1155.95 | J188: 1162.70 | K188: 1149.2 | L188: 1135 | M188: 15.8843
A189: 180 | B189: TATAELXSI | C189: 7694 | D189: 7696.23 | E189: 7647.82 | F189: 7601.63 | G189: 7553.22 | H189: 7742.42 | I189: 7790.83 | J189: 7837.02 | K189: 7744.65 | L189: 7650.05 | M189: 1.00972
A190: 181 | B190: TATAMOTORS | C190: 841 | D190: 831.95 | E190: 820.10 | F190: 799.20 | G190: 787.35 | H190: 852.85 | I190: 864.70 | J190: 885.60 | K190: 843.8 | L190: 811.05 | M190: 128.23686
A191: 182 | B191: TATAPOWER | C191: 381.9 | D191: 378.67 | E191: 370.08 | F191: 358.27 | G191: 349.68 | H191: 390.48 | I191: 399.07 | J191: 410.88 | K191: 387.25 | L191: 366.85 | M191: 344.4828
A192: 183 | B192: TATASTEEL | C192: 135 | D192: 134.63 | E192: 133.87 | F192: 132.73 | G192: 131.97 | H192: 135.77 | I192: 136.53 | J192: 137.67 | K192: 135.4 | L192: 133.5 | M192: 297.454
A193: 184 | B193: TCS | C193: 3801 | D193: 3800.62 | E193: 3781.23 | F193: 3761.47 | G193: 3742.08 | H193: 3820.38 | I193: 3839.77 | J193: 3859.53 | K193: 3820 | L193: 3780.85 | M193: 16.46747
A194: 185 | B194: TECHM | C194: 1314.35 | D194: 1321.12 | E194: 1304.23 | F194: 1294.12 | G194: 1277.23 | H194: 1331.23 | I194: 1348.12 | J194: 1358.23 | K194: 1338 | L194: 1311 | M194: 24.95791
A195: 186 | B195: TIINDIA | C195: 4073.65 | D195: 4023.88 | E195: 3942.77 | F195: 3811.88 | G195: 3730.77 | H195: 4154.77 | I195: 4235.88 | J195: 4366.77 | K195: 4105 | L195: 3893 | M195: 1.76542
A196: 187 | B196: TITAN | C196: 3866.65 | D196: 3834.07 | E196: 3793.13 | F196: 3719.62 | G196: 3678.68 | H196: 3907.58 | I196: 3948.52 | J196: 4022.03 | K196: 3875 | L196: 3760.55 | M196: 6.99215
A197: 188 | B197: TORNTPHARM | C197: 2437.9 | D197: 2445.48 | E197: 2406.42 | F197: 2374.93 | G197: 2335.87 | H197: 2476.97 | I197: 2516.03 | J197: 2547.52 | K197: 2484.55 | L197: 2414 | M197: 2.72821
A198: 189 | B198: TORNTPOWER | C198: 1003.85 | D198: 1012.18 | E198: 990.67 | F198: 977.48 | G198: 955.97 | H198: 1025.37 | I198: 1046.88 | J198: 1060.07 | K198: 1033.7 | L198: 999 | M198: 5.3086
A199: 190 | B199: TRENT | C199: 3246.4 | D199: 3255.67 | E199: 3216.33 | F199: 3186.27 | G199: 3146.93 | H199: 3285.73 | I199: 3325.07 | J199: 3355.13 | K199: 3295 | L199: 3225.6 | M199: 6.04096
A200: 191 | B200: TRIDENT | C200: 45.1 | D200: 45.33 | E200: 44.57 | F200: 44.03 | G200: 43.27 | H200: 45.87 | I200: 46.63 | J200: 47.17 | K200: 46.1 | L200: 44.8 | M200: 146.97439
A201: 192 | B201: TTML | C201: 90.2 | D201: 90.70 | E201: 88.60 | F201: 87.00 | G201: 84.90 | H201: 92.30 | I201: 94.40 | J201: 96.00 | K201: 92.8 | L201: 89.1 | M201: 58.41783
A202: 193 | B202: TVSMOTOR | C202: 1964.7 | D202: 1955.55 | E202: 1937.10 | F202: 1909.50 | G202: 1891.05 | H202: 1983.15 | I202: 2001.60 | J202: 2029.20 | K202: 1974 | L202: 1927.95 | M202: 15.6304
A203: 194 | B203: UBL | C203: 1801.7 | D203: 1816.22 | E203: 1781.43 | F203: 1761.17 | G203: 1726.38 | H203: 1836.48 | I203: 1871.27 | J203: 1891.53 | K203: 1851 | L203: 1795.95 | M203: 2.19353
A204: 195 | B204: ULTRACEMCO | C204: 10274.05 | D204: 10187.85 | E204: 10075.70 | F204: 9877.35 | G204: 9765.20 | H204: 10386.20 | I204: 10498.35 | J204: 10696.70 | K204: 10300 | L204: 9989.5 | M204: 3.34463
A205: 196 | B205: UNIONBANK | C205: 142.1 | D205: 142.68 | E205: 140.37 | F205: 138.63 | G205: 136.32 | H205: 144.42 | I205: 146.73 | J205: 148.47 | K205: 145 | L205: 140.95 | M205: 155.34613
... 28 more rows

Sheet MidCap Intra
L5: Back To Main Page
A6: FOR INTRA DAY TRADING | K6: =Main!B10 -> 2024-01-30
A9: Sr.no | B9: Scrip | C9: CLOSE RATE | D9: Pivot Point | E9: Supports | H9: Resistances
E10: S1 | F10: S2 | G10: S3 | H10: R1 | I10: R2 | J10: R3 | K10: HIGH | L10: LOW | M10: Total Trade Quanity in Lakhs
A11: 1 | B11: 360ONE | C11: 634 | D11: 634.52 | E11: 625.48 | F11: 616.97 | G11: 607.93 | H11: 643.03 | I11: 652.07 | J11: 660.58 | K11: 643.55 | L11: 626 | M11: 8.99275
A12: 2 | B12: 3MINDIA | C12: 33724.15 | D12: 33813.37 | E12: 33366.78 | F12: 33009.42 | G12: 32562.83 | H12: 34170.73 | I12: 34617.32 | J12: 34974.68 | K12: 34259.95 | L12: 33456 | M12: 0.02703
A13: 3 | B13: AARTIDRUGS | C13: 506.1 | D13: 501.37 | E13: 492.73 | F13: 479.37 | G13: 470.73 | H13: 514.73 | I13: 523.37 | J13: 536.73 | K13: 510 | L13: 488 | M13: 5.53238
A14: 4 | B14: AARTIIND | C14: 642.35 | D14: 640.78 | E14: 635.57 | F14: 628.78 | G14: 623.57 | H14: 647.57 | I14: 652.78 | J14: 659.57 | K14: 646 | L14: 634 | M14: 9.95446
A15: 5 | B15: AAVAS | C15: 1516.25 | D15: 1514.40 | E15: 1498.90 | F15: 1481.55 | G15: 1466.05 | H15: 1531.75 | I15: 1547.25 | J15: 1564.60 | K15: 1529.9 | L15: 1497.05 | M15: 0.83606
A16: 6 | B16: ABB | C16: 4791.55 | D16: 4771.37 | E16: 4735.58 | F16: 4679.62 | G16: 4643.83 | H16: 4827.33 | I16: 4863.12 | J16: 4919.08 | K16: 4807.15 | L16: 4715.4 | M16: 0.87854
A17: 7 | B17: ABBOTINDIA | C17: 25568.05 | D17: 25465.88 | E17: 25122.52 | F17: 24676.98 | G17: 24333.62 | H17: 25911.42 | I17: 26254.78 | J17: 26700.32 | K17: 25809.25 | L17: 25020.35 | M17: 0.32932
A18: 8 | B18: ACC | C18: 2492.9 | D18: 2504.30 | E18: 2443.60 | F18: 2394.30 | G18: 2333.60 | H18: 2553.60 | I18: 2614.30 | J18: 2663.60 | K18: 2565 | L18: 2455 | M18: 16.63558
A19: 9 | B19: ADANIENT | C19: 3064.65 | D19: 3026.80 | E19: 2960.90 | F19: 2857.15 | G19: 2791.25 | H19: 3130.55 | I19: 3196.45 | J19: 3300.20 | K19: 3092.7 | L19: 2923.05 | M19: 44.02976
A20: 10 | B20: ADANIGREEN | C20: 1715.5 | D20: 1712.98 | E20: 1675.97 | F20: 1636.43 | G20: 1599.42 | H20: 1752.52 | I20: 1789.53 | J20: 1829.07 | K20: 1750 | L20: 1673.45 | M20: 34.35566
A21: 11 | B21: ADANIPORTS | C21: 1196.65 | D21: 1184.18 | E21: 1163.47 | F21: 1130.28 | G21: 1109.57 | H21: 1217.37 | I21: 1238.08 | J21: 1271.27 | K21: 1204.9 | L21: 1151 | M21: 67.68033
A22: 12 | B22: ADANIPOWER | C22: 570.45 | D22: 564.47 | E22: 558.48 | F22: 546.52 | G22: 540.53 | H22: 576.43 | I22: 582.42 | J22: 594.38 | K22: 570.45 | L22: 552.5 | M22: 57.30005
A23: 13 | B23: ATGL | C23: 1035.7 | D23: 1031.25 | E23: 1009.50 | F23: 983.30 | G23: 961.55 | H23: 1057.45 | I23: 1079.20 | J23: 1105.40 | K23: 1053 | L23: 1005.05 | M23: 18.16753
A24: 14 | B24: AWL | C24: 360.65 | D24: 358.93 | E24: 353.62 | F24: 346.58 | G24: 341.27 | H24: 365.97 | I24: 371.28 | J24: 378.32 | K24: 364.25 | L24: 351.9 | M24: 22.66795
A25: 15 | B25: ABCAPITAL | C25: 168.3 | D25: 167.75 | E25: 166.35 | F25: 164.40 | G25: 163.00 | H25: 169.70 | I25: 171.10 | J25: 173.05 | K25: 169.15 | L25: 165.8 | M25: 29.97788
A26: 16 | B26: ABFRL | C26: 243.05 | D26: 244.38 | E26: 239.77 | F26: 236.48 | G26: 231.87 | H26: 247.67 | I26: 252.28 | J26: 255.57 | K26: 249 | L26: 241.1 | M26: 58.47555
A27: 17 | B27: AEGISCHEM | C27: 380.35 | D27: 382.50 | E27: 375.00 | F27: 369.65 | G27: 362.15 | H27: 387.85 | I27: 395.35 | J27: 400.70 | K27: 390 | L27: 377.15 | M27: 2.92263
A28: 18 | B28: AETHER | C28: 847.75 | D28: 847.98 | E28: 842.27 | F28: 836.78 | G28: 831.07 | H28: 853.47 | I28: 859.18 | J28: 864.67 | K28: 853.7 | L28: 842.5 | M28: 0.58442
A29: 19 | B29: AFFLE | C29: 1199.75 | D29: 1212.48 | E29: 1184.82 | F29: 1169.88 | G29: 1142.22 | H29: 1227.42 | I29: 1255.08 | J29: 1270.02 | K29: 1240.15 | L29: 1197.55 | M29: 2.95763
A30: 20 | B30: AIAENG | C30: 4026.8 | D30: 4018.12 | E30: 3940.23 | F30: 3853.67 | G30: 3775.78 | H30: 4104.68 | I30: 4182.57 | J30: 4269.13 | K30: 4096 | L30: 3931.55 | M30: 0.97321
A31: 21 | B31: AJANTPHARM | C31: 2177.4 | D31: 2185.70 | E31: 2161.45 | F31: 2145.50 | G31: 2121.25 | H31: 2201.65 | I31: 2225.90 | J31: 2241.85 | K31: 2209.95 | L31: 2169.75 | M31: 0.48685
A32: 22 | B32: APLLTD | C32: 921.1 | D32: 927.23 | E32: 909.22 | F32: 897.33 | G32: 879.32 | H32: 939.12 | I32: 957.13 | J32: 969.02 | K32: 945.25 | L32: 915.35 | M32: 3.27866
A33: 23 | B33: ALKEM | C33: 4975.35 | D33: 4979.57 | E33: 4936.23 | F33: 4897.12 | G33: 4853.78 | H33: 5018.68 | I33: 5062.02 | J33: 5101.13 | K33: 5022.9 | L33: 4940.45 | M33: 0.62787
A34: 24 | B34: ALKYLAMINE | C34: 2261.1 | D34: 2266.50 | E34: 2249.60 | F34: 2238.10 | G34: 2221.20 | H34: 2278.00 | I34: 2294.90 | J34: 2306.40 | K34: 2283.4 | L34: 2255 | M34: 0.29092
A35: 25 | B35: ARE&M | C35: 837.95 | D35: 831.13 | E35: 820.77 | F35: 803.58 | G35: 793.22 | H35: 848.32 | I35: 858.68 | J35: 875.87 | K35: 841.5 | L35: 813.95 | M35: 8.41301
A36: 26 | B36: AMBER | C36: 4390.9 | D36: 4332.27 | E36: 4220.53 | F36: 4050.17 | G36: 3938.43 | H36: 4502.63 | I36: 4614.37 | J36: 4784.73 | K36: 4444 | L36: 4161.9 | M36: 5.08566
A37: 27 | B37: AMBUJACEM | C37: 574.1 | D37: 571.93 | E37: 564.97 | F37: 555.83 | G37: 548.87 | H37: 581.07 | I37: 588.03 | J37: 597.17 | K37: 578.9 | L37: 562.8 | M37: 78.28638
A38: 28 | B38: ANGELONE | C38: 2950.3 | D38: 2918.52 | E38: 2878.03 | F38: 2805.77 | G38: 2765.28 | H38: 2990.78 | I38: 3031.27 | J38: 3103.53 | K38: 2959 | L38: 2846.25 | M38: 7.76276
A39: 29 | B39: ANURAS | C39: 930 | D39: 940.83 | E39: 914.17 | F39: 898.33 | G39: 871.67 | H39: 956.67 | I39: 983.33 | J39: 999.17 | K39: 967.5 | L39: 925 | M39: 5.62016
A40: 30 | B40: APARINDS | C40: 5752.55 | D40: 5669.20 | E40: 5550.40 | F40: 5348.25 | G40: 5229.45 | H40: 5871.35 | I40: 5990.15 | J40: 6192.30 | K40: 5788 | L40: 5467.05 | M40: 1.25828
A41: 31 | B41: APLAPOLLO | C41: 1531.5 | D41: 1515.60 | E41: 1487.30 | F41: 1443.10 | G41: 1414.80 | H41: 1559.80 | I41: 1588.10 | J41: 1632.30 | K41: 1543.9 | L41: 1471.4 | M41: 17.33644
A42: 32 | B42: APOLLOHOSP | C42: 6329.75 | D42: 6285.52 | E42: 6222.03 | F42: 6114.32 | G42: 6050.83 | H42: 6393.23 | I42: 6456.72 | J42: 6564.43 | K42: 6349 | L42: 6177.8 | M42: 5.54591
A43: 33 | B43: APOLLOTYRE | C43: 527.25 | D43: 523.78 | E43: 518.62 | F43: 509.98 | G43: 504.82 | H43: 532.42 | I43: 537.58 | J43: 546.22 | K43: 528.95 | L43: 515.15 | M43: 13.28581
A44: 34 | B44: APTUS | C44: 370.35 | D44: 369.58 | E44: 365.37 | F44: 360.38 | G44: 356.17 | H44: 374.57 | I44: 378.78 | J44: 383.77 | K44: 373.8 | L44: 364.6 | M44: 2.84412
A45: 35 | B45: ACI | C45: 619.7 | D45: 621.57 | E45: 613.13 | F45: 606.57 | G45: 598.13 | H45: 628.13 | I45: 636.57 | J45: 643.13 | K45: 630 | L45: 615 | M45: 1.66924
A46: 36 | B46: ASAHIINDIA | C46: 539.25 | D46: 548.63 | E46: 528.72 | F46: 518.18 | G46: 498.27 | H46: 559.17 | I46: 579.08 | J46: 589.62 | K46: 568.55 | L46: 538.1 | M46: 3.68329
A47: 37 | B47: ASHOKLEY | C47: 173.7 | D47: 172.50 | E47: 169.95 | F47: 166.20 | G47: 163.65 | H47: 176.25 | I47: 178.80 | J47: 182.55 | K47: 175.05 | L47: 168.75 | M47: 165.90997
A48: 38 | B48: ASIANPAINT | C48: 2976.05 | D48: 2968.18 | E48: 2947.92 | F48: 2919.78 | G48: 2899.52 | H48: 2996.32 | I48: 3016.58 | J48: 3044.72 | K48: 2988.45 | L48: 2940.05 | M48: 18.62723
A49: 39 | B49: ASTERDM | C49: 425.1 | D49: 427.20 | E49: 420.85 | F49: 416.60 | G49: 410.25 | H49: 431.45 | I49: 437.80 | J49: 442.05 | K49: 433.55 | L49: 422.95 | M49: 3.00072
A50: 40 | B50: ASTRAL | C50: 1868.75 | D50: 1851.25 | E50: 1827.50 | F50: 1786.25 | G50: 1762.50 | H50: 1892.50 | I50: 1916.25 | J50: 1957.50 | K50: 1875 | L50: 1810 | M50: 10.46879
A51: 41 | B51: ATUL | C51: 6279.35 | D51: 6310.45 | E51: 6234.90 | F51: 6190.45 | G51: 6114.90 | H51: 6354.90 | I51: 6430.45 | J51: 6474.90 | K51: 6386 | L51: 6266 | M51: 0.40349
A52: 42 | B52: AUBANK | C52: 626.35 | D52: 640.13 | E52: 610.27 | F52: 594.18 | G52: 564.32 | H52: 656.22 | I52: 686.08 | J52: 702.17 | K52: 670 | L52: 624.05 | M52: 216.66348
A53: 43 | B53: AUROPHARMA | C53: 1160.85 | D53: 1157.73 | E53: 1145.17 | F53: 1129.48 | G53: 1116.92 | H53: 1173.42 | I53: 1185.98 | J53: 1201.67 | K53: 1170.3 | L53: 1142.05 | M53: 24.8762
A54: 44 | B54: AVANTIFEED | C54: 507.8 | D54: 515.38 | E54: 496.77 | F54: 485.73 | G54: 467.12 | H54: 526.42 | I54: 545.03 | J54: 556.07 | K54: 534 | L54: 504.35 | M54: 7.08647
A55: 45 | B55: DMART | C55: 3749.4 | D55: 3734.20 | E55: 3704.20 | F55: 3659.00 | G55: 3629.00 | H55: 3779.40 | I55: 3809.40 | J55: 3854.60 | K55: 3764.2 | L55: 3689 | M55: 2.16522
A56: 46 | B56: AXISBANK | C56: 1061.25 | D56: 1055.08 | E56: 1042.17 | F56: 1023.08 | G56: 1010.17 | H56: 1074.17 | I56: 1087.08 | J56: 1106.17 | K56: 1068 | L56: 1036 | M56: 111.88604
A57: 47 | B57: BAJAJ-AUTO | C57: 7548.8 | D57: 7556.27 | E57: 7472.53 | F57: 7396.27 | G57: 7312.53 | H57: 7632.53 | I57: 7716.27 | J57: 7792.53 | K57: 7640 | L57: 7480 | M57: 4.57853
A58: 48 | B58: BAJFINANCE | C58: 7191.65 | D58: 7167.23 | E58: 7109.52 | F58: 7027.38 | G58: 6969.67 | H58: 7249.37 | I58: 7307.08 | J58: 7389.22 | K58: 7224.95 | L58: 7085.1 | M58: 18.60361
A59: 49 | B59: BAJAJFINSV | C59: 1636.95 | D59: 1632.35 | E59: 1623.10 | F59: 1609.25 | G59: 1600.00 | H59: 1646.20 | I59: 1655.45 | J59: 1669.30 | K59: 1641.6 | L59: 1618.5 | M59: 9.4022
A60: 50 | B60: BAJAJHLDNG | C60: 8246.55 | D60: 8268.03 | E60: 8156.07 | F60: 8065.58 | G60: 7953.62 | H60: 8358.52 | I60: 8470.48 | J60: 8560.97 | K60: 8380 | L60: 8177.55 | M60: 0.32525
A61: 51 | B61: BALAMINES | C61: 2349.85 | D61: 2355.35 | E61: 2330.70 | F61: 2311.55 | G61: 2286.90 | H61: 2374.50 | I61: 2399.15 | J61: 2418.30 | K61: 2380 | L61: 2336.2 | M61: 0.34971
A62: 52 | B62: BALKRISIND | C62: 2508.7 | D62: 2514.38 | E62: 2478.77 | F62: 2448.83 | G62: 2413.22 | H62: 2544.32 | I62: 2579.93 | J62: 2609.87 | K62: 2550 | L62: 2484.45 | M62: 5.99618
A63: 53 | B63: BALRAMCHIN | C63: 391.85 | D63: 391.12 | E63: 385.98 | F63: 380.12 | G63: 374.98 | H63: 396.98 | I63: 402.12 | J63: 407.98 | K63: 396.25 | L63: 385.25 | M63: 25.4686
A64: 54 | B64: BANDHANBNK | C64: 223.3 | D64: 224.05 | E64: 221.40 | F64: 219.50 | G64: 216.85 | H64: 225.95 | I64: 228.60 | J64: 230.50 | K64: 226.7 | L64: 222.15 | M64: 102.12834
A65: 55 | B65: BANKBARODA | C65: 234.25 | D65: 232.55 | E65: 229.35 | F65: 224.45 | G65: 221.25 | H65: 237.45 | I65: 240.65 | J65: 245.55 | K65: 235.75 | L65: 227.65 | M65: 206.41625
A66: 56 | B66: BANKINDIA | C66: 135.5 | D66: 134.85 | E66: 133.05 | F66: 130.60 | G66: 128.80 | H66: 137.30 | I66: 139.10 | J66: 141.55 | K66: 136.65 | L66: 132.4 | M66: 163.80958
A67: 57 | B67: MAHABANK | C67: 54 | D67: 54.32 | E67: 53.13 | F67: 52.27 | G67: 51.08 | H67: 55.18 | I67: 56.37 | J67: 57.23 | K67: 55.5 | L67: 53.45 | M67: 495.17058
A68: 58 | B68: BASF | C68: 2975.15 | D68: 2972.85 | E68: 2954.30 | F68: 2933.45 | G68: 2914.90 | H68: 2993.70 | I68: 3012.25 | J68: 3033.10 | K68: 2991.4 | L68: 2952 | M68: 0.0767
A69: 59 | B69: BATAINDIA | C69: 1458.25 | D69: 1452.05 | E69: 1431.20 | F69: 1404.15 | G69: 1383.30 | H69: 1479.10 | I69: 1499.95 | J69: 1527.00 | K69: 1472.9 | L69: 1425 | M69: 5.56305
A70: 60 | B70: BAYERCROP | C70: 5867.95 | D70: 5837.02 | E70: 5788.93 | F70: 5709.92 | G70: 5661.83 | H70: 5916.03 | I70: 5964.12 | J70: 6043.13 | K70: 5885.1 | L70: 5758 | M70: 0.10657
A71: 61 | B71: BEML | C71: 3186.4 | D71: 3206.12 | E71: 3118.23 | F71: 3050.07 | G71: 2962.18 | H71: 3274.28 | I71: 3362.17 | J71: 3430.33 | K71: 3294 | L71: 3137.95 | M71: 2.94684
A72: 62 | B72: BERGEPAINT | C72: 559.85 | D72: 558.28 | E72: 552.67 | F72: 545.48 | G72: 539.87 | H72: 565.47 | I72: 571.08 | J72: 578.27 | K72: 563.9 | L72: 551.1 | M72: 5.9584
A73: 63 | B73: BDL | C73: 1675.05 | D73: 1670.52 | E73: 1650.63 | F73: 1626.22 | G73: 1606.33 | H73: 1694.93 | I73: 1714.82 | J73: 1739.23 | K73: 1690.4 | L73: 1646.1 | M73: 3.90895
A74: 64 | B74: BEL | C74: 190.9 | D74: 190.72 | E74: 187.73 | F74: 184.57 | G74: 181.58 | H74: 193.88 | I74: 196.87 | J74: 200.03 | K74: 193.7 | L74: 187.55 | M74: 289.19512
A75: 65 | B75: BHARATFORG | C75: 1243.65 | D75: 1231.37 | E75: 1212.73 | F75: 1181.82 | G75: 1163.18 | H75: 1262.28 | I75: 1280.92 | J75: 1311.83 | K75: 1250 | L75: 1200.45 | M75: 18.42394
A76: 66 | B76: BHEL | C76: 221.3 | D76: 221.47 | E76: 219.73 | F76: 218.17 | G76: 216.43 | H76: 223.03 | I76: 224.77 | J76: 226.33 | K76: 223.2 | L76: 219.9 | M76: 222.69048
A77: 67 | B77: BPCL | C77: 492.65 | D77: 487.82 | E77: 474.23 | F77: 455.82 | G77: 442.23 | H77: 506.23 | I77: 519.82 | J77: 538.23 | K77: 501.4 | L77: 469.4 | M77: 139.34742
A78: 68 | B78: BHARTIARTL | C78: 1162.15 | D78: 1163.30 | E78: 1156.85 | F78: 1151.55 | G78: 1145.10 | H78: 1168.60 | I78: 1175.05 | J78: 1180.35 | K78: 1169.75 | L78: 1158 | M78: 40.15858
A79: 69 | B79: BIKAJI | C79: 583.7 | D79: 581.23 | E79: 576.67 | F79: 569.63 | G79: 565.07 | H79: 588.27 | I79: 592.83 | J79: 599.87 | K79: 585.8 | L79: 574.2 | M79: 1.65195
A80: 70 | B80: BIOCON | C80: 260.1 | D80: 259.35 | E80: 257.15 | F80: 254.20 | G80: 252.00 | H80: 262.30 | I80: 264.50 | J80: 267.45 | K80: 261.55 | L80: 256.4 | M80: 33.14421
A81: 71 | B81: BIRLACORPN | C81: 1470.3 | D81: 1449.18 | E81: 1419.12 | F81: 1367.93 | G81: 1337.87 | H81: 1500.37 | I81: 1530.43 | J81: 1581.62 | K81: 1479.25 | L81: 1398 | M81: 1.1439
A82: 72 | B82: BSOFT | C82: 832.6 | D82: 829.80 | E82: 823.90 | F82: 815.20 | G82: 809.30 | H82: 838.50 | I82: 844.40 | J82: 853.10 | K82: 835.7 | L82: 821.1 | M82: 21.54245
A83: 73 | B83: BLS | C83: 401.6 | D83: 400.58 | E83: 392.52 | F83: 383.43 | G83: 375.37 | H83: 409.67 | I83: 417.73 | J83: 426.82 | K83: 408.65 | L83: 391.5 | M83: 44.57052
A84: 74 | B84: BLUEDART | C84: 6561.45 | D84: 6594.35 | E84: 6498.70 | F84: 6435.95 | G84: 6340.30 | H84: 6657.10 | I84: 6752.75 | J84: 6815.50 | K84: 6690 | L84: 6531.6 | M84: 0.10475
A85: 75 | B85: BLUESTARCO | C85: 1078.9 | D85: 1078.52 | E85: 1051.08 | F85: 1023.27 | G85: 995.83 | H85: 1106.33 | I85: 1133.77 | J85: 1161.58 | K85: 1105.95 | L85: 1050.7 | M85: 4.76632
A86: 76 | B86: BBTC | C86: 1657.7 | D86: 1661.88 | E86: 1645.82 | F86: 1633.93 | G86: 1617.87 | H86: 1673.77 | I86: 1689.83 | J86: 1701.72 | K86: 1677.95 | L86: 1650 | M86: 1.02584
A87: 77 | B87: BORORENEW | C87: 627.7 | D87: 631.07 | E87: 619.13 | F87: 610.57 | G87: 598.63 | H87: 639.63 | I87: 651.57 | J87: 660.13 | K87: 643 | L87: 622.5 | M87: 22.18872
A88: 78 | B88: BOSCHLTD | C88: 23248.8 | D88: 23124.18 | E88: 22899.67 | F88: 22550.53 | G88: 22326.02 | H88: 23473.32 | I88: 23697.83 | J88: 24046.97 | K88: 23348.7 | L88: 22775.05 | M88: 0.64222
A89: 79 | B89: BRIGADE | C89: 1007.05 | D89: 997.67 | E89: 984.48 | F89: 961.92 | G89: 948.73 | H89: 1020.23 | I89: 1033.42 | J89: 1055.98 | K89: 1010.85 | L89: 975.1 | M89: 2.14591
A90: 80 | B90: BCG | C90: 18.45 | D90: 18.50 | E90: 18.20 | F90: 17.95 | G90: 17.65 | H90: 18.75 | I90: 19.05 | J90: 19.30 | K90: 18.8 | L90: 18.25 | M90: 151.87754
A91: 81 | B91: BRITANNIA | C91: 5136.9 | D91: 5155.87 | E91: 5092.23 | F91: 5047.57 | G91: 4983.93 | H91: 5200.53 | I91: 5264.17 | J91: 5308.83 | K91: 5219.5 | L91: 5111.2 | M91: 2.7571
A92: 82 | B92: BSE | C92: 2128.9 | D92: 2139.67 | E92: 2109.33 | F92: 2089.77 | G92: 2059.43 | H92: 2159.23 | I92: 2189.57 | J92: 2209.13 | K92: 2170 | L92: 2120.1 | M92: 4.44187
A93: 83 | B93: MAPMYINDIA | C93: 1964.35 | D93: 1987.75 | E93: 1933.60 | F93: 1902.85 | G93: 1848.70 | H93: 2018.50 | I93: 2072.65 | J93: 2103.40 | K93: 2041.9 | L93: 1957 | M93: 0.69199
A94: 84 | B94: CAMPUS | C94: 272.05 | D94: 271.85 | E94: 268.70 | F94: 265.35 | G94: 262.20 | H94: 275.20 | I94: 278.35 | J94: 281.70 | K94: 275 | L94: 268.5 | M94: 3.71172
A95: 85 | B95: CANFINHOME | C95: 766 | D95: 768.97 | E95: 759.63 | F95: 753.27 | G95: 743.93 | H95: 775.33 | I95: 784.67 | J95: 791.03 | K95: 778.3 | L95: 762.6 | M95: 5.57047
A96: 86 | B96: CANBK | C96: 474.55 | D96: 474.22 | E96: 468.43 | F96: 462.32 | G96: 456.53 | H96: 480.33 | I96: 486.12 | J96: 492.23 | K96: 480 | L96: 468.1 | M96: 88.02489
A97: 87 | B97: CGCL | C97: 996 | D97: 994.15 | E97: 963.40 | F97: 930.80 | G97: 900.05 | H97: 1026.75 | I97: 1057.50 | J97: 1090.10 | K97: 1024.9 | L97: 961.55 | M97: 7.51197
A98: 88 | B98: CARBORUNIV | C98: 1138.95 | D98: 1140.07 | E98: 1128.48 | F98: 1118.02 | G98: 1106.43 | H98: 1150.53 | I98: 1162.12 | J98: 1172.58 | K98: 1151.65 | L98: 1129.6 | M98: 0.54274
A99: 89 | B99: CASTROLIND | C99: 189.25 | D99: 184.50 | E99: 178.00 | F99: 166.75 | G99: 160.25 | H99: 195.75 | I99: 202.25 | J99: 213.50 | K99: 191 | L99: 173.25 | M99: 166.22108
A100: 90 | B100: CCL | C100: 668.3 | D100: 662.13 | E100: 650.27 | F100: 632.23 | G100: 620.37 | H100: 680.17 | I100: 692.03 | J100: 710.07 | K100: 674 | L100: 644.1 | M100: 5.13506
A101: 91 | B101: CEATLTD | C101: 2724.9 | D101: 2754.92 | E101: 2675.98 | F101: 2627.07 | G101: 2548.13 | H101: 2803.83 | I101: 2882.77 | J101: 2931.68 | K101: 2833.85 | L101: 2706 | M101: 4.41149
A102: 92 | B102: CENTRALBK | C102: 56 | D102: 55.98 | E102: 54.47 | F102: 52.93 | G102: 51.42 | H102: 57.52 | I102: 59.03 | J102: 60.57 | K102: 57.5 | L102: 54.45 | M102: 386.57218
A103: 93 | B103: CDSL | C103: 1765.4 | D103: 1773.47 | E103: 1751.93 | F103: 1738.47 | G103: 1716.93 | H103: 1786.93 | I103: 1808.47 | J103: 1821.93 | K103: 1795 | L103: 1760 | M103: 3.90789
A104: 94 | B104: CENTURYPLY | C104: 793.3 | D104: 795.80 | E104: 783.60 | F104: 773.90 | G104: 761.70 | H104: 805.50 | I104: 817.70 | J104: 827.40 | K104: 808 | L104: 786.1 | M104: 1.98388
A105: 95 | B105: CENTURYTEX | C105: 1418.25 | D105: 1399.08 | E105: 1369.17 | F105: 1320.08 | G105: 1290.17 | H105: 1448.17 | I105: 1478.08 | J105: 1527.17 | K105: 1429 | L105: 1350 | M105: 2.73861
A106: 96 | B106: CERA | C106: 8182.25 | D106: 8227.53 | E106: 8114.72 | F106: 8047.18 | G106: 7934.37 | H106: 8295.07 | I106: 8407.88 | J106: 8475.42 | K106: 8340.35 | L106: 8160 | M106: 0.10619
A107: 97 | B107: CESC | C107: 139.1 | D107: 138.08 | E107: 135.52 | F107: 131.93 | G107: 129.37 | H107: 141.67 | I107: 144.23 | J107: 147.82 | K107: 140.65 | L107: 134.5 | M107: 143.97836
A108: 98 | B108: CGPOWER | C108: 467.05 | D108: 464.40 | E108: 451.80 | F108: 436.55 | G108: 423.95 | H108: 479.65 | I108: 492.25 | J108: 507.50 | K108: 477 | L108: 449.15 | M108: 26.76099
A109: 99 | B109: CHALET | C109: 757.2 | D109: 758.48 | E109: 748.82 | F109: 740.43 | G109: 730.77 | H109: 766.87 | I109: 776.53 | J109: 784.92 | K109: 768.15 | L109: 750.1 | M109: 2.41577
A110: 100 | B110: CHAMBLFERT | C110: 370.75 | D110: 370.43 | E110: 366.92 | F110: 363.08 | G110: 359.57 | H110: 374.27 | I110: 377.78 | J110: 381.62 | K110: 373.95 | L110: 366.6 | M110: 8.64466
A111: 101 | B111: CHEMPLASTS | C111: 473.4 | D111: 472.03 | E111: 467.72 | F111: 462.03 | G111: 457.72 | H111: 477.72 | I111: 482.03 | J111: 487.72 | K111: 476.35 | L111: 466.35 | M111: 0.7041
A112: 102 | B112: CHOLAHLDNG | C112: 1137.2 | D112: 1130.67 | E112: 1111.53 | F112: 1085.87 | G112: 1066.73 | H112: 1156.33 | I112: 1175.47 | J112: 1201.13 | K112: 1149.8 | L112: 1105 | M112: 5.35052
A113: 103 | B113: CHOLAFIN | C113: 1230.8 | D113: 1240.55 | E113: 1209.75 | F113: 1188.70 | G113: 1157.90 | H113: 1261.60 | I113: 1292.40 | J113: 1313.45 | K113: 1271.35 | L113: 1219.5 | M113: 25.11468
A114: 104 | B114: CIEINDIA | C114: 478.6 | D114: 480.10 | E114: 473.75 | F114: 468.90 | G114: 462.55 | H114: 484.95 | I114: 491.30 | J114: 496.15 | K114: 486.45 | L114: 475.25 | M114: 3.49815
A115: 105 | B115: CIPLA | C115: 1336.85 | D115: 1342.38 | E115: 1319.77 | F115: 1302.68 | G115: 1280.07 | H115: 1359.47 | I115: 1382.08 | J115: 1399.17 | K115: 1365 | L115: 1325.3 | M115: 24.80508
A116: 106 | B116: CUB | C116: 143.4 | D116: 142.93 | E116: 141.87 | F116: 140.33 | G116: 139.27 | H116: 144.47 | I116: 145.53 | J116: 147.07 | K116: 144 | L116: 141.4 | M116: 22.19843
A117: 107 | B117: CLEAN | C117: 1425.9 | D117: 1432.83 | E117: 1412.17 | F117: 1398.43 | G117: 1377.77 | H117: 1446.57 | I117: 1467.23 | J117: 1480.97 | K117: 1453.5 | L117: 1419.1 | M117: 0.7683
A118: 108 | B118: COALINDIA | C118: 412.8 | D118: 406.33 | E118: 397.97 | F118: 383.13 | G118: 374.77 | H118: 421.17 | I118: 429.53 | J118: 444.37 | K118: 414.7 | L118: 391.5 | M118: 271.49058
A119: 109 | B119: COCHINSHIP | C119: 860.05 | D119: 866.23 | E119: 849.27 | F119: 838.48 | G119: 821.52 | H119: 877.02 | I119: 893.98 | J119: 904.77 | K119: 883.2 | L119: 855.45 | M119: 17.26017
A120: 110 | B120: COFORGE | C120: 6254.75 | D120: 6259.67 | E120: 6195.33 | F120: 6135.92 | G120: 6071.58 | H120: 6319.08 | I120: 6383.42 | J120: 6442.83 | K120: 6324 | L120: 6200.25 | M120: 4.23776
A121: 111 | B121: COLPAL | C121: 2526.55 | D121: 2514.85 | E121: 2496.70 | F121: 2466.85 | G121: 2448.70 | H121: 2544.70 | I121: 2562.85 | J121: 2592.70 | K121: 2533 | L121: 2485 | M121: 2.76386
A122: 112 | B122: CAMS | C122: 2742.25 | D122: 2732.47 | E122: 2717.48 | F122: 2692.72 | G122: 2677.73 | H122: 2757.23 | I122: 2772.22 | J122: 2796.98 | K122: 2747.45 | L122: 2707.7 | M122: 1.31601
A123: 113 | B123: CONCOR | C123: 860.35 | D123: 847.80 | E123: 827.75 | F123: 795.15 | G123: 775.10 | H123: 880.40 | I123: 900.45 | J123: 933.05 | K123: 867.85 | L123: 815.2 | M123: 60.47472
A124: 114 | B124: COROMANDEL | C124: 1137.55 | D124: 1137.50 | E124: 1128.60 | F124: 1119.65 | G124: 1110.75 | H124: 1146.45 | I124: 1155.35 | J124: 1164.30 | K124: 1146.4 | L124: 1128.55 | M124: 2.09061
A125: 115 | B125: CRAFTSMAN | C125: 4673.5 | D125: 4727.83 | E125: 4585.67 | F125: 4497.83 | G125: 4355.67 | H125: 4815.67 | I125: 4957.83 | J125: 5045.67 | K125: 4870 | L125: 4640 | M125: 1.33615
A126: 116 | B126: CREDITACC | C126: 1558.45 | D126: 1577.52 | E126: 1535.13 | F126: 1511.82 | G126: 1469.43 | H126: 1600.83 | I126: 1643.22 | J126: 1666.53 | K126: 1619.9 | L126: 1554.2 | M126: 3.3607
A127: 117 | B127: CRISIL | C127: 3889.95 | D127: 3873.57 | E127: 3840.63 | F127: 3791.32 | G127: 3758.38 | H127: 3922.88 | I127: 3955.82 | J127: 4005.13 | K127: 3906.5 | L127: 3824.25 | M127: 0.27387
A128: 118 | B128: CROMPTON | C128: 300.9 | D128: 302.37 | E128: 298.03 | F128: 295.17 | G128: 290.83 | H128: 305.23 | I128: 309.57 | J128: 312.43 | K128: 306.7 | L128: 299.5 | M128: 20.67278
A129: 119 | B129: CSBBANK | C129: 374.6 | D129: 378.58 | E129: 364.92 | F129: 355.23 | G129: 341.57 | H129: 388.27 | I129: 401.93 | J129: 411.62 | K129: 392.25 | L129: 368.9 | M129: 11.22187
A130: 120 | B130: CUMMINSIND | C130: 2255.15 | D130: 2236.65 | E130: 2182.55 | F130: 2109.95 | G130: 2055.85 | H130: 2309.25 | I130: 2363.35 | J130: 2435.95 | K130: 2290.75 | L130: 2164.05 | M130: 11.35151
A131: 121 | B131: CYIENT | C131: 2006.45 | D131: 1987.32 | E131: 1891.53 | F131: 1776.62 | G131: 1680.83 | H131: 2102.23 | I131: 2198.02 | J131: 2312.93 | K131: 2083.1 | L131: 1872.4 | M131: 10.43453
A132: 122 | B132: DABUR | C132: 534.25 | D132: 528.40 | E132: 520.85 | F132: 507.45 | G132: 499.90 | H132: 541.80 | I132: 549.35 | J132: 562.75 | K132: 535.95 | L132: 515 | M132: 13.1611
A133: 123 | B133: DALBHARAT | C133: 2256.45 | D133: 2251.93 | E133: 2225.52 | F133: 2194.58 | G133: 2168.17 | H133: 2282.87 | I133: 2309.28 | J133: 2340.22 | K133: 2278.35 | L133: 2221 | M133: 4.58573
A134: 124 | B134: DATAPATTNS | C134: 1869.15 | D134: 1866.52 | E134: 1853.68 | F134: 1838.22 | G134: 1825.38 | H134: 1881.98 | I134: 1894.82 | J134: 1910.28 | K134: 1879.35 | L134: 1851.05 | M134: 0.7708
A135: 125 | B135: DCMSHRIRAM | C135: 1005.85 | D135: 1007.95 | E135: 992.90 | F135: 979.95 | G135: 964.90 | H135: 1020.90 | I135: 1035.95 | J135: 1048.90 | K135: 1023 | L135: 995 | M135: 0.48613
A136: 126 | B136: DEEPAKFERT | C136: 628.1 | D136: 632.47 | E136: 621.63 | F136: 615.17 | G136: 604.33 | H136: 638.93 | I136: 649.77 | J136: 656.23 | K136: 643.3 | L136: 626 | M136: 4.36421
A137: 127 | B137: DEEPAKNTR | C137: 2240.1 | D137: 2237.70 | E137: 2225.40 | F137: 2210.70 | G137: 2198.40 | H137: 2252.40 | I137: 2264.70 | J137: 2279.40 | K137: 2250 | L137: 2223 | M137: 1.3459
A138: 128 | B138: DELHIVERY | C138: 427.85 | D138: 422.30 | E138: 411.60 | F138: 395.35 | G138: 384.65 | H138: 438.55 | I138: 449.25 | J138: 465.50 | K138: 433 | L138: 406.05 | M138: 59.9622
A139: 129 | B139: DELTACORP | C139: 138.45 | D139: 138.77 | E139: 136.73 | F139: 135.02 | G139: 132.98 | H139: 140.48 | I139: 142.52 | J139: 144.23 | K139: 140.8 | L139: 137.05 | M139: 19.95221
A140: 130 | B140: DEVYANI | C140: 171.55 | D140: 173.82 | E140: 168.78 | F140: 166.02 | G140: 160.98 | H140: 176.58 | I140: 181.62 | J140: 184.38 | K140: 178.85 | L140: 171.05 | M140: 30.74552
A141: 131 | B141: DIVISLAB | C141: 3570.6 | D141: 3568.90 | E141: 3551.80 | F141: 3533.00 | G141: 3515.90 | H141: 3587.70 | I141: 3604.80 | J141: 3623.60 | K141: 3586 | L141: 3550.1 | M141: 7.6597
A142: 132 | B142: DIXON | C142: 5871.65 | D142: 5878.32 | E142: 5835.43 | F142: 5799.22 | G142: 5756.33 | H142: 5914.53 | I142: 5957.42 | J142: 5993.63 | K142: 5921.2 | L142: 5842.1 | M142: 2.1439
A143: 133 | B143: DLF | C143: 767.35 | D143: 764.77 | E143: 757.83 | F143: 748.32 | G143: 741.38 | H143: 774.28 | I143: 781.22 | J143: 790.73 | K143: 771.7 | L143: 755.25 | M143: 55.04653
A144: 134 | B144: LALPATHLAB | C144: 2429.25 | D144: 2417.17 | E144: 2375.38 | F144: 2321.52 | G144: 2279.73 | H144: 2471.03 | I144: 2512.82 | J144: 2566.68 | K144: 2458.95 | L144: 2363.3 | M144: 1.69437
A145: 135 | B145: DRREDDY | C145: 5843.7 | D145: 5825.50 | E145: 5758.40 | F145: 5673.10 | G145: 5606.00 | H145: 5910.80 | I145: 5977.90 | J145: 6063.20 | K145: 5892.6 | L145: 5740.2 | M145: 3.01914
A146: 136 | B146: EIDPARRY | C146: 627.4 | D146: 627.02 | E146: 618.38 | F146: 609.37 | G146: 600.73 | H146: 636.03 | I146: 644.67 | J146: 653.68 | K146: 635.65 | L146: 618 | M146: 5.93051
A147: 137 | B147: EASEMYTRIP | C147: 46.7 | D147: 47.00 | E147: 46.05 | F147: 45.40 | G147: 44.45 | H147: 47.65 | I147: 48.60 | J147: 49.25 | K147: 47.95 | L147: 46.35 | M147: 125.982
A148: 138 | B148: ECLERX | C148: 2697.4 | D148: 2672.45 | E148: 2634.95 | F148: 2572.50 | G148: 2535.00 | H148: 2734.90 | I148: 2772.40 | J148: 2834.85 | K148: 2709.95 | L148: 2610 | M148: 0.48049
A149: 139 | B149: EICHERMOT | C149: 3669.05 | D149: 3646.70 | E149: 3612.40 | F149: 3555.75 | G149: 3521.45 | H149: 3703.35 | I149: 3737.65 | J149: 3794.30 | K149: 3681 | L149: 3590.05 | M149: 9.36432
A150: 140 | B150: EIHOTEL | C150: 323.4 | D150: 319.33 | E150: 313.57 | F150: 303.73 | G150: 297.97 | H150: 329.17 | I150: 334.93 | J150: 344.77 | K150: 325.1 | L150: 309.5 | M150: 16.1246
A151: 141 | B151: ELGIEQUIP | C151: 595.45 | D151: 592.78 | E151: 583.12 | F151: 570.78 | G151: 561.12 | H151: 605.12 | I151: 614.78 | J151: 627.12 | K151: 602.45 | L151: 580.45 | M151: 8.84777
A152: 142 | B152: EMAMILTD | C152: 499.6 | D152: 498.67 | E152: 494.83 | F152: 490.07 | G152: 486.23 | H152: 503.43 | I152: 507.27 | J152: 512.03 | K152: 502.5 | L152: 493.9 | M152: 7.11353
A153: 143 | B153: ENDURANCE | C153: 2023.25 | D153: 2027.03 | E153: 1986.52 | F153: 1949.78 | G153: 1909.27 | H153: 2063.77 | I153: 2104.28 | J153: 2141.02 | K153: 2067.55 | L153: 1990.3 | M153: 1.07879
A154: 144 | B154: ENGINERSIN | C154: 234.85 | D154: 236.87 | E154: 231.53 | F154: 228.22 | G154: 222.88 | H154: 240.18 | I154: 245.52 | J154: 248.83 | K154: 242.2 | L154: 233.55 | M154: 67.43317
A155: 145 | B155: EPL | C155: 197.55 | D155: 198.15 | E155: 196.30 | F155: 195.05 | G155: 193.20 | H155: 199.40 | I155: 201.25 | J155: 202.50 | K155: 200 | L155: 196.9 | M155: 3.96394
A156: 146 | B156: EQUITASBNK | C156: 105.8 | D156: 105.12 | E156: 103.28 | F156: 100.77 | G156: 98.93 | H156: 107.63 | I156: 109.47 | J156: 111.98 | K156: 106.95 | L156: 102.6 | M156: 61.65558
A157: 147 | B157: ERIS | C157: 913.7 | D157: 913.90 | E157: 892.80 | F157: 871.90 | G157: 850.80 | H157: 934.80 | I157: 955.90 | J157: 976.80 | K157: 935 | L157: 893 | M157: 9.79254
A158: 148 | B158: ESCORTS | C158: 3023.2 | D158: 3003.95 | E158: 2967.45 | F158: 2911.70 | G158: 2875.20 | H158: 3059.70 | I158: 3096.20 | J158: 3151.95 | K158: 3040.45 | L158: 2948.2 | M158: 2.99823
A159: 149 | B159: EXIDEIND | C159: 315.3 | D159: 314.62 | E159: 311.98 | F159: 308.67 | G159: 306.03 | H159: 317.93 | I159: 320.57 | J159: 323.88 | K159: 317.25 | L159: 311.3 | M159: 17.88476
A160: 150 | B160: FDC | C160: 413.9 | D160: 415.62 | E160: 408.58 | F160: 403.27 | G160: 396.23 | H160: 420.93 | I160: 427.97 | J160: 433.28 | K160: 422.65 | L160: 410.3 | M160: 1.77399
A161: 151 | B161: FEDERALBNK | C161: 145.45 | D161: 144.87 | E161: 143.08 | F161: 140.72 | G161: 138.93 | H161: 147.23 | I161: 149.02 | J161: 151.38 | K161: 146.65 | L161: 142.5 | M161: 203.36392
A162: 152 | B162: FACT | C162: 861.65 | D162: 868.52 | E162: 841.33 | F162: 821.02 | G162: 793.83 | H162: 888.83 | I162: 916.02 | J162: 936.33 | K162: 895.7 | L162: 848.2 | M162: 13.46066
A163: 153 | B163: FINEORG | C163: 4593.9 | D163: 4634.18 | E163: 4538.72 | F163: 4483.53 | G163: 4388.07 | H163: 4689.37 | I163: 4784.83 | J163: 4840.02 | K163: 4729.65 | L163: 4579 | M163: 0.21556
A164: 154 | B164: FINCABLES | C164: 1105.4 | D164: 1106.98 | E164: 1093.97 | F164: 1082.53 | G164: 1069.52 | H164: 1118.42 | I164: 1131.43 | J164: 1142.87 | K164: 1120 | L164: 1095.55 | M164: 2.20596
A165: 155 | B165: FINPIPE | C165: 217.15 | D165: 219.48 | E165: 213.97 | F165: 210.78 | G165: 205.27 | H165: 222.67 | I165: 228.18 | J165: 231.37 | K165: 225 | L165: 216.3 | M165: 8.84924
A166: 156 | B166: FSL | C166: 195.25 | D166: 194.55 | E166: 192.25 | F166: 189.25 | G166: 186.95 | H166: 197.55 | I166: 199.85 | J166: 202.85 | K166: 196.85 | L166: 191.55 | M166: 18.69281
A167: 157 | B167: FIVESTAR | C167: 754.35 | D167: 755.10 | E167: 746.20 | F167: 738.05 | G167: 729.15 | H167: 763.25 | I167: 772.15 | J167: 780.30 | K167: 764 | L167: 746.95 | M167: 1.92152
A168: 158 | B168: FORTIS | C168: 424.15 | D168: 425.43 | E168: 420.72 | F168: 417.28 | G168: 412.57 | H168: 428.87 | I168: 433.58 | J168: 437.02 | K168: 430.15 | L168: 422 | M168: 5.26104
A169: 159 | B169: NYKAA | C169: 163.1 | D169: 162.38 | E169: 161.07 | F169: 159.03 | G169: 157.72 | H169: 164.42 | I169: 165.73 | J169: 167.77 | K169: 163.7 | L169: 160.35 | M169: 41.90712
A170: 160 | B170: GRINFRA | C170: 1184.5 | D170: 1181.80 | E170: 1166.70 | F170: 1148.90 | G170: 1133.80 | H170: 1199.60 | I170: 1214.70 | J170: 1232.50 | K170: 1196.9 | L170: 1164 | M170: 0.67062
A171: 161 | B171: GAIL | C171: 171.75 | D171: 170.65 | E171: 166.60 | F171: 161.45 | G171: 157.40 | H171: 175.80 | I171: 179.85 | J171: 185.00 | K171: 174.7 | L171: 165.5 | M171: 584.33818
A172: 162 | B172: GALAXYSURF | C172: 2726.2 | D172: 2723.28 | E172: 2705.92 | F172: 2685.63 | G172: 2668.27 | H172: 2743.57 | I172: 2760.93 | J172: 2781.22 | K172: 2740.65 | L172: 2703 | M172: 0.1042
A173: 163 | B173: GARFIBRES | C173: 3665.85 | D173: 3708.60 | E173: 3607.30 | F173: 3548.75 | G173: 3447.45 | H173: 3767.15 | I173: 3868.45 | J173: 3927.00 | K173: 3809.9 | L173: 3650.05 | M173: 0.18573
A174: 164 | B174: GICRE | C174: 370.45 | D174: 368.57 | E174: 357.13 | F174: 343.82 | G174: 332.38 | H174: 381.88 | I174: 393.32 | J174: 406.63 | K174: 380 | L174: 355.25 | M174: 39.49612
A175: 165 | B175: GLAND | C175: 1880.6 | D175: 1884.47 | E175: 1860.23 | F175: 1839.87 | G175: 1815.63 | H175: 1904.83 | I175: 1929.07 | J175: 1949.43 | K175: 1908.7 | L175: 1864.1 | M175: 1.0885
A176: 166 | B176: GLAXO | C176: 2183.75 | D176: 2189.00 | E176: 2156.00 | F176: 2128.25 | G176: 2095.25 | H176: 2216.75 | I176: 2249.75 | J176: 2277.50 | K176: 2222 | L176: 2161.25 | M176: 0.77732
A177: 167 | B177: GLENMARK | C177: 899.85 | D177: 898.00 | E177: 889.15 | F177: 878.45 | G177: 869.60 | H177: 908.70 | I177: 917.55 | J177: 928.25 | K177: 906.85 | L177: 887.3 | M177: 6.85206
A178: 168 | B178: MEDANTA | C178: 1134.8 | D178: 1118.63 | E178: 1097.27 | F178: 1059.73 | G178: 1038.37 | H178: 1156.17 | I178: 1177.53 | J178: 1215.07 | K178: 1140 | L178: 1081.1 | M178: 2.94268
A179: 169 | B179: GMMPFAUDLR | C179: 1544.9 | D179: 1542.08 | E179: 1531.72 | F179: 1518.53 | G179: 1508.17 | H179: 1555.27 | I179: 1565.63 | J179: 1578.82 | K179: 1552.45 | L179: 1528.9 | M179: 2.16403
A180: 170 | B180: GMRINFRA | C180: 78.2 | D180: 78.48 | E180: 76.62 | F180: 75.03 | G180: 73.17 | H180: 80.07 | I180: 81.93 | J180: 83.52 | K180: 80.35 | L180: 76.9 | M180: 445.02382
A181: 171 | B181: GOCOLORS | C181: 1112.9 | D181: 1117.07 | E181: 1101.63 | F181: 1090.37 | G181: 1074.93 | H181: 1128.33 | I181: 1143.77 | J181: 1155.03 | K181: 1132.5 | L181: 1105.8 | M181: 0.37333
A182: 172 | B182: GODFRYPHLP | C182: 2298.85 | D182: 2291.27 | E182: 2257.58 | F182: 2216.32 | G182: 2182.63 | H182: 2332.53 | I182: 2366.22 | J182: 2407.48 | K182: 2324.95 | L182: 2250 | M182: 0.97112
A183: 173 | B183: GODREJAGRO | C183: 531.2 | D183: 533.02 | E183: 526.23 | F183: 521.27 | G183: 514.48 | H183: 537.98 | I183: 544.77 | J183: 549.73 | K183: 539.8 | L183: 528.05 | M183: 1.38592
A184: 174 | B184: GODREJCP | C184: 1168.1 | D184: 1168.62 | E184: 1156.23 | F184: 1144.37 | G184: 1131.98 | H184: 1180.48 | I184: 1192.87 | J184: 1204.73 | K184: 1181 | L184: 1156.75 | M184: 28.0057
A185: 175 | B185: GODREJIND | C185: 867.1 | D185: 859.58 | E185: 849.52 | F185: 831.93 | G185: 821.87 | H185: 877.17 | I185: 887.23 | J185: 904.82 | K185: 869.65 | L185: 842 | M185: 5.28388
A186: 176 | B186: GODREJPROP | C186: 2430.4 | D186: 2402.47 | E186: 2360.93 | F186: 2291.47 | G186: 2249.93 | H186: 2471.93 | I186: 2513.47 | J186: 2582.93 | K186: 2444 | L186: 2333 | M186: 15.72046
A187: 177 | B187: GRANULES | C187: 410.15 | D187: 412.38 | E187: 405.77 | F187: 401.38 | G187: 394.77 | H187: 416.77 | I187: 423.38 | J187: 427.77 | K187: 419 | L187: 408 | M187: 8.83016
A188: 178 | B188: GRAPHITE | C188: 527.55 | D188: 529.92 | E188: 522.63 | F188: 517.72 | G188: 510.43 | H188: 534.83 | I188: 542.12 | J188: 547.03 | K188: 537.2 | L188: 525 | M188: 4.4936
A189: 179 | B189: GRASIM | C189: 2104.5 | D189: 2102.42 | E189: 2079.83 | F189: 2055.17 | G189: 2032.58 | H189: 2127.08 | I189: 2149.67 | J189: 2174.33 | K189: 2125 | L189: 2077.75 | M189: 7.95647
A190: 180 | B190: GESHIP | C190: 1031.35 | D190: 1028.37 | E190: 1012.83 | F190: 994.32 | G190: 978.78 | H190: 1046.88 | I190: 1062.42 | J190: 1080.93 | K190: 1043.9 | L190: 1009.85 | M190: 8.32127
A191: 181 | B191: GREENPANEL | C191: 397.7 | D191: 400.17 | E191: 391.33 | F191: 384.97 | G191: 376.13 | H191: 406.53 | I191: 415.37 | J191: 421.73 | K191: 409 | L191: 393.8 | M191: 3.4691
A192: 182 | B192: GRINDWELL | C192: 2412.05 | D192: 2414.02 | E192: 2378.03 | F192: 2344.02 | G192: 2308.03 | H192: 2448.03 | I192: 2484.02 | J192: 2518.03 | K192: 2450 | L192: 2380 | M192: 0.55922
A193: 183 | B193: GUJALKALI | C193: 766.4 | D193: 767.22 | E193: 760.23 | F193: 754.07 | G193: 747.08 | H193: 773.38 | I193: 780.37 | J193: 786.53 | K193: 774.2 | L193: 761.05 | M193: 1.09179
A194: 184 | B194: GAEL | C194: 380.8 | D194: 382.87 | E194: 373.03 | F194: 365.27 | G194: 355.43 | H194: 390.63 | I194: 400.47 | J194: 408.23 | K194: 392.7 | L194: 375.1 | M194: 17.63471
A195: 185 | B195: FLUOROCHEM | C195: 3706.3 | D195: 3663.35 | E195: 3587.70 | F195: 3469.10 | G195: 3393.45 | H195: 3781.95 | I195: 3857.60 | J195: 3976.20 | K195: 3739 | L195: 3544.75 | M195: 1.23138
A196: 186 | B196: GUJGASLTD | C196: 553.4 | D196: 555.63 | E196: 549.77 | F196: 546.13 | G196: 540.27 | H196: 559.27 | I196: 565.13 | J196: 568.77 | K196: 561.5 | L196: 552 | M196: 5.27332
A197: 187 | B197: GNFC | C197: 751.85 | D197: 747.10 | E197: 738.50 | F197: 725.15 | G197: 716.55 | H197: 760.45 | I197: 769.05 | J197: 782.40 | K197: 755.7 | L197: 733.75 | M197: 10.39211
A198: 188 | B198: GPPL | C198: 168.35 | D198: 167.33 | E198: 164.17 | F198: 159.98 | G198: 156.82 | H198: 171.52 | I198: 174.68 | J198: 178.87 | K198: 170.5 | L198: 163.15 | M198: 83.26637
A199: 189 | B199: GSFC | C199: 310 | D199: 312.00 | E199: 306.30 | F199: 302.60 | G199: 296.90 | H199: 315.70 | I199: 321.40 | J199: 325.10 | K199: 317.7 | L199: 308.3 | M199: 49.41608
A200: 190 | B200: GSPL | C200: 363.55 | D200: 366.18 | E200: 353.37 | F200: 343.18 | G200: 330.37 | H200: 376.37 | I200: 389.18 | J200: 399.37 | K200: 379 | L200: 356 | M200: 26.50129
A201: 191 | B201: HEG | C201: 1729.8 | D201: 1735.60 | E201: 1721.20 | F201: 1712.60 | G201: 1698.20 | H201: 1744.20 | I201: 1758.60 | J201: 1767.20 | K201: 1750 | L201: 1727 | M201: 1.25423
A202: 192 | B202: HAPPSTMNDS | C202: 856.2 | D202: 860.73 | E202: 850.47 | F202: 844.73 | G202: 834.47 | H202: 866.47 | I202: 876.73 | J202: 882.47 | K202: 871 | L202: 855 | M202: 2.88567
A203: 193 | B203: HAVELLS | C203: 1317.9 | D203: 1310.17 | E203: 1297.58 | F203: 1277.27 | G203: 1264.68 | H203: 1330.48 | I203: 1343.07 | J203: 1363.38 | K203: 1322.75 | L203: 1289.85 | M203: 11.95162
A204: 194 | B204: HCLTECH | C204: 1574.55 | D204: 1571.13 | E204: 1553.67 | F204: 1532.78 | G204: 1515.32 | H204: 1592.02 | I204: 1609.48 | J204: 1630.37 | K204: 1588.6 | L204: 1550.25 | M204: 25.21598
A205: 195 | B205: HDFCAMC | C205: 3510.1 | D205: 3485.20 | E205: 3431.20 | F205: 3352.30 | G205: 3298.30 | H205: 3564.10 | I205: 3618.10 | J205: 3697.00 | K205: 3539.2 | L205: 3406.3 | M205: 7.04595
A206: 196 | B206: HDFCBANK | C206: 1454.65 | D206: 1454.42 | E206: 1446.03 | F206: 1437.42 | G206: 1429.03 | H206: 1463.03 | I206: 1471.42 | J206: 1480.03 | K206: 1462.8 | L206: 1445.8 | M206: 328.22749
... 319 more rows

Sheet Bulk Deals
E6: Back To Main Page
A7: Subject : | B7: BULK DEAL | D7: =Main!B10 -> 2024-01-30
A9: Date | B9: Scrip code | C9: Scrip Name | D9: Client Name | E9: Buy / Sell | F9: Quantity Traded | G9: Trade Price / Wt.Avg.trade price | H9: Exchange
A10: 2024-01-29 | B10: 540615 | C10: 7NR | D10: MULTIPLIER SHARE & STOCK ADVISORS PRIVATE LIMITED | E10: SELL | F10: 200,000 | G10: 7.14 | H10: BSE
A11: 2024-01-29 | B11: 538812 | C11: AANCHALISP | D11: PRAVINKUMAR WASHA | E11: BUY | F11: 104,716 | G11: 8.1 | H11: BSE
A12: 2024-01-29 | B12: 542579 | C12: AGOL | D12: INTERACTIVE FINANCIAL SERVICES LTD | E12: SELL | F12: 2,000,000 | G12: 13.5 | H12: BSE
A13: 2024-01-29 | B13: 506074 | C13: ARSHIYA | D13: ANKITA VISHAL SHAH | E13: BUY | F13: 3,000,000 | G13: 6.39 | H13: BSE
A14: 2024-01-29 | B14: 506074 | C14: ARSHIYA | D14: AXIS TRUSTEE SERVICES LIMITED | E14: SELL | F14: 2,500,000 | G14: 6.32 | H14: BSE
A15: 2024-01-29 | B15: 506074 | C15: ARSHIYA | D15: MANSI SHARE & STOCK ADVISORS PRIVATE LIMITED | E15: SELL | F15: 1,800,000 | G15: 6.45 | H15: BSE
A16: 2024-01-29 | B16: 544052 | C16: BENCHMARK | D16: MULTIPLIER SHARE & STOCK ADVISORS PRIVATE LIMITED | E16: SELL | F16: 72,000 | G16: 65.92 | H16: BSE
A17: 2024-01-29 | B17: 544052 | C17: BENCHMARK | D17: SUNFLOWER BROKING PRIVATE LIMITED | E17: SELL | F17: 2,000 | G17: 66.9 | H17: BSE
A18: 2024-01-29 | B18: 544052 | C18: BENCHMARK | D18: SUNFLOWER BROKING PRIVATE LIMITED | E18: BUY | F18: 114,000 | G18: 65.95 | H18: BSE
A19: 2024-01-29 | B19: 524606 | C19: BERLDRG | D19: SAMIR NARENDRA GUPTA | E19: SELL | F19: 85,914 | G19: 29.1 | H19: BSE
A20: 2024-01-29 | B20: 542669 | C20: BMW | D20: ARUNA R JAIN | E20: SELL | F20: 1,141,628 | G20: 74.52 | H20: BSE
A21: 2024-01-29 | B21: 539598 | C21: CGFL | D21: UNISTONE CAPITAL PRIVATE LIMITED | E21: SELL | F21: 59,154 | G21: 140 | H21: BSE
A22: 2024-01-29 | B22: 542678 | C22: CHCL | D22: INDIACREDIT RISK MANAGEMENT LLP | E22: SELL | F22: 132,000 | G22: 23.27 | H22: BSE
A23: 2024-01-29 | B23: 542678 | C23: CHCL | D23: SANKLECHA SONALI DILIP | E23: BUY | F23: 194,000 | G23: 23.25 | H23: BSE
A24: 2024-01-29 | B24: 522231 | C24: CONART | D24: KALPANA MADHANI SECURITIES PRIVATE LIMITED | E24: BUY | F24: 20,000 | G24: 74.82 | H24: BSE
A25: 2024-01-29 | B25: 526821 | C25: DAICHI | D25: PANKAJ PRASOON | E25: BUY | F25: 45,000 | G25: 413.46 | H25: BSE
A26: 2024-01-29 | B26: 542155 | C26: DGL | D26: MOHAMMAD SHAMI | E26: BUY | F26: 72,000 | G26: 3.18 | H26: BSE
A27: 2024-01-29 | B27: 542155 | C27: DGL | D27: TANVI PIROGIWAL | E27: SELL | F27: 92,000 | G27: 3.17 | H27: BSE
A28: 2024-01-29 | B28: 540811 | C28: DML | D28: FORTUNA FUNDCAP PRIVATE LIMITED | E28: BUY | F28: 95,000 | G28: 29.8 | H28: BSE
A29: 2024-01-29 | B29: 540811 | C29: DML | D29: SIMPLURIS TECHNOLOGIES PVT LTD . | E29: SELL | F29: 60,000 | G29: 29.47 | H29: BSE
A30: 2024-01-29 | B30: 543475 | C30: EKENNIS | D30: PARITOSHKUMAR | E30: SELL | F30: 8,800 | G30: 148.47 | H30: BSE
A31: 2024-01-29 | B31: 531259 | C31: ESHAMEDIA | D31: SHIV RATAN TOSHNIWAL | E31: SELL | F31: 47,700 | G31: 4.6 | H31: BSE
A32: 2024-01-29 | B32: 540190 | C32: FRANKLININD | D32: MULTIPLIER SHARE & STOCK ADVISORS PRIVATE LIMITED | E32: BUY | F32: 200,000 | G32: 5.15 | H32: BSE
A33: 2024-01-29 | B33: 540190 | C33: FRANKLININD | D33: AJAYBHAI DHANJIBHAI RAMANI | E33: SELL | F33: 205,000 | G33: 5.15 | H33: BSE
A34: 2024-01-29 | B34: 540190 | C34: FRANKLININD | D34: GLASTON MARIO MENEZES | E34: BUY | F34: 200,000 | G34: 5.15 | H34: BSE
A35: 2024-01-29 | B35: 512443 | C35: GANONPRO | D35: SUMANCHEPURI | E35: BUY | F35: 51,264 | G35: 14.18 | H35: BSE
A36: 2024-01-29 | B36: 542850 | C36: GOBLIN | D36: SHALU SHYAM CHINAI | E36: SELL | F36: 98,000 | G36: 72.14 | H36: BSE
A37: 2024-01-29 | B37: 513309 | C37: GOLKONDA | D37: NIKHIL RAJESH SINGH | E37: BUY | F37: 188,532 | G37: 21.03 | H37: BSE
A38: 2024-01-29 | B38: 513309 | C38: GOLKONDA | D38: SAUMIL ARVINDBHAI BHAVNAGARI | E38: BUY | F38: 250,000 | G38: 21.03 | H38: BSE
A39: 2024-01-29 | B39: 513309 | C39: GOLKONDA | D39: UTPAL AGRAWAL | E39: SELL | F39: 500,000 | G39: 21.03 | H39: BSE
A40: 2024-01-29 | B40: 513309 | C40: GOLKONDA | D40: SATISH PANACHANDBHAI SHAH | E40: BUY | F40: 38,050 | G40: 21.03 | H40: BSE
A41: 2024-01-29 | B41: 530663 | C41: GOYALASS | D41: VANDANATIWARI | E41: BUY | F41: 415,014 | G41: 2.26 | H41: BSE
A42: 2024-01-29 | B42: 539222 | C42: GROWINGTON | D42: MAYADEVI KRISHNAAWTAR KABRA | E42: BUY | F42: 107,000 | G42: 186.1 | H42: BSE
A43: 2024-01-29 | B43: 539222 | C43: GROWINGTON | D43: JAIMIN KAILASH GUPTA | E43: BUY | F43: 2,350 | G43: 183.61 | H43: BSE
A44: 2024-01-29 | B44: 539222 | C44: GROWINGTON | D44: JAIMIN KAILASH GUPTA | E44: SELL | F44: 84,772 | G44: 184.68 | H44: BSE
A45: 2024-01-29 | B45: 537709 | C45: HANSUGAR | D45: MALATHI K | E45: SELL | F45: 100,000 | G45: 6.59 | H45: BSE
A46: 2024-01-29 | B46: 526967 | C46: HEERAISP | D46: JR SEAMLESS PRIVATE LIMITED | E46: SELL | F46: 209,177 | G46: 9.22 | H46: BSE
A47: 2024-01-29 | B47: 526967 | C47: HEERAISP | D47: SMITHA POLINENI | E47: BUY | F47: 37,000 | G47: 9.22 | H47: BSE
A48: 2024-01-29 | B48: 526967 | C48: HEERAISP | D48: GHANSHYAMGANPATSINHCHAUHAN | E48: SELL | F48: 30,459 | G48: 9.22 | H48: BSE
A49: 2024-01-29 | B49: 526967 | C49: HEERAISP | D49: KANTA DEVI SAMDARIA | E49: BUY | F49: 126,430 | G49: 9.22 | H49: BSE
A50: 2024-01-29 | B50: 508918 | C50: IRONWOOD | D50: KESHAV PORWAL | E50: SELL | F50: 82,695 | G50: 34.21 | H50: BSE
A51: 2024-01-29 | B51: 538539 | C51: JTAPARIA | D51: SPARK FINANCE | E51: SELL | F51: 242,120 | G51: 30.28 | H51: BSE
A52: 2024-01-29 | B52: 538539 | C52: JTAPARIA | D52: SPARK FINANCE | E52: BUY | F52: 176 | G52: 31 | H52: BSE
A53: 2024-01-29 | B53: 536073 | C53: JULIEN | D53: BURS FINANCIAL ADVISORY SERVICES PRIVATE LIMITED | E53: SELL | F53: 99,800 | G53: 25.01 | H53: BSE
A54: 2024-01-29 | B54: 543939 | C54: KAKA | D54: BENGAL FINANCE & INVESTMENT PVT. LTD. | E54: SELL | F54: 80,000 | G54: 220.44 | H54: BSE
A55: 2024-01-29 | B55: 504392 | C55: KRISHNA | D55: JAMSON SECURITIES PRIVATE LIMITED | E55: BUY | F55: 67,833 | G55: 70.89 | H55: BSE
A56: 2024-01-29 | B56: 507912 | C56: LKPFIN | D56: FOREST VINCOM PRIVATE LIMITED | E56: BUY | F56: 100,000 | G56: 250 | H56: BSE
A57: 2024-01-29 | B57: 507912 | C57: LKPFIN | D57: BRILLIANT INVESTMENT CONSULTANTS PRIVATE LIMTED | E57: BUY | F57: 125,000 | G57: 250 | H57: BSE
A58: 2024-01-29 | B58: 507912 | C58: LKPFIN | D58: BHAVNAHOLDINGSPVTLTD | E58: SELL | F58: 300,000 | G58: 250 | H58: BSE
A59: 2024-01-29 | B59: 507912 | C59: LKPFIN | D59: MAHENDRA VASANTRAI DOSHI | E59: SELL | F59: 298,917 | G59: 250 | H59: BSE
A60: 2024-01-29 | B60: 507912 | C60: LKPFIN | D60: VINEY EQUITY MARKET LLP | E60: BUY | F60: 100,000 | G60: 250 | H60: BSE
A61: 2024-01-29 | B61: 507912 | C61: LKPFIN | D61: WESSEL CONSULTANCY PRIVATE LIMITED | E61: BUY | F61: 100,000 | G61: 250 | H61: BSE
A62: 2024-01-29 | B62: 539519 | C62: MAYUKH | D62: SECURE SHANTI ADVISORY LLP | E62: SELL | F62: 262,629 | G62: 18.3 | H62: BSE
A63: 2024-01-29 | B63: 539519 | C63: MAYUKH | D63: ARPNA DINESH LODHA | E63: BUY | F63: 208,920 | G63: 18.37 | H63: BSE
A64: 2024-01-29 | B64: 539519 | C64: MAYUKH | D64: F3 ADVISORS PRIVATE LIMITED | E64: SELL | F64: 132,504 | G64: 18.36 | H64: BSE
A65: 2024-01-29 | B65: 539519 | C65: MAYUKH | D65: F3 ADVISORS PRIVATE LIMITED | E65: BUY | F65: 3 | G65: 18.07 | H65: BSE
A66: 2024-01-29 | B66: 531456 | C66: MINAXI | D66: MULTIPLIER SHARE & STOCK ADVISORS PRIVATE LIMITED | E66: BUY | F66: 313,273 | G66: 4.16 | H66: BSE
A67: 2024-01-29 | B67: 530557 | C67: NCLRESE | D67: VIBRANT SECURITIES PRIVATE LIMITED | E67: SELL | F67: 7,647,450 | G67: 0.72 | H67: BSE
A68: 2024-01-29 | B68: 530557 | C68: NCLRESE | D68: VIBRANT SECURITIES PRIVATE LIMITED | E68: BUY | F68: 6,333,244 | G68: 0.72 | H68: BSE
A69: 2024-01-29 | B69: 538537 | C69: OMANSH | D69: O NARESH KUMAR | E69: BUY | F69: 101,000 | G69: 0.55 | H69: BSE
A70: 2024-01-29 | B70: 538537 | C70: OMANSH | D70: RAJANALKUMAR | E70: SELL | F70: 100,000 | G70: 0.55 | H70: BSE
A71: 2024-01-29 | B71: 540727 | C71: POOJA | D71: SATYA PRAKASH MITTAL | E71: SELL | F71: 3,204 | G71: 39.23 | H71: BSE
A72: 2024-01-29 | B72: 540727 | C72: POOJA | D72: SATYA PRAKASH MITTAL | E72: BUY | F72: 135,232 | G72: 39.27 | H72: BSE
A73: 2024-01-29 | B73: 538646 | C73: QGO | D73: RAMESH KOMMURU | E73: SELL | F73: 35,000 | G73: 71.29 | H73: BSE
A74: 2024-01-29 | B74: 544091 | C74: QLL | D74: GREEN PEAKS ENTERPRISES LLP | E74: BUY | F74: 39,600 | G74: 196.62 | H74: BSE
A75: 2024-01-29 | B75: 544091 | C75: QLL | D75: MANSI SHARE & STOCK ADVISORS PRIVATE LIMITED | E75: BUY | F75: 240,000 | G75: 194.75 | H75: BSE
A76: 2024-01-29 | B76: 544091 | C76: QLL | D76: JINENDRA KUMAR JAIN | E76: BUY | F76: 51,600 | G76: 196.92 | H76: BSE
A77: 2024-01-29 | B77: 544091 | C77: QLL | D77: SS CORPORATE SECURITIES LIMITED | E77: BUY | F77: 42,000 | G77: 199.5 | H77: BSE
A78: 2024-01-29 | B78: 544091 | C78: QLL | D78: PARESH DHIRAJLAL SHAH | E78: BUY | F78: 120,000 | G78: 190 | H78: BSE
A79: 2024-01-29 | B79: 544091 | C79: QLL | D79: MULTIPLIER SHARE & STOCK ADVISORS PRIVATE LIMITED | E79: BUY | F79: 110,400 | G79: 190 | H79: BSE
A80: 2024-01-29 | B80: 544091 | C80: QLL | D80: MUKESH SHARMA FAMILY TRUST | E80: BUY | F80: 60,000 | G80: 199.5 | H80: BSE
A81: 2024-01-29 | B81: 544091 | C81: QLL | D81: NIKUNJ STOCK BROKERS LIMITED | E81: SELL | F81: 98,400 | G81: 190.12 | H81: BSE
A82: 2024-01-29 | B82: 515127 | C82: RAMASIGNS | D82: PANKAJ HASMUKH JOBALIA | E82: SELL | F82: 296,112 | G82: 2.66 | H82: BSE
A83: 2024-01-29 | B83: 539584 | C83: SIPTL | D83: MULTIPLIER SHARE & STOCK ADVISORS PRIVATE LIMITED | E83: BUY | F83: 479,387 | G83: 1.07 | H83: BSE
A84: 2024-01-29 | B84: 532795 | C84: SITINET | D84: ANIL SUBHASHCHANDRA AGRAWAL | E84: SELL | F84: 4,490,502 | G84: 0.89 | H84: BSE
A85: 2024-01-29 | B85: 531370 | C85: SPAR | D85: GREEN PEAKS ENTERPRISES LLP | E85: BUY | F85: 73,283 | G85: 24.75 | H85: BSE
A86: 2024-01-29 | B86: 531370 | C86: SPAR | D86: GREEN PEAKS ENTERPRISES LLP | E86: SELL | F86: 73,282 | G86: 24.65 | H86: BSE
A87: 2024-01-29 | B87: 531370 | C87: SPAR | D87: BRUBEN COMMERCIAL PRIVATE LIMITED . | E87: SELL | F87: 503,276 | G87: 24.71 | H87: BSE
A88: 2024-01-29 | B88: 532070 | C88: SUMUKA | D88: FORTUNA FUNDCAP PRIVATE LIMITED | E88: BUY | F88: 43,000 | G88: 169.34 | H88: BSE
A89: 2024-01-29 | B89: 526133 | C89: SUPERTEX | D89: PANSHUL RASTOGI | E89: BUY | F89: 60,000 | G89: 12.45 | H89: BSE
A90: 2024-01-29 | B90: 544082 | C90: SWANAGRO | D90: MULTIPLIER SHARE & STOCK ADVISORS PRIVATE LIMITED | E90: SELL | F90: 108,000 | G90: 119.82 | H90: BSE
A91: 2024-01-29 | B91: 532375 | C91: TIPSINDLTD | D91: SBI MUTUAL FUND | E91: BUY | F91: 6,425,721 | G91: 380 | H91: BSE
A92: 2024-01-29 | B92: 532375 | C92: TIPSINDLTD | D92: RENU KUMAR TAURANI | E92: SELL | F92: 800,000 | G92: 380 | H92: BSE
A93: 2024-01-29 | B93: 532375 | C93: TIPSINDLTD | D93: RAMESH SADHURAM TAURANI | E93: SELL | F93: 2,450,000 | G93: 380 | H93: BSE
A94: 2024-01-29 | B94: 532375 | C94: TIPSINDLTD | D94: VARSHA RAMESH TAURANI | E94: SELL | F94: 800,000 | G94: 380 | H94: BSE
A95: 2024-01-29 | B95: 532375 | C95: TIPSINDLTD | D95: KUMAR SADHURAM TAURANI | E95: SELL | F95: 2,450,000 | G95: 380.26 | H95: BSE
A96: 2024-01-29 | B96: 541358 | C96: UCIL | D96: MULTIPLIER SHARE & STOCK ADVISORS PRIVATE LIMITED | E96: BUY | F96: 25,000 | G96: 44.26 | H96: BSE
A97: 2024-01-29 | B97: 541358 | C97: UCIL | D97: VIKRAM RANA | E97: SELL | F97: 27,200 | G97: 44.26 | H97: BSE
A98: 2024-01-29 | B98: 537582 | C98: UNISHIRE | D98: PRATIK KIRTI MEHTA | E98: SELL | F98: 130,000 | G98: 5.73 | H98: BSE
A99: 2024-01-29 | B99: 538610 | C99: UNISON | D99: PRATIK RAJIV PANDYA | E99: SELL | F99: 163,850 | G99: 23.58 | H99: BSE
A100: 2024-01-29 | B100: 503657 | C100: VEERENRGY | D100: ARHAM SHARE PRIVATE LIMITED | E100: BUY | F100: 80,100 | G100: 28.69 | H100: BSE
A101: 2024-01-29 | B101: 503657 | C101: VEERENRGY | D101: ARHAM SHARE PRIVATE LIMITED | E101: SELL | F101: 35,000 | G101: 28.69 | H101: BSE
A102: 2024-01-29 | B102: 503657 | C102: VEERENRGY | D102: INDRA KIRAN VENTURES | E102: SELL | F102: 75,000 | G102: 26.62 | H102: BSE
A103: 2024-01-29 | B103: 503657 | C103: VEERENRGY | D103: KALPANA MADHANI SECURITIES PRIVATE LIMITED | E103: SELL | F103: 1,000 | G103: 26.5 | H103: BSE
A104: 2024-01-29 | B104: 503657 | C104: VEERENRGY | D104: KALPANA MADHANI SECURITIES PRIVATE LIMITED | E104: BUY | F104: 100,000 | G104: 28.45 | H104: BSE
A105: 2024-01-29 | B105: 511523 | C105: VEERHEALTH | D105: RAHUL YASHVANTRAY SHAH | E105: SELL | F105: 170,311 | G105: 24.09 | H105: BSE
A106: 2024-01-29 | B106: 511523 | C106: VEERHEALTH | D106: RAHUL YASHVANTRAY SHAH | E106: BUY | F106: 171,380 | G106: 23.71 | H106: BSE
A107: 2024-01-29 | B107: 511523 | C107: VEERHEALTH | D107: ROCKY RASIKLAL VORA | E107: SELL | F107: 100,000 | G107: 23.76 | H107: BSE
A108: 2024-01-29 | B108: 511523 | C108: VEERHEALTH | D108: BHOGILALMAVJIVORA | E108: SELL | F108: 100,000 | G108: 23.76 | H108: BSE
A109: 2024-01-29 | B109: 514266 | C109: ZENIFIB | D109: KALPANA MADHANI SECURITIES PRIVATE LIMITED | E109: BUY | F109: 25,598 | G109: 99.28 | H109: BSE
A110: 2024-01-29 | B110: AGNI | C110: Agni Green Power Ltd | D110: YUGA STOCKS AND COMMODITIES PRIVATE LIMITED . | E110: BUY | F110: 255,000 | G110: 57.49 | H110: NSE
A111: 2024-01-29 | B111: AGNI | C111: Agni Green Power Ltd | D111: S DEEPMALA KAUSHAL | E111: BUY | F111: 100,000 | G111: 57.5 | H111: NSE
A112: 2024-01-29 | B112: AGNI | C112: Agni Green Power Ltd | D112: MULTIPLIER SHARE & STOCK ADVISORS PRIVATE LIMITED | E112: BUY | F112: 50,000 | G112: 57.5 | H112: NSE
A113: 2024-01-29 | B113: ANMOL | C113: Anmol India Limited | D113: SANGEETA PAREEKH | E113: BUY | F113: 305,000 | G113: 58.8 | H113: NSE
A114: 2024-01-29 | B114: ARSHIYA | C114: Arshiya Limited | D114: ANKITA VISHAL SHAH | E114: BUY | F114: 1,500,000 | G114: 6.45 | H114: NSE
A115: 2024-01-29 | B115: AZAD | C115: Azad Engineering Limited | D115: GRAVITON RESEARCH CAPITAL LLP | E115: BUY | F115: 397,349 | G115: 723.19 | H115: NSE
A116: 2024-01-29 | B116: BANKA | C116: Banka BioLoo Limited | D116: DEBASHISH NEOGI | E116: BUY | F116: 67,989 | G116: 140.54 | H116: NSE
A117: 2024-01-29 | B117: BBL | C117: Bharat Bijlee Ltd | D117: GRAVITON RESEARCH CAPITAL LLP | E117: BUY | F117: 47,436 | G117: 5176.65 | H117: NSE
A118: 2024-01-29 | B118: BIOFILCHEM | C118: Biofil Chemicals & Pharm | D118: JAYESH JAGDISHBHAI HAPANI | E118: BUY | F118: 768 | G118: 72.9 | H118: NSE
A119: 2024-01-29 | B119: BPL | C119: BPL Ltd. | D119: MULTIPLIER SHARE & STOCK ADVISORS PRIVATE LIMITED | E119: BUY | F119: 295,339 | G119: 110.13 | H119: NSE
A120: 2024-01-29 | B120: DIL | C120: Debock Industries Limited | D120: CITADEL SECURITIES INDIA MARKETS PRIVATE LIMITED | E120: BUY | F120: 575,809 | G120: 9.32 | H120: NSE
A121: 2024-01-29 | B121: EMMBI | C121: Emmbi Industries Ltd | D121: VIJIT TRADING | E121: BUY | F121: 44,053 | G121: 128.76 | H121: NSE
A122: 2024-01-29 | B122: GIPCL | C122: Gujarat Ind Power Ltd | D122: GRAVITON RESEARCH CAPITAL LLP | E122: BUY | F122: 1,440,599 | G122: 222.26 | H122: NSE
A123: 2024-01-29 | B123: HCC | C123: Hindustan Construc Co. | D123: GRAVITON RESEARCH CAPITAL LLP | E123: BUY | F123: 14,194,587 | G123: 39.85 | H123: NSE
A124: 2024-01-29 | B124: HCC | C124: Hindustan Construc Co. | D124: HRTI PRIVATE LIMITED | E124: BUY | F124: 21,177,124 | G124: 39.87 | H124: NSE
A125: 2024-01-29 | B125: HEADSUP | C125: Heads UP Ventures Limited | D125: ANIRUDDHSINH SOLANKI | E125: BUY | F125: 176,356 | G125: 17.5 | H125: NSE
A126: 2024-01-29 | B126: IBULHSGFIN | C126: Indiabulls Hsg Fin Ltd | D126: GRAVITON RESEARCH CAPITAL LLP | E126: BUY | F126: 2,912,480 | G126: 199.91 | H126: NSE
A127: 2024-01-29 | B127: INDBANK | C127: Indbank Merchant Banking | D127: YUGA STOCKS AND COMMODITIES PRIVATE LIMITED . | E127: BUY | F127: 662,499 | G127: 51.49 | H127: NSE
A128: 2024-01-29 | B128: INDBANK | C128: Indbank Merchant Banking | D128: SANDEEP PRAKASHCHANDRA JAIN (HUF) | E128: BUY | F128: 273,638 | G128: 49.89 | H128: NSE
A129: 2024-01-29 | B129: INDBANK | C129: Indbank Merchant Banking | D129: MANSI SHARE AND STOCK ADVISORS PVT LTD | E129: BUY | F129: 520,899 | G129: 51.16 | H129: NSE
A130: 2024-01-29 | B130: INFIBEAM | C130: Infibeam Avenues Limited | D130: GRAVITON RESEARCH CAPITAL LLP | E130: BUY | F130: 17,230,296 | G130: 32.75 | H130: NSE
A131: 2024-01-29 | B131: INFIBEAM | C131: Infibeam Avenues Limited | D131: HRTI PRIVATE LIMITED | E131: BUY | F131: 16,746,178 | G131: 32.74 | H131: NSE
A132: 2024-01-29 | B132: JAYSREETEA | C132: Jayashree Tea Ltd. | D132: GRAVITON RESEARCH CAPITAL LLP | E132: BUY | F132: 153,380 | G132: 123.88 | H132: NSE
A133: 2024-01-29 | B133: KANANIIND | C133: Kanani Industries Ltd | D133: CITADEL SECURITIES INDIA MARKETS PRIVATE LIMITED | E133: BUY | F133: 655,930 | G133: 10.14 | H133: NSE
A134: 2024-01-29 | B134: MAHEPC | C134: Mahindra EPC Irrig Ltd | D134: GRAVITON RESEARCH CAPITAL LLP | E134: BUY | F134: 248,472 | G134: 155.72 | H134: NSE
A135: 2024-01-29 | B135: MITTAL | C135: Mittal Life Style Limited | D135: CITADEL SECURITIES INDIA MARKETS PRIVATE LIMITED | E135: BUY | F135: 1,727,875 | G135: 2.31 | H135: NSE
A136: 2024-01-29 | B136: MITTAL | C136: Mittal Life Style Limited | D136: COMFORT CAPITAL PRIVATE LIMITED | E136: BUY | F136: 2,132,716 | G136: 2.29 | H136: NSE
A137: 2024-01-29 | B137: MITTAL | C137: Mittal Life Style Limited | D137: TRANSGLOBAL SECURITIES LTD | E137: BUY | F137: 2,606,948 | G137: 2.29 | H137: NSE
A138: 2024-01-29 | B138: MTNL | C138: Maha Tel Nigam Ltd. | D138: HRTI PRIVATE LIMITED | E138: BUY | F138: 2,694,859 | G138: 44.83 | H138: NSE
A139: 2024-01-29 | B139: MTNL | C139: Maha Tel Nigam Ltd. | D139: GRAVITON RESEARCH CAPITAL LLP | E139: BUY | F139: 3,118,137 | G139: 44.92 | H139: NSE
A140: 2024-01-29 | B140: NBCC | C140: Nbcc (India) Ltd | D140: HRTI PRIVATE LIMITED | E140: BUY | F140: 10,852,599 | G140: 124.19 | H140: NSE
A141: 2024-01-29 | B141: NBCC | C141: Nbcc (India) Ltd | D141: GRAVITON RESEARCH CAPITAL LLP | E141: BUY | F141: 10,795,660 | G141: 124.18 | H141: NSE
A142: 2024-01-29 | B142: OSIAHYPER | C142: Osia Hyper Retail Ltd | D142: NISHA RAJESH VAKHARIA | E142: BUY | F142: 700,000 | G142: 68.29 | H142: NSE
A143: 2024-01-29 | B143: OSIAHYPER | C143: Osia Hyper Retail Ltd | D143: QE SECURITIES LLP | E143: BUY | F143: 627,125 | G143: 68.26 | H143: NSE
A144: 2024-01-29 | B144: OSIAHYPER | C144: Osia Hyper Retail Ltd | D144: HRTI PRIVATE LIMITED | E144: BUY | F144: 1,576,247 | G144: 68.08 | H144: NSE
A145: 2024-01-29 | B145: OSIAHYPER | C145: Osia Hyper Retail Ltd | D145: SOHAM FINCARE INDIA LLP | E145: BUY | F145: 1,109,111 | G145: 68.46 | H145: NSE
A146: 2024-01-29 | B146: OSWALGREEN | C146: Oswal Greentech Limited | D146: GRAVITON RESEARCH CAPITAL LLP | E146: BUY | F146: 1,371,944 | G146: 40.77 | H146: NSE
A147: 2024-01-29 | B147: RAIN | C147: Rain Industries Limited | D147: GRAVITON RESEARCH CAPITAL LLP | E147: BUY | F147: 2,289,175 | G147: 183.97 | H147: NSE
A148: 2024-01-29 | B148: RAMASTEEL | C148: Rama Steel Tubes Limited | D148: HEMALI PATHIK THAKKAR | E148: BUY | F148: 4,736,253 | G148: 46.04 | H148: NSE
A149: 2024-01-29 | B149: RAMASTEEL | C149: Rama Steel Tubes Limited | D149: GRAVITON RESEARCH CAPITAL LLP | E149: BUY | F149: 2,972,029 | G149: 46.25 | H149: NSE
A150: 2024-01-29 | B150: RAMASTEEL | C150: Rama Steel Tubes Limited | D150: JAINAM BROKING LIMITED | E150: BUY | F150: 6,585 | G150: 45.45 | H150: NSE
A151: 2024-01-29 | B151: RAMASTEEL | C151: Rama Steel Tubes Limited | D151: SW CAPITAL PRIVATE LIMITED | E151: BUY | F151: 6,076,801 | G151: 45.15 | H151: NSE
A152: 2024-01-29 | B152: RITES | C152: RITES Limited | D152: GRAVITON RESEARCH CAPITAL LLP | E152: BUY | F152: 2,467,689 | G152: 735.18 | H152: NSE
A153: 2024-01-29 | B153: ROTO | C153: Roto Pumps Limited | D153: GRAVITON RESEARCH CAPITAL LLP | E153: BUY | F153: 196,456 | G153: 435.9 | H153: NSE
A154: 2024-01-29 | B154: SHANTI | C154: Shanti Overseas (Ind) Ltd | D154: MARWADI CHANDARANA INTERMEDIARIES BROKERS PRIVATE LIMITED | E154: BUY | F154: 133,992 | G154: 27.86 | H154: NSE
A155: 2024-01-29 | B155: SHANTI | C155: Shanti Overseas (Ind) Ltd | D155: DHRUV NEEMA | E155: BUY | F155: 10,000 | G155: 24.57 | H155: NSE
A156: 2024-01-29 | B156: SHANTI | C156: Shanti Overseas (Ind) Ltd | D156: ANIRUDDHSINH SOLANKI | E156: BUY | F156: 244,100 | G156: 27.62 | H156: NSE
A157: 2024-01-29 | B157: SHANTI | C157: Shanti Overseas (Ind) Ltd | D157: MEHULKUMAR NATUBHAI PANUCHA | E157: BUY | F157: 34,200 | G157: 28.01 | H157: NSE
A158: 2024-01-29 | B158: SHANTI | C158: Shanti Overseas (Ind) Ltd | D158: YUGA STOCKS AND COMMODITIES PRIVATE LIMITED . | E158: BUY | F158: 217,019 | G158: 28.05 | H158: NSE
A159: 2024-01-29 | B159: SHANTI | C159: Shanti Overseas (Ind) Ltd | D159: MATALIA STOCK BROKING PRIVATE LIMITED | E159: BUY | F159: 186,689 | G159: 26.75 | H159: NSE
A160: 2024-01-29 | B160: SHANTI | C160: Shanti Overseas (Ind) Ltd | D160: AMIT KUMAR JAIN | E160: BUY | F160: 148,802 | G160: 28.02 | H160: NSE
A161: 2024-01-29 | B161: SHANTI | C161: Shanti Overseas (Ind) Ltd | D161: SHRI MUKTA SHARES | E161: BUY | F161: 173,888 | G161: 27.74 | H161: NSE
A162: 2024-01-29 | B162: SHANTI | C162: Shanti Overseas (Ind) Ltd | D162: PRADEEP GUPTA | E162: BUY | F162: 55,801 | G162: 25.83 | H162: NSE
A163: 2024-01-29 | B163: SHANTI | C163: Shanti Overseas (Ind) Ltd | D163: MRUTHYUNJAYA POORNIMA | E163: BUY | F163: 60,000 | G163: 27.78 | H163: NSE
A164: 2024-01-29 | B164: SHANTI | C164: Shanti Overseas (Ind) Ltd | D164: SUMANCHEPURI | E164: BUY | F164: 12,501 | G164: 24.41 | H164: NSE
A165: 2024-01-29 | B165: SHANTI | C165: Shanti Overseas (Ind) Ltd | D165: NK SECURITIES RESEARCH PRIVATE LIMITED | E165: BUY | F165: 125,228 | G165: 26.28 | H165: NSE
A166: 2024-01-29 | B166: SHEMAROO | C166: Shemaroo Enter. Ltd. | D166: GRAVITON RESEARCH CAPITAL LLP | E166: BUY | F166: 316,011 | G166: 229.18 | H166: NSE
A167: 2024-01-29 | B167: STEELXIND | C167: Steel Exchange India Ltd | D167: PACE COMMODITY BROKERS PRIVATE LIMITED | E167: BUY | F167: 6,368,225 | G167: 16.49 | H167: NSE
A168: 2024-01-29 | B168: STEELXIND | C168: Steel Exchange India Ltd | D168: QE SECURITIES LLP | E168: BUY | F168: 4,640,037 | G168: 16.63 | H168: NSE
A169: 2024-01-29 | B169: STEELXIND | C169: Steel Exchange India Ltd | D169: GRAVITON RESEARCH CAPITAL LLP | E169: BUY | F169: 11,244,609 | G169: 16.49 | H169: NSE
A170: 2024-01-29 | B170: STEELXIND | C170: Steel Exchange India Ltd | D170: HRTI PRIVATE LIMITED | E170: BUY | F170: 5,794,356 | G170: 16.39 | H170: NSE
A171: 2024-01-29 | B171: SUBEXLTD | C171: Subex Ltd | D171: CITADEL SECURITIES INDIA MARKETS PRIVATE LIMITED | E171: BUY | F171: 466,568 | G171: 38.75 | H171: NSE
A172: 2024-01-29 | B172: SUBEXLTD | C172: Subex Ltd | D172: HRTI PRIVATE LIMITED | E172: BUY | F172: 3,178,216 | G172: 37.85 | H172: NSE
A173: 2024-01-29 | B173: SUBEXLTD | C173: Subex Ltd | D173: GRAVITON RESEARCH CAPITAL LLP | E173: BUY | F173: 2,988,391 | G173: 38.11 | H173: NSE
A174: 2024-01-29 | B174: TEXMOPIPES | C174: Texmo Pipe & Products Ltd | D174: VIJIT GLOBAL SECURITIES PRIVATE LIMITED | E174: BUY | F174: 146,250 | G174: 89.02 | H174: NSE
A175: 2024-01-29 | B175: UFO | C175: UFO Moviez India Ltd. | D175: GRAVITON RESEARCH CAPITAL LLP | E175: BUY | F175: 836,894 | G175: 163.36 | H175: NSE
A176: 2024-01-29 | B176: UFO | C176: UFO Moviez India Ltd. | D176: QE SECURITIES LLP | E176: BUY | F176: 279,250 | G176: 164.3 | H176: NSE
A177: 2024-01-29 | B177: URJA | C177: Urja Global Limited | D177: MANSI SHARE AND STOCK ADVISORS PVT LTD | E177: BUY | F177: 11,947,774 | G177: 28.3 | H177: NSE
A178: 2024-01-29 | B178: URJA | C178: Urja Global Limited | D178: GRAVITON RESEARCH CAPITAL LLP | E178: BUY | F178: 2,965,853 | G178: 27.45 | H178: NSE
A179: 2024-01-29 | B179: VAKRANGEE | C179: Vakrangee Limited | D179: GRAVITON RESEARCH CAPITAL LLP | E179: BUY | F179: 12,285,464 | G179: 24.47 | H179: NSE
A180: 2024-01-29 | B180: VAKRANGEE | C180: Vakrangee Limited | D180: HRTI PRIVATE LIMITED | E180: BUY | F180: 15,194,383 | G180: 24.56 | H180: NSE
A181: 2024-01-29 | B181: VIKASECO | C181: Vikas EcoTech Limited | D181: VISHWAS FINCAP SERVICES PRIVATE LIMITED | E181: BUY | F181: 7,023,312 | G181: 4.34 | H181: NSE
A182: 2024-01-29 | B182: VIKASLIFE | C182: Vikas Lifecare Limited | D182: HI GROWTH CORPORATE SERVICES PVT LTD | E182: BUY | F182: 11,196,551 | G182: 7.53 | H182: NSE
A183: 2024-01-29 | B183: VISAKAIND | C183: Visaka Industries Ltd. | D183: GRAVITON RESEARCH CAPITAL LLP | E183: BUY | F183: 889,357 | G183: 131.37 | H183: NSE
A184: 2024-01-29 | B184: AGNI | C184: Agni Green Power Ltd | D184: MULTIPLIER SHARE & STOCK ADVISORS PRIVATE LIMITED | E184: SELL | F184: 120,000 | G184: 57.5 | H184: NSE
A185: 2024-01-29 | B185: AGNI | C185: Agni Green Power Ltd | D185: YUGA STOCKS AND COMMODITIES PRIVATE LIMITED . | E185: SELL | F185: 325,000 | G185: 57.5 | H185: NSE
A186: 2024-01-29 | B186: AHLADA | C186: Ahlada Engineers Limited | D186: BOMMAREDDY UPENDRA REDDY | E186: SELL | F186: 91,038 | G186: 135.95 | H186: NSE
A187: 2024-01-29 | B187: ARSHIYA | C187: Arshiya Limited | D187: MANSI SHARE AND STOCK ADVISORS PVT LTD | E187: SELL | F187: 2,000,000 | G187: 6.45 | H187: NSE
A188: 2024-01-29 | B188: ATALREAL | C188: Atal Realtech Limited | D188: KAUSHIK MAHESH WAGHELA | E188: SELL | F188: 996,735 | G188: 13.98 | H188: NSE
A189: 2024-01-29 | B189: AZAD | C189: Azad Engineering Limited | D189: GRAVITON RESEARCH CAPITAL LLP | E189: SELL | F189: 397,349 | G189: 723.59 | H189: NSE
A190: 2024-01-29 | B190: BALKRISHNA | C190: Balkrshna Paper Mills Ltd | D190: MANSI SHARE AND STOCK ADVISORS PVT LTD | E190: SELL | F190: 80,000 | G190: 50.39 | H190: NSE
A191: 2024-01-29 | B191: BBL | C191: Bharat Bijlee Ltd | D191: GRAVITON RESEARCH CAPITAL LLP | E191: SELL | F191: 47,436 | G191: 5181.6 | H191: NSE
A192: 2024-01-29 | B192: BIOFILCHEM | C192: Biofil Chemicals & Pharm | D192: JAYESH JAGDISHBHAI HAPANI | E192: SELL | F192: 106,215 | G192: 71.14 | H192: NSE
A193: 2024-01-29 | B193: BIOFILCHEM | C193: Biofil Chemicals & Pharm | D193: STARLINE EQUIFIN PRIVATE LIMITED | E193: SELL | F193: 105,959 | G193: 73.46 | H193: NSE
A194: 2024-01-29 | B194: BPL | C194: BPL Ltd. | D194: MULTIPLIER SHARE & STOCK ADVISORS PRIVATE LIMITED | E194: SELL | F194: 300,000 | G194: 110.5 | H194: NSE
A195: 2024-01-29 | B195: DIL | C195: Debock Industries Limited | D195: CITADEL SECURITIES INDIA MARKETS PRIVATE LIMITED | E195: SELL | F195: 47,979 | G195: 9.4 | H195: NSE
A196: 2024-01-29 | B196: EFORCE | C196: Electro Force (India) Ltd | D196: ARHAM SHARE PRIVATE LIMITED | E196: SELL | F196: 357,600 | G196: 124.59 | H196: NSE
A197: 2024-01-29 | B197: EMMBI | C197: Emmbi Industries Ltd | D197: VIJIT TRADING | E197: SELL | F197: 89,053 | G197: 126.8 | H197: NSE
A198: 2024-01-29 | B198: GIPCL | C198: Gujarat Ind Power Ltd | D198: GRAVITON RESEARCH CAPITAL LLP | E198: SELL | F198: 1,440,599 | G198: 222.44 | H198: NSE
A199: 2024-01-29 | B199: HCC | C199: Hindustan Construc Co. | D199: GRAVITON RESEARCH CAPITAL LLP | E199: SELL | F199: 14,194,587 | G199: 39.86 | H199: NSE
A200: 2024-01-29 | B200: HCC | C200: Hindustan Construc Co. | D200: HRTI PRIVATE LIMITED | E200: SELL | F200: 22,394,379 | G200: 39.88 | H200: NSE
A201: 2024-01-29 | B201: HEADSUP | C201: Heads UP Ventures Limited | D201: ANIRUDDHSINH SOLANKI | E201: SELL | F201: 78,000 | G201: 18.49 | H201: NSE
A202: 2024-01-29 | B202: IBULHSGFIN | C202: Indiabulls Hsg Fin Ltd | D202: GRAVITON RESEARCH CAPITAL LLP | E202: SELL | F202: 2,912,480 | G202: 199.82 | H202: NSE
A203: 2024-01-29 | B203: INDBANK | C203: Indbank Merchant Banking | D203: YUGA STOCKS AND COMMODITIES PRIVATE LIMITED . | E203: SELL | F203: 562,499 | G203: 51.88 | H203: NSE
A204: 2024-01-29 | B204: INDBANK | C204: Indbank Merchant Banking | D204: SANDEEP PRAKASHCHANDRA JAIN (HUF) | E204: SELL | F204: 223,638 | G204: 50.69 | H204: NSE
A205: 2024-01-29 | B205: INDBANK | C205: Indbank Merchant Banking | D205: MANSI SHARE AND STOCK ADVISORS PVT LTD | E205: SELL | F205: 520,902 | G205: 51.89 | H205: NSE
A206: 2024-01-29 | B206: INFIBEAM | C206: Infibeam Avenues Limited | D206: GRAVITON RESEARCH CAPITAL LLP | E206: SELL | F206: 17,230,296 | G206: 32.69 | H206: NSE
... 58 more rows

Sheet Call Tracker (Equity & F&O)
M5: Back To Main Page
A6: Retail Research Technical Calls & Fundamental Performance Report for the month of January-2024
M7: =Main!B10 -> 2024-01-30
B8: Positional Call
A9: Sr.no | B9: Date | D9: Company | E9: Rec | F9: Rec Price | G9: Stop Loss*** | H9: Call Closed At | I9: Target | J9: Remark | K9: Profit / Loss per Share | L9: All charges | M9: Net Gain / Loss % | N9: Status | O9: Closed Date | P9: Market Closing Price | Q9: Second Buying Date
A10: 1 | B10: 2023-11-08 | D10: JAMNAAUTO | E10: Accu<> | F10: 108.9 | G10: 102.9 | H10: 115.25 | I10: 119-125 | J10: Profit of Rs.6.35/- | K10: =H10-F10 -> 6.35 | L10: =(F10*-0.3)/100 -> -0.33 | M10: =(K10+L10)/F10 -> 5.53% | N10: Successful | O10: 2024-01-12 | Q10: 2023-12-20 | S10: H
A11: 2 | B11: 2023-11-20 | D11: TRIDENT | E11: Accu | F11: 36.45 | G11: 34.35 | H11: 38.6 | I11: 40-42 | J11: Profit of Rs.2.15/- | K11: =H11-F11 -> 2.15 | L11: =(F11*-0.3)/100 -> -0.11 | M11: =(K11+L11)/F11 -> 5.60% | N11: Successful | O11: 2024-01-03 | Q11: 2023-12-20 | S11: H
A12: 3 | B12: 2023-12-05 | D12: KNRCON | E12: Accu | F12: 266.5 | G12: 254 | H12: 268.75 | I12: 290-310 | J12: Profit of Rs.2.25/- | K12: =H12-F12 -> 2.25 | L12: =(F12*-0.3)/100 -> -0.80 | M12: =(K12+L12)/F12 -> 0.54% | N12: Neutral | O12: 2024-01-29 | Q12: 2023-12-20 | S12: H
A13: 4 | B13: 2023-12-08 | D13: DATAPATTNS | E13: Accu | F13: 1975 | G13: 1870 | H13: 1860 | I13: 2140-2250 | J13: Loss of Rs.115/- | K13: =H13-F13 -> -115 | L13: =(F13*-0.3)/100 -> -5.93 | M13: =(K13+L13)/F13 -> -6.12% | N13: Unsuccessful | O13: 2024-01-01 | Q13: 2023-12-20 | S13: H
A14: 5 | B14: 2023-12-18 | D14: SBIN | E14: Accu | F14: 622-642 | G14: 593 | I14: 680-720 | J14: Open | P14: =VLOOKUP(D14,'MidCap Intra'!$B$11:$C$568,2,0) -> 622.95 | Q14: 2024-01-10 | S14: H
A15: 6 | B15: 2023-12-20 | D15: CARBORUNIV | E15: Accu | F15: 1120 | G15: 1035 | H15: 1190 | I15: 1200-1270 | J15: Profit of Rs.70/- | K15: =H15-F15 -> 70 | L15: =(F15*-0.3)/100 -> -3.36 | M15: =(K15+L15)/F15 -> 5.95% | N15: Successful | O15: 2024-01-15 | S15: H
A16: 7 | B16: 2023-12-28 | D16: VINATIORGA | E16: Accu | F16: 1700-1750 | G16: 1645 | I16: 1860-1960 | J16: Open | P16: =VLOOKUP(D16,'MidCap Intra'!$B$11:$C$568,2,0) -> 1709.70 | Q16: 2024-01-10 | S16: H
A17: 8 | B17: 2023-12-29 | D17: CAPACITE | E17: Accu | F17: 251.5 | G17: 229 | H17: 279.5 | I17: 280-310 | J17: Profit of Rs.28/- | K17: =H17-F17 -> 28 | L17: =(F17*-0.3)/100 -> -0.75 | M17: =(K17+L17)/F17 -> 10.83% | N17: Successful | O17: 2024-01-04 | S17: H
A18: 9 | B18: 2024-01-01 | D18: ONGC | E18: Accu | F18: 206.5 | G18: 192 | H18: 219 | I18: 219-230 | J18: Profit of Rs.12.5/- | K18: =H18-F18 -> 12.5 | L18: =(F18*-0.3)/100 -> -0.62 | M18: =(K18+L18)/F18 -> 5.75% | N18: Successful | O18: 2024-01-08 | S18: K
A19: 10 | B19: 2024-01-03 | D19: TCS<> | E19: Accu | F19: =3715-27 -> 3688 | G19: 3540 | H19: 3945 | I19: 4000-4100 | J19: Profit of Rs.257/- | K19: =H19-F19 -> 257 | L19: =(F19*-0.3)/100 -> -11.06 | M19: =(K19+L19)/F19 -> 6.67% | N19: Successful | O19: 2024-01-19 | Q19: 2024-01-04 | S19: H
A20: 11 | B20: 2024-01-03 | D20: MARUTI | E20: Accu | F20: 9750-10125 | G20: 9340 | I20: 10700-11200 | J20: Open | P20: =VLOOKUP(D20,'MidCap Intra'!$B$11:$C$568,2,0) -> 9991.40 | S20: H
A21: 12 | B21: 2024-01-03 | D21: LAURUSLABS | E21: Accu | F21: 422.5 | G21: 397 | H21: 401 | I21: 460-500 | J21: Loss of Rs.21.5/- | K21: =H21-F21 -> -21.5 | L21: =(F21*-0.3)/100 -> -1.27 | M21: =(K21+L21)/F21 -> -5.39% | N21: Unsuccessful | O21: 2024-01-24 | Q21: 2024-01-08 | S21: K
A22: 13 | B22: 2024-01-05 | D22: DIVISLAB | E22: Accu | F22: 3890 | G22: 3590 | H22: 3560 | I22: 4400-4800 | J22: Loss of Rs.330/- | K22: =H22-F22 -> -330 | L22: =(F22*-0.3)/100 -> -11.67 | M22: =(K22+L22)/F22 -> -8.78% | N22: Unsuccessful | O22: 2024-01-25 | Q22: 2024-01-17 | S22: H
A23: 14 | B23: 2024-01-08 | D23: BIOCON | E23: Accu | F23: 279.5 | G23: 258 | H23: 258 | I23: 310-330 | J23: Loss of Rs.21.5/- | K23: -21.5 | L23: =(F23*-0.3)/100 -> -0.84 | M23: -7.99% | N23: Unsuccessful | O23: 2024-01-25 | Q23: 2024-01-12 | S23: H
A24: 15 | B24: 2024-01-10 | D24: FLUOROCHEM | E24: Accu | F24: 3385 | G24: 2990 | H24: 3652.5 | I24: 3800-4000 | J24: Profit of Rs.267.5/- | K24: =H24-F24 -> 267.5 | L24: =(F24*-0.3)/100 -> -10.16 | M24: =(K24+L24)/F24 -> 7.60% | N24: Successful | O24: 2024-01-19 | S24: H
A25: 16 | B25: 2024-01-12 | D25: JUBLFOOD | E25: Accu | F25: 517-526 | G25: 490 | I25: 555-575 | J25: Open | P25: =VLOOKUP(D25,'MidCap Intra'!$B$11:$C$568,2,0) -> 513.15 | Q25: 2024-01-18 | S25: K
A26: 17 | B26: 2024-01-16 | D26: CAPACITE | E26: Accu | F26: 247.5-267.5 | G26: 237 | I26: 300-330 | J26: Open
A27: 18 | B27: 2024-01-17 | D27: SCI | E27: Accu | F27: 168 | G27: 157 | H27: 179.5 | I27: 184-196 | J27: Profit of Rs.11.5/- | K27: =H27-F27 -> 11.5 | L27: =(F27*-0.3)/100 -> -0.50 | M27: =(K27+L27)/F27 -> 6.55% | N27: Successful | O27: 2024-01-20 | Q27: 2024-01-18
A28: 19 | B28: 2024-01-17 | D28: RELIANCE | E28: Accu | F28: 2715 | G28: 2470 | H28: 2895 | I28: 3000-3200 | J28: Profit of Rs.180/- | K28: =H28-F28 -> 180 | L28: =(F28*-0.3)/100 -> -8.15 | M28: =(K28+L28)/F28 -> 6.33% | N28: Successful | O28: 2024-01-29
A29: 20 | B29: 2024-01-18 | D29: CANBK | E29: Accu | F29: 449 | G29: 421 | H29: 475.5 | I29: 480-500 | J29: Profit of Rs.26.5/- | K29: =H29-F29 -> 26.5 | L29: =(F29*-0.3)/100 -> -1.35 | M29: =(K29+L29)/F29 -> 5.60% | N29: Successful | O29: 2024-01-20 | Q29: 2024-01-18
A30: 21 | B30: 2024-01-25 | D30: FLUOROCHEM | E30: Accu | F30: 3395-3575 | G30: 3280 | I30: 3900-4200 | J30: Open | P30: =VLOOKUP(D30,'MidCap Intra'!$B$11:$C$568,2,0) -> 3706.30
A31: 22 | B31: 2024-01-25 | D31: VGUARD | E31: Accu | F31: 278-288 | G31: 267 | I31: 305-325 | J31: Open | P31: =VLOOKUP(D31,'MidCap Intra'!$B$11:$C$568,2,0) -> 290.95
A32: 23 | B32: 2024-01-29 | D32: GMMPFAUDLR | E32: Accu | F32: 1477.5-1527.5 | G32: 1415 | I32: 1650-1750 | J32: Open
A37: CLBS = Closing Basis ***
A38: Dividend adjusted <> | F38: Reinitiated $
A39: Part book {} | D39: s | F39: Revised stoploss #
A43: Master Trade High Risk
A44: Sr.no | B44: Date | D44: Company | E44: Rec | F44: Rec Price | G44: Stop Loss | H44: Call Closed At | I44: Target | J44: Remark | K44: Profit / Loss per share | L44: All charges | M44: Gain / Loss per Lot | N44: Lot | O44: Status | P44: Closed Date
A45: 1 | B45: 2024-01-01 | D45: HCLTECH JAN FUT | E45: Buy | F45: 1463 | G45: 1448 | H45: 1479 | I45: 1479-1494 | J45: Profit of Rs.16/- | K45: =H45-F45 -> 16 | L45: =(H45*N45)*0.03% -> 310.59 | M45: =(K45*N45)-L45 -> 10889.4 | N45: 700 | O45: Successful | P45: 2024-01-01 | S45: N
A46: 2 | B46: 2024-01-01 | D46: HAL JAN FUT | E46: Buy | F46: 2857 | G46: 2820 | H46: 2820 | I46: 2893-2928 | J46: Loss of Rs.37/- | K46: -37 | L46: 253.80 | M46: -11353.8 | N46: 300 | O46: Unsuccessful | P46: 2024-01-02 | S46: N
A47: 3 | B47: 2024-01-01 | D47: CONCOR JAN FUT | E47: Buy | F47: 870 | G47: 860 | H47: 860 | I47: 881-891 | J47: Loss of Rs.10/- | K47: =H47-F47 -> -10 | L47: =(H47*N47)*0.03% -> 258.00 | M47: =(K47*N47)-L47 -> -10258.0 | N47: 1000 | O47: Unsuccessful | P47: 2024-01-02 | S47: N
A48: 4 | B48: 2024-01-02 | D48: HCLTECH JAN FUT | E48: Buy | F48: 1460 | G48: 1445 | H48: 1445 | I48: 1475-1490 | J48: Loss of Rs.15/- | K48: =H48-F48 -> -15 | L48: =(H48*N48)*0.03% -> 303.45 | M48: =(K48*N48)-L48 -> -10803.5 | N48: 700 | O48: Unsuccessful | P48: 2024-01-03 | S48: N
A49: 5 | B49: 2024-01-04 | D49: HINDUNILVR JAN FUT | E49: Buy | F49: 2626 | G49: 2592 | H49: 2627 | I49: 2661-2696 | J49: Profit of Rs.1/- | K49: 1 | L49: 236.43 | M49: 63.6 | N49: 300 | O49: Neutral | P49: 2024-01-05 | S49: N
A50: 6 | B50: 2024-01-04 | D50: NESTLEIND JAN FUT | E50: Buy | F50: 2724 | G50: 2693 | H50: 2693 | I50: 2760-2800 | J50: Loss of Rs.31/- | K50: =H50-F50 -> -31 | L50: =(H50*N50)*0.03% -> 323.16 | M50: =(K50*N50)-L50 -> -12723.2 | N50: 400 | O50: Unsuccessful | P50: 2024-01-05 | S50: H
A51: 7 | B51: 2024-01-08 | D51: MARUTI JAN FUT | E51: Buy | F51: 10080 | G51: 9880 | H51: 10257.5 | I51: 10290-10500 | J51: Profit of Rs.177.5/- | K51: 177.5 | L51: 153.86 | M51: 8721.1 | N51: 50 | O51: Successful | P51: 2024-01-16 | S51: N
A52: 8 | B52: 2024-01-10 | D52: POWERGRID JAN FUT | E52: Buy | F52: 241 | G52: 238 | H52: 238 | I52: 244-247 | J52: Loss of Rs.3/- | K52: =H52-F52 -> -3 | L52: =(H52*N52)*0.03% -> 257.04 | M52: =(K52*N52)-L52 -> -11057.0 | N52: 3600 | O52: Unsuccessful | P52: 2024-01-15 | S52: N
A53: 9 | B53: 2024-01-10 | D53: RELIANCE JAN FUT | E53: Buy | F53: 2645 | G53: 2595 | H53: 2692.5 | I53: 2700-2750 | J53: Profit of Rs.47.5/- | K53: =H53-F53 -> 47.5 | L53: =(H53*N53)*0.03% -> 201.94 | M53: =(K53*N53)-L53 -> 11673.1 | N53: 250 | O53: Successful | P53: 2024-01-11 | S53: H
A54: 10 | B54: 2024-01-12 | D54: NAUKRI JAN FUT | E54: Buy | F54: 5365 | G54: 5298 | H54: 5325 | I54: 5435-5505 | J54: Loss of Rs.40/- | K54: -40 | L54: 239.63 | M54: -6239.6 | N54: 150 | O54: Unsuccessful | P54: 2024-01-15 | S54: N
A55: 11 | B55: 2024-01-12 | D55: NIFTY JAN FUT | E55: Buy | F55: 21910 | G55: 21795 | H55: 22055 | I55: 22000-22100 | J55: Profit of Rs.145/- | K55: =H55-F55 -> 145 | L55: =(H55*N55)*0.03% -> 330.83 | M55: =(K55*N55)-L55 -> 6919.2 | N55: 50 | O55: Successful | P55: 2024-01-15 | S55: H
A56: 12 | B56: 2024-01-16 | D56: DIVISLAB JAN FUT | E56: Buy | F56: 3887.5 | G56: 3838 | H56: 3838 | I56: 3940-3993 | J56: Loss of Rs.49.5/- | K56: -49.5 | L56: 230.28 | M56: -10130.3 | N56: 200 | O56: Unsuccessful | P56: 2024-01-16
A57: 13 | B57: 2024-01-20 | D57: AUBANK JAN FUT | E57: Buy | F57: 746.5 | G57: 737 | H57: 738.5 | I57: 757-768 | J57: Loss of Rs.8/- | K57: =H57-F57 -> -8 | L57: =(H57*N57)*0.03% -> 221.55 | M57: =(K57*N57)-L57 -> -8221.6 | N57: 1000 | O57: Unsuccessful | P57: 2024-01-20
A58: 14 | B58: 2024-01-20 | D58: NIFTY JAN FUT | E58: Buy | F58: 21650 | G58: 21550 | H58: 21655 | I58: 21770-21850 | J58: Profit of Rs.5/- | K58: =H58-F58 -> 5 | L58: =(H58*N58)*0.03% -> 324.83 | M58: =(K58*N58)-L58 -> -74.8 | N58: 50 | O58: Neutral | P58: 2024-01-20
A59: 15 | B59: 2024-01-23 | D59: NIFTY FEB FUT | E59: Sell | F59: 21410 | G59: 21590 | H59: 21310 | I59: 21200-21000 | J59: Profit of Rs.100/- | K59: =F59-H59 -> 100 | L59: =(H59*N59)*0.03% -> 319.65 | M59: =(K59*N59)-L59 -> 4680.4 | N59: 50 | O59: Successful | P59: 2024-01-23
A60: 16 | B60: 2024-01-24 | D60: NIFTY FEB FUT | E60: Sell | F60: 21400 | G60: 21590 | H60: 21390 | I60: 21200-21000 | J60: Profit of Rs.10/- | K60: =F60-H60 -> 10 | L60: =(H60*N60)*0.03% -> 320.85 | M60: =(K60*N60)-L60 -> 179.2 | N60: 50 | O60: Neutral | P60: 2024-01-23
A61: 17 | B61: 2024-01-24 | D61: LTIM FEB FUT | E61: Buy | F61: 5667.5 | G61: 5600 | H61: 5670 | I61: 5740-5800 | J61: Profit of Rs.2.5/- | K61: =H61-F61 -> 2.5 | L61: =(H61*N61)*0.03% -> 255.15 | M61: =(K61*N61)-L61 -> 119.9 | N61: 150 | O61: Neutral | P61: 2024-01-23
A62: 18 | B62: 2024-01-25 | D62: ITC FEB FUT | E62: Buy | F62: 454.5 | G62: 448 | H62: 448.5 | I62: 461-468 | J62: Loss of Rs.6/- | K62: =H62-F62 -> -6 | L62: 215.28 | M62: -9815.3 | N62: 1600 | O62: Unsuccessful | P62: 2024-01-29
A63: 23 | B63: 2024-01-25 | D63: FEDERALBNK FEB FUT | E63: Buy | F63: 142 | G63: 140 | H63: 144 | I63: 144-146 | J63: Profit of Rs.2/- | K63: =H63-F63 -> 2 | L63: =(H63*N63)*0.03% -> 216.00 | M63: =(K63*N63)-L63 -> 9784.0 | N63: 5000 | O63: Successful | P63: 2024-01-29
A64: 24 | B64: 2024-01-29 | D64: CIPLA FEB FUT | E64: Buy | F64: 1350-1353 | G64: 1334 | I64: 1369-1385 | J64: Open
A69: Master Trade Medium Risk
A70: Sr.no | B70: Date | D70: Company | E70: Rec | F70: Rec Price | G70: Stop Loss | H70: Call Closed At | I70: Target | J70: Remark | K70: Profit/ Loss per lot | L70: All charges | M70: Gain / Loss per Lot | N70: Lot | O70: Status | P70: Closed Date
A71: 1 | B71: 2023-12-29 | D71: BANKNIFTY 48400 CE 03-JAN | E71: Buy | F71: 300 | J71: Loss of Rs.195/- | K71: =H71-F71 -> -300 | L71: 25.00 | M71: -2975.0 | N71: 15 | O71: Unsuccessful | P71: 2024-01-03 | S71: H
D72: BANKNIFTY 49000 CE 03-JAN | E72: Sell | F72: 105 | K72: =F72-H72 -> 105 | L72: 25.00 | N72: 15
A73: 2 | B73: 2024-01-04 | D73: BANKNIFTY 48200 CE 10 JAN | E73: Buy | F73: 300 | G73: 240 | H73: 362.5 | I73: 360-400 | J73: Profit of Rs.62.5/- | K73: =H73-F73 -> 62.5 | L73: 50.00 | M73: =(K73*N73)-L73 -> 887.5 | N73: 15 | O73: Successful | P73: 2024-01-04 | S73: H
A74: 3 | B74: 2024-01-08 | D74: NIFTY 21500 PE 11 JAN | E74: Buy | F74: 91.5 | G74: 60 | H74: 37.5 | I74: 120-150 | J74: Loss of Rs.54/- | K74: =H74-F74 -> -54 | L74: 50.00 | M74: =(K74*N74)-L74 -> -2750.0 | N74: 50 | O74: Unsuccessful | P74: 2024-01-09 | S74: H
A75: 4 | B75: 2024-01-09 | D75: BANKNIFTY 47500 CE 10 JAN | E75: Buy | F75: 280 | G75: 180 | H75: 280 | I75: 380-480 | J75: No Profit No Loss | K75: =H75-F75 -> 0 | L75: 50.00 | M75: =(K75*N75)-L75 -> -50.0 | N75: 15 | O75: Neutral | P75: 2024-01-09 | S75: N
A76: 5 | B76: 2024-01-09 | D76: FINNIFTY 21300 CE 09 JAN | E76: Buy | F76: 16 | G76: 0 | H76: 0 | I76: 30-45 | J76: Loss of Rs.16/- | K76: =H76-F76 -> -16 | L76: 25.00 | M76: -665.0 | N76: 40 | O76: Unsuccessful | P76: 2024-01-09 | S76: N
A77: 6 | B77: 2024-01-11 | D77: BANKNIFTY 47600 CE 17 JAN | E77: Buy | F77: 375 | G77: 280 | H77: 280 | I77: 450-520 | J77: Loss of Rs.95/- | K77: =H77-F77 -> -95 | L77: 50.00 | M77: =(K77*N77)-L77 -> -1475.0 | N77: 15 | O77: Unsuccessful | P77: 2024-01-11 | S77: N
A78: 7 | B78: 2024-01-12 | D78: FINNIFTY 21500 CE 16-JAN | E78: Sell | F78: 46 | H78: 40 | J78: Profit of Rs.23/- | K78: =F78-H78 -> 6 | L78: 50.00 | M78: 820.0 | N78: 40 | O78: Successful | P78: 2024-01-15 | S78: N
D79: FINNIFTY 21200 PE 16-JAN | E79: Sell | F79: 44 | H79: 27 | K79: =F79-H79 -> 17 | L79: 50.00 | N79: 40
A80: 8 | B80: 2024-01-12 | D80: BANKNIFTY 47600 CE 17 JAN | E80: Buy | F80: 360 | G80: 255 | H80: 480 | I80: 465-565 | J80: Profit of Rs.120/- | K80: =H80-F80 -> 120 | L80: 50.00 | M80: =(K80*N80)-L80 -> 1750.0 | N80: 15 | O80: Successful | P80: 2024-01-15 | S80: N
A81: 9 | B81: 2024-01-15 | D81: FINNIFTY 21550 CE 16-JAN | E81: Sell | F81: 28 | H81: 10 | J81: Profit of Rs.26/- | K81: =F81-H81 -> 18 | L81: 50.00 | M81: 940.0 | N81: 40 | O81: Successful | P81: 2024-01-16 | S81: N
D82: FINNIFTY 21350 PE 16-JAN | E82: Sell | F82: 28 | H82: 20 | K82: =F82-H82 -> 8 | L82: 50.00 | N82: 40
A83: 10 | B83: 2024-01-15 | D83: BANKNIFTY 48100 CE 17 JAN | E83: Buy | F83: 255 | G83: 150 | H83: 325 | I83: 350-450 | J83: Profit of Rs.70/- | K83: =H83-F83 -> 70 | L83: 50.00 | M83: =(K83*N83)-L83 -> 1000.0 | N83: 15 | O83: Successful | P83: 2024-01-15 | S83: N
A84: 11 | B84: 2024-01-16 | D84: LT 3580 CE JAN | E84: Buy | F84: 55 | H84: 68 | J84: Profit of Rs.5.5/- | K84: =H84-F84 -> 13 | L84: 50.00 | M84: =(K84*N84)-L84 -> 3850.0 | N84: 300 | O84: Successful | P84: 2024-01-15
D85: LT 3640 CE JAN | E85: Sell | F85: 33 | H85: 40.5 | K85: =F85-H85 -> -7.5 | L85: 50.00 | M85: -2300.0 | N85: 300
A86: 12 | B86: 2024-01-16 | D86: FINNIFTY 21400 PE 16 JAN | E86: Buy | F86: 15 | G86: 0 | H86: 0 | I86: 30-50 | J86: Loss of Rs.15/- | K86: =H86-F86 -> -15 | L86: 50.00 | M86: =(K86*N86)-L86 -> -650.0 | N86: 40 | O86: Unsuccessful | P86: 2024-01-16
A87: 13 | B87: 2024-01-16 | D87: BANKNIFTY 48100 CE 17 JAN | E87: Buy | F87: 205 | G87: 99 | H87: 0 | I87: 300-400 | J87: Loss of Rs.205/- | K87: =H87-F87 -> -205 | L87: 25.00 | M87: =(K87*N87)-L87 -> -3100.0 | N87: 15 | O87: Unsuccessful | P87: 2024-01-17
A88: 14 | B88: 2024-01-18 | D88: BAJAJ-AUTO 7150 CE JAN | E88: Buy | F88: 114 | H88: 138 | J88: Profit of Rs.14.5/- | K88: =H88-F88 -> 24 | L88: 50.00 | M88: 1712.5 | N88: 125 | O88: Successful | P88: 2024-01-19
D89: BAJAJ-AUTO 7350 CE JAN | E89: Sell | F89: 54.5 | H89: 64 | K89: =F89-H89 -> -9.5 | L89: 50.00 | N89: 125
A90: 15 | B90: 2024-01-19 | D90: BANKNIFTY 46000 CE 25 JAN | E90: Buy | F90: 415 | G90: 300 | H90: 440 | I90: 500-600 | J90: Profit of Rs.25/- | K90: 25 | L90: 50.00 | M90: =(K90*N90)-L90 -> 325.0 | N90: 15 | O90: Neutral | P90: 2024-01-20
A91: 16 | B91: 2024-01-23 | D91: NIFTY 21800 CE 08 FEB | E91: Buy | F91: 117.5 | H91: 212.5 | J91: Profit of Rs.31.5/- | K91: =H91-F91 -> 95 | L91: 50.00 | M91: 1475.0 | N91: 50 | O91: Successful | P91: 2024-01-29
D92: NIFTY 20700 PE 08 FEB | E92: Buy | F92: 100 | H92: 36.5 | K92: =H92-F92 -> -63.5 | L92: 50.00 | N92: 50
A93: 17 | B93: 2024-01-24 | D93: BANKNIFTY 45000 PE 25 JAN | E93: Buy | F93: 260 | H93: 470 | J93: Profit of Rs.110/- | K93: =H93-F93 -> 210 | L93: 50.00 | M93: 1550.0 | N93: 15 | O93: Successful | P93: 2024-01-24
D94: BANKNIFTY 44500 PE 25 JAN | E94: Sell | F94: 120 | H94: 220 | K94: =F94-H94 -> -100 | L94: 50.00 | N94: 15
A95: 18 | B95: 2024-01-24 | D95: HDFCBANK 1460 CE 29 FEB | E95: Buy | F95: 45 | J95: Open
D96: HDFCBANK 1500 CE 29 FEB | E96: Sell | F96: 30
A97: 19 | B97: 2024-01-24 | D97: NIFTY 21500 CE 25 JAN | E97: Sell | F97: 47.5 | G97: 85 | H97: 32.5 | I97: 0.1 | J97: Profit of Rs.15/- | K97: =F97-H97 -> 15 | L97: 50.00 | M97: =(K97*N97)-L97 -> 700.0 | N97: 50 | O97: Successful | P97: 2024-01-25
A98: 20 | B98: 2024-01-24 | D98: BAJAJ-AUTO 7400 CE 25 JAN | E98: Sell | F98: 31 | H98: 31 | J98: Neutral | K98: =H98-F98 -> 0 | L98: 50.00 | M98: -100.0 | N98: 125 | O98: Neutral | P98: 2024-01-24
D99: BAJAJ-AUTO 7000 PE 25 JAN | E99: Sell | F99: 26.5 | H99: 26.5 | K99: =F99-H99 -> 0 | L99: 50.00 | N99: 125
A100: 21 | B100: 2024-01-25 | D100: NIFTY 21350 CE JAN | E100: Buy | F100: 40 | G100: 8 | H100: 73.5 | I100: 75-100 | J100: Profit of Rs.33.5/- | K100: =H100-F100 -> 33.5 | L100: 50.00 | M100: =(K100*N100)-L100 -> 1625.0 | N100: 50 | O100: Successful | P100: 2024-01-25
A101: 22 | B101: 2024-01-25 | D101: NIFTY 21000 PE 01 FEB | E101: Buy | F101: 75 | G101: 38 | H101: 78.5 | I101: 120-160 | J101: Profit of Rs.3.5/- | K101: =H101-F101 -> 3.5 | L101: 50.00 | M101: =(K101*N101)-L101 -> 125.0 | N101: 50 | O101: Neutral | P101: 2024-01-25
A102: 23 | B102: 2024-01-25 | D102: FINNIFTY 20400 CE 30-JAN | E102: Sell | F102: 43.5 | H102: 61 | J102: Profit of Rs.5.5/- | K102: =F102-H102 -> -17.5 | L102: 50.00 | M102: 120.0 | N102: 40 | O102: Neutral | P102: 2024-01-29
D103: FINNIFTY 19800 PE 30-JAN | E103: Sell | F103: 34 | H103: 11 | K103: =F103-H103 -> 23 | L103: 50.00 | N103: 40
A104: 24 | B104: 2024-01-29 | D104: NIFTY 22000 CE 1 FEB | E104: Sell | F104: 54-58 | G104: 92 | I104: 0.1 | J104: Open
A107: Techno -Funda (positional)
A108: Sr.no | B108: Date | D108: Company | E108: Rec | F108: Rec Price | G108: Stop Loss*** | H108: Call Closed At | I108: Target | J108: Remark | K108: Profit / Loss per Share/Lot | L108: All charges | M108: Net Gain / Loss % | N108: Status | O108: Closed Date | P108: Market Closing Price | Q108: Second Buying Date
A109: 1 | B109: 2023-11-22 | D109: CAMS | E109: Accu | F109: 2665-2765 | G109: 2480 | I109: 3100-3300 | J109: Open | P109: =VLOOKUP(D109,'MidCap Intra'!$B$11:$C$568,2,0) -> 2742.25 | S109: H
A110: 2 | B110: 2023-12-01 | D110: HLEGLAS | E110: Accu | F110: 502.50-542.5 | G110: 477 | I110: 600-650 | J110: Open | P110: =VLOOKUP(D110,'MidCap Intra'!$B$11:$C$568,2,0) -> 542.55 | S110: H
A111: 3 | B111: 2023-12-11 | D111: LATENTVIEW | E111: Accu | F111: 437-465 | G111: 390 | I111: 545-625 | J111: Open | P111: =VLOOKUP(D111,'MidCap Intra'!$B$11:$C$568,2,0) -> 473.95 | S111: H
A114: CLBS = Closing Basis *** | F114: Reinitiated $
A115: Dividend adjusted <> | F115: Revised stoploss # | H115: .................
B124: Investment Idea
A125: Sr.no | B125: Date | D125: Company | E125: Rec | F125: Rec Price | G125: Point of Review | H125: Close Rate | I125: Target | J125: Remark | K125: Profit / Loss per Share | L125: Gain / Loss % | M125: Status | N125: Closed Date
A126: 1 | B126: 2013-11-01 | D126: L&T Finance Holding | E126: Accu | F126: 82.00 | G126: - | H126: 100 | I126: 100.00 | J126: Target Achieved | K126: =H126-F126 -> 18.00 | L126: =K126/F126 -> 21.95% | M126: Successful | N126: 2016-10-14
A127: 2 | B127: 2014-06-04 | D127: Finolex Inds | E127: Buy | F127: 257.00 | G127: - | H127: 300 | I127: 300.00 | J127: Target Achieved | K127: 43.00 | L127: 16.73% | M127: Successful | N127: 2014-07-02
A128: 3 | B128: 2014-07-08 | D128: JK Cement | E128: Buy | F128: 393.00 | G128: - | H128: 468 | I128: 468.00 | J128: Target Achieved | K128: 75.00 | L128: 19.08% | M128: Successful | N128: 2014-08-12
A129: 4 | B129: 2014-08-06 | D129: Finolex Cables | E129: Buy | F129: 205.00 | G129: - | H129: 275 | I129: 250.00 | J129: Target Achieved | K129: 70.00 | L129: 34.15% | M129: Successful | N129: 2014-11-19
A130: 5 | B130: 2014-09-04 | D130: Exide Inds | E130: Buy | F130: 162.00 | G130: - | H130: 190 | I130: 190.00 | J130: Target Achieved | K130: 28.00 | L130: 17.28% | M130: Successful | N130: 2015-01-02
A131: 6 | B131: 2014-09-04 | D131: Deepak Nitrite | E131: Buy | F131: 75.00 | G131: - | H131: 91.5 | I131: 95-100 | J131: Profit of Rs.16.50/- | K131: 16.50 | L131: 22.00% | M131: Successful | N131: 2014-11-11
A132: 7 | B132: 2014-10-01 | D132: Mercks | E132: Buy | F132: 850.00 | G132: - | H132: 982.5 | I132: 1050.00 | J132: Profit of Rs.132.50/- | K132: 132.50 | L132: 15.59% | M132: Successful | N132: 2015-02-04
A133: 8 | B133: 2014-10-01 | D133: Grindwell Norton | E133: Buy | F133: 475.00 | G133: - | H133: 515 | I133: 600.00 | J133: Profit of Rs.40/- | K133: 40.00 | L133: 8.42% | M133: Successful | N133: 2014-10-27
A134: 9 | B134: 2014-10-01 | D134: Snowman Logistics | E134: Buy | F134: 86.00 | G134: - | H134: 99 | I134: 140.00 | J134: Profit of Rs.13.00/- | K134: 13.00 | L134: 15.12% | M134: Successful | N134: 2014-10-27
A135: 10 | B135: 2014-10-14 | D135: Birla Corp | E135: Buy | F135: 496.60 | G135: - | H135: 621 | I135: 580.00 | J135: Target Achieved | K135: 124.40 | L135: 25.05% | M135: Successful | N135: 2016-08-23
A136: 11 | B136: 2014-10-14 | D136: Ultratech Cem | E136: Buy | F136: 2481.90 | G136: - | H136: 2840 | I136: 2870.00 | J136: Profit of Rs.358.10/- | K136: 358.10 | L136: 14.43% | M136: Successful | N136: 2015-01-13
A137: 12 | B137: 2014-10-16 | D137: Sintex Inds | E137: Buy | F137: 84.50 | G137: - | H137: 93 | I137: 110.00 | J137: Profit of Rs.8.50/- | K137: 8.50 | L137: 10.06% | M137: Successful | N137: 2014-10-27
A138: 13 | B138: 2014-10-16 | D138: HSIL | E138: Buy | F138: 401.00 | G138: - | H138: 428 | I138: 450.00 | J138: Profit of Rs.27.00/- | K138: 27.00 | L138: 6.73% | M138: Successful | N138: 2015-01-16
A139: 14 | B139: 2014-10-16 | D139: Eveready Inds | E139: Buy | F139: 101.00 | G139: - | H139: 112 | I139: 120.00 | J139: Profit of Rs.11.00/- | K139: 11.00 | L139: 10.89% | M139: Successful | N139: 2014-10-27
A140: 15 | B140: 2014-11-11 | D140: Pennar Inds | E140: Buy | F140: 59.00 | G140: - | H140: 76 | I140: 76.00 | J140: Target Achieved | K140: 17.00 | L140: 28.81% | M140: Successful | N140: 2017-10-24
A141: 16 | B141: 2014-11-11 | D141: Snowman Logistics | E141: Buy | F141: 99.00 | G141: - | H141: 120 | I141: 120.00 | J141: Profit of Rs.21/- | K141: 21.00 | L141: 21.21% | M141: Successful | N141: 2014-11-17
A142: 17 | B142: 2014-11-13 | D142: Dharamsi Morarji Chem | E142: Buy | F142: 22.00 | G142: - | H142: 33.55 | I142: 32.00 | J142: Profit of Rs 11.55/- | K142: 11.55 | L142: 52.50% | M142: Successful | N142: 2015-07-03
A143: 18 | B143: 2014-12-03 | D143: Tatachem | E143: Buy | F143: 440.00 | G143: - | H143: 520 | I143: 520.00 | J143: Profit of Rs 80.00/- | K143: 80.00 | L143: 18.18% | M143: Successful | N143: 2015-07-23
A144: 19 | B144: 2014-12-03 | D144: Advanta | E144: Buy | F144: 360.00 | G144: - | H144: 427 | I144: 425.00 | J144: Profit of Rs.67.00/- | K144: 67.00 | L144: 18.61% | M144: Successful | N144: 2015-02-23
A145: 20 | B145: 2015-01-08 | D145: GDL | E145: Buy | F145: 360.00 | G145: - | H145: 455 | I145: 420.00 | J145: Profit of Rs.95.00/- | K145: 95.00 | L145: 26.39% | M145: Successful | N145: 2015-01-20
A146: 21 | B146: 2015-01-08 | D146: NRB Bearing | E146: Buy | F146: 130.00 | H146: 175.5 | I146: 165.00 | J146: Profit of Rs 45.50/- | K146: 45.50 | L146: 35.00% | M146: Successful | N146: 2017-12-19
A147: 22 | B147: 2015-02-05 | D147: GSFC | E147: Accu | F147: 98.00 | H147: 120 | I147: 120.00 | J147: Target Achieved | K147: 22.00 | L147: 22.45% | M147: Successful | N147: 2017-01-18
A148: 23 | B148: 2015-02-05 | D148: Sundrmfast | E148: Accu | F148: 196.00 | H148: 262 | I148: 255.00 | J148: Target Achieved | K148: 66.00 | L148: 33.67% | M148: Successful | N148: 2016-08-17
A149: 24 | B149: 2015-03-04 | D149: GPPL | E149: Accu | F149: 235 | H149: 77.00 | I149: 280-285 | J149: Loss of Rs.158/- | K149: -158.00 | L149: -67.23% | M149: Unsuccessful | N149: 2019-02-26
A150: 25 | B150: 2015-03-04 | D150: ORIENTCEM | E150: Accu | F150: 185.00 | H150: 224 | I150: 220-225 | J150: Target Achieved | K150: 39.00 | L150: 21.08% | M150: Successful | N150: 2016-10-04
A151: 26 | B151: 2015-03-27 | D151: PFS | E151: Accu | F151: 49.5 | H151: 15.85 | I151: 67.00 | J151: Loss of Rs.33.65/- | K151: -33.65 | L151: -68% | M151: Unsuccessful | N151: 2019-06-11
A152: 27 | B152: 2015-03-30 | D152: Walchandnagar Ind Ltd | E152: Accu | F152: 183.50 | H152: 219 | I152: 218.00 | J152: Profit of Rs.35.50/- | K152: 35.50 | L152: 19.35% | M152: Successful | N152: 2015-04-09
A153: 28 | B153: 2015-04-20 | D153: Kalpataru Power Transmission Ltd | E153: Accu | F153: =(227+237)/2 -> 232.00 | H153: 298 | I153: 298.00 | J153: Target Achieved | K153: 66.00 | L153: 28.45% | M153: Successful | N153: 2017-03-29
A154: 29 | B154: 2015-05-04 | D154: Mastek Ltd | E154: Buy | F154: 385.00 | H154: =212.5+331 -> 543.5 | I154: 510.00 | J154: Profit of Rs 158.50/- | K154: 158.50 | L154: 41.17% | M154: Successful | N154: 2015-08-19
A155: 30 | B155: 2015-05-04 | D155: Suprajit Eng | E155: Buy | F155: 115.50 | H155: 146 | I155: 142.00 | J155: Profit of Rs 30.50/- | K155: 30.50 | L155: 26.41% | M155: Successful | N155: 2015-07-17
A156: 31 | B156: 2015-05-27 | D156: TCI | E156: Buy | F156: 237.50 | H156: 279.5 | I156: 278.00 | J156: Target Achieved | K156: 42.00 | L156: 17.68% | M156: Successful | N156: 2015-08-06
A157: 32 | B157: 2015-06-19 | D157: HSIL | E157: Accu | F157: 340.00 | H157: 448 | I157: 448.00 | J157: Target Achieved | K157: 108.00 | L157: 31.76% | M157: Successful | N157: 2017-10-10
A158: 33 | B158: 2015-07-06 | D158: Capital First | E158: Accu | F158: 390.00 | H158: 460 | I158: 460.00 | J158: Target Achieved | K158: 70.00 | L158: 17.95% | M158: Successful | N158: 2016-04-18
A159: 34 | B159: 2015-07-10 | D159: Dolphin OffShore | E159: Accu | F159: 122.5 | H159: 61.00 | I159: 172.00 | J159: Loss of Rs.61.50/- | K159: -61.50 | L159: -50.20% | M159: Unsuccessful | N159: 2018-08-21
A160: 35 | B160: 2015-08-03 | D160: Allcargo logistics | E160: Accu | F160: 297.50 | H160: 350 | I160: 360.00 | J160: Profit of Rs 52.50/- | K160: 52.50 | L160: 17.65% | M160: Successful | N160: 2015-08-16
A161: 36 | B161: 2015-08-03 | D161: Camline Fine | E161: Accu | F161: 115.50 | H161: 149 | I161: 140.00 | J161: Profit of Rs 33.50/- | K161: 33.50 | L161: 29.00% | M161: Successful | N161: 2017-01-05
A162: 37 | B162: 2015-09-04 | D162: TCI | E162: Accu | F162: 226.00 | H162: 292 | I162: 292.00 | J162: Target Achieved | K162: 66.00 | L162: 29.20% | M162: Successful | N162: 2015-10-09
A163: 38 | B163: 2015-09-07 | D163: Kalpataru Power Transmission Ltd | E163: Accu | F163: 232.50 | H163: 312.5 | I163: 310.00 | J163: Target Achieved | K163: 80.00 | L163: 34.41% | M163: Successful | N163: 2017-03-29
A164: 39 | B164: 2015-09-21 | D164: LLOYD ELECTRIC & ENG LTD | E164: Accu | F164: 196.50 | H164: 238 | I164: 238.00 | J164: Target Achieved | K164: 41.50 | L164: 21.12% | M164: Successful | N164: 2015-10-14
A165: 40 | B165: 2015-09-24 | D165: L&T Finance Holding | E165: Accu | F165: 65.00 | H165: 82 | I165: 82.00 | J165: Target Achieved | K165: 17.00 | L165: 26.15% | M165: Successful | N165: 2016-07-27
A166: 41 | B166: 2015-10-14 | D166: KEC International ltd | E166: Accu | F166: 144.00 | H166: 182.5 | I166: 181.00 | J166: Target Achieved | K166: 38.50 | L166: 26.74% | M166: Successful | N166: 2017-03-23
A167: 42 | B167: 2015-10-14 | D167: Gruh Finance | E167: Accu | F167: 264.00 | H167: 311 | I167: 311.00 | J167: Target Achieved | K167: 47.00 | L167: 17.80% | M167: Successful | N167: 2016-08-22
A168: 43 | B168: 2015-11-10 | D168: Pidilitind | E168: Buy | F168: 549.50 | H168: 630 | I168: 630.00 | J168: Target Achieved | K168: 80.50 | L168: 14.65% | M168: Successful | N168: 2016-02-19
A169: 44 | B169: 2015-12-04 | D169: Zensar Technology | E169: Accu | F169: 1027.50 | H169: 1315 | I169: 1250.00 | J169: Target Achieved | K169: 287.50 | L169: 27.98% | M169: Successful | N169: 2018-05-24
A170: 45 | B170: 2015-12-29 | D170: Vinati Organics Ltd | E170: Accu | F170: 465.00 | H170: 540 | I170: 540.00 | J170: Target Achieved | K170: 75.00 | L170: 16.13% | M170: Successful | N170: 2016-06-09
A171: 46 | B171: 2016-01-11 | D171: GSFC | E171: Buy | F171: 81.00 | H171: 110 | I171: 110.00 | J171: Target Achieved | K171: 29.00 | L171: 35.80% | M171: Successful | N171: 2017-01-10
A172: 47 | B172: 2016-01-13 | D172: SSWL | E172: Buy | F172: 417.50 | H172: 547 | I172: 535.00 | J172: Target Achieved | K172: 129.50 | L172: 31.02% | M172: Successful | N172: 2016-07-27
A173: 48 | B173: 2016-02-08 | D173: Persistent System Ltd | E173: Accu | F173: 650.00 | H173: 800 | I173: 800.00 | J173: Target Achieved | K173: 150.00 | L173: 23.08% | M173: Successful | N173: 2018-02-23
A174: 49 | B174: 2016-03-04 | D174: UPL | E174: Accu | F174: 437.50 | H174: 504.5 | I174: 522.00 | J174: Profit of Rs.67/- | K174: 67.00 | L174: 15.31% | M174: Successful | N174: 2016-04-20
A175: 50 | B175: 2016-03-09 | D175: Ashoka Buildcon Ltd | E175: Accu | F175: 189.50 | H175: 218 | I175: 218.00 | J175: Target Achieved | K175: 28.50 | L175: 15.04% | M175: Successful | N175: 2017-10-26
A176: 51 | B176: 2016-04-11 | D176: PTC INDIA FIN SERV LTD | E176: Accu | F176: 36.5 | H176: 15.85 | I176: 60.00 | J176: Loss of Rs.20.65/- | K176: -20.65 | L176: -56.58% | M176: Unsuccessful | N176: 2019-06-11
A177: 52 | B177: 2016-04-12 | D177: CAMLINFINE $ | E177: Accu | F177: 93.00 | H177: 149 | I177: 140.00 | J177: Profit of Rs 56/- | K177: 56.00 | L177: 60.22% | M177: Successful | N177: 2017-01-05
A178: 53 | B178: 2016-04-12 | D178: Greaves Cotton Ltd. | E178: Accu | F178: 130.00 | H178: 150 | I178: 150-155 | J178: Target Achieved | K178: 20.00 | L178: 15.38% | M178: Successful | N178: 2016-07-13
A179: 54 | B179: 2016-04-13 | D179: DHFL | E179: Accu | F179: 196.00 | H179: 299 | I179: 299.00 | J179: Target Achieved | K179: 103.00 | L179: 52.55% | M179: Successful | N179: 2016-09-07
A180: 55 | B180: 2016-04-13 | D180: Magma | E180: Accu | F180: 88.00 | H180: 103 | I180: 103.00 | J180: Target Achieved | K180: 15.00 | L180: 17.05% | M180: Successful | N180: 2016-06-09
A181: 56 | B181: 2016-05-02 | D181: KEC International ltd $ | E181: Accu | F181: 127.50 | H181: 148 | I181: 148-150 | J181: Target Achieved | K181: =H181-F181 -> 20.50 | L181: =K181/F181 -> 16.08% | M181: Successful | N181: 2016-07-13
A182: 57 | B182: 2016-05-03 | D182: Mindtree | E182: Accu | F182: 675.00 | H182: 815 | I182: 790-800 | J182: Target Achieved | K182: 140.00 | L182: 20.74% | M182: Successful | N182: 2018-02-23
A183: 58 | B183: 2016-06-01 | D183: Atulauto | E183: Accu | F183: 500 | H183: 232.50 | I183: 565-570 | J183: Loss of Rs.267.50 /- | K183: -267.50 | L183: -53.50% | M183: Unsuccessful | N183: 2019-09-27
A184: 59 | B184: 2016-06-06 | D184: TRITURBINE | E184: Accu | F184: 110.00 | H184: 126.5 | I184: 125.00 | J184: Profit of Rs.16.50/- | K184: 16.50 | L184: 15.00% | M184: Successful | N184: 2016-07-01
A185: 60 | B185: 2016-06-17 | D185: Pennar Industries Ltd | E185: Accu | F185: 44.00 | H185: 69.5 | I185: 69.50 | J185: Profit of Rs.25.50/- | K185: 25.50 | L185: 57.95% | M185: Successful | N185: 2017-08-30
A186: 61 | B186: 2016-06-28 | D186: EVEREADY | E186: Accu | F186: 262.50 | H186: 340 | I186: 333.00 | J186: Profit of Rs.77.50/- | K186: 77.50 | L186: 29.52% | M186: Successful | N186: 2017-10-09
A187: 62 | B187: 2016-06-28 | D187: FIEMIND | E187: Accu | F187: 840.00 | H187: 1230 | I187: 1230.00 | J187: Target Achieved | K187: 390.00 | L187: 46.43% | M187: Successful | N187: 2016-10-06
A188: 63 | B188: 2016-07-05 | D188: Bajaj Corp Ltd | E188: Accu | F188: 395 | H188: =(468.5+342.5)/2 -> 405.50 | I188: 510.00 | J188: Profit of Rs.10.50/- | K188: =H188-F188 -> 10.50 | L188: =K188/F188 -> 3% | M188: Neutral | N188: 2019-05-21
A189: 64 | B189: 2016-08-02 | D189: GPPL $ | E189: Buy | F189: =169.5-12.8 -> 156.7 | H189: 77.00 | I189: 198-200 | J189: Loss of Rs.79.7/- | K189: -79.70 | L189: -50.86% | M189: Unsuccessful | N189: 2019-02-26
A190: 65 | B190: 2016-08-04 | D190: WONDERLA HOLIDAYS LTD | E190: Accu | F190: 400 | H190: 305.00 | I190: 475.00 | J190: Loss of Rs.95/- | K190: -95.00 | L190: -23.75% | M190: Unsuccessful | N190: 2019-05-21
A191: 66 | B191: 2016-08-11 | D191: CAMLINFINE | E191: Accu | F191: 86.50 | H191: 130 | I191: 130.00 | J191: Profit of Rs.43.50/- | K191: 43.50 | L191: 50.29% | M191: Successful | N191: 2017-12-22
A192: 67 | B192: 2016-08-18 | D192: GRANULES | E192: Accu | F192: 133.5 | H192: 126.50 | I192: 178.00 | J192: Exit | K192: -7.00 | L192: -5.24% | M192: Unsuccessful | N192: 2016-09-02
A193: 68 | B193: 2016-08-31 | D193: VA TECH WABAG | E193: Accu | F193: 560.00 | H193: 725 | I193: 725.00 | J193: Target Achieved | K193: 165.00 | L193: 29.46% | M193: Successful | N193: 2016-03-27
A194: 69 | B194: 2016-09-01 | D194: SKIPPER LIMITED | E194: Accu | F194: 160.50 | H194: 210 | I194: 210.00 | J194: Target Achieved | K194: 49.50 | L194: 30.84% | M194: Successful | N194: 2017-05-16
A195: 70 | B195: 2016-10-03 | D195: IFBIND | E195: Accu | F195: 430.00 | H195: 596 | I195: 575.00 | J195: Profit of Rs.166/- | K195: 166.00 | L195: 38.60% | M195: Successful | N195: 2017-02-03
A196: 71 | B196: 2016-10-14 | D196: ASIANTILES | E196: Accu | F196: 280.00 | H196: 345 | I196: 345.00 | J196: Target Achieved | K196: =H196-F196 -> 65.00 | L196: =K196/F196 -> 23.21% | M196: Successful | N196: 2017-03-20
A197: 72 | B197: 2016-10-14 | D197: DEEPIND | E197: Accu | F197: 245.00 | H197: 325.5 | I197: 330.00 | J197: Profit of Rs.80.5/- | K197: 80.50 | L197: 32.86% | M197: Successful | N197: 2017-02-03
A198: 73 | B198: 2016-10-17 | D198: DCBBANK | E198: Accu | F198: 125.00 | H198: 160 | I198: 160.00 | J198: Target Achieved | K198: 35.00 | L198: 28.00% | M198: Successful | N198: 2017-03-09
A199: 74 | B199: 2016-10-17 | D199: ORIENTREF | E199: Accu | F199: 114.00 | H199: 145 | I199: 145.00 | J199: Target Achieved | K199: 31.00 | L199: =K199/F199 -> 27.19% | M199: Successful | N199: 2017-05-04
A200: 75 | B200: 2016-10-17 | D200: GANECOS | E200: Accu | F200: 212.00 | H200: 280 | I200: 276.00 | J200: Profit of Rs.68/- | K200: 68.00 | L200: 32.08% | M200: Successful | N200: 2017-05-03
A201: 76 | B201: 2016-11-04 | D201: NBCC | E201: Accu | F201: 155.00 | H201: 210 | I201: 210.00 | J201: Profit of Rs.55/- | K201: 55.00 | L201: 35.48% | M201: Successful | N201: 2017-07-28
A202: 77 | B202: 2016-12-06 | D202: PRECAM | E202: Accu | F202: 150.5 | H202: 72.50 | I202: 174.00 | J202: Loss of Rs.78/- | K202: -78.00 | L202: -51.83% | M202: Unsuccessful | N202: 2018-08-21
A203: 78 | B203: 2016-12-08 | D203: INFRATEL | E203: Accu | F203: 380.00 | H203: 478 | I203: 468.00 | J203: Target Achieved | K203: =H203-F203 -> 98.00 | L203: =K203/F203 -> 25.79% | M203: Successful | N203: 2017-10-17
A204: 79 | B204: 2016-12-30 | D204: GODREJPROP | E204: Accu | F204: 305.00 | H204: 375 | I204: 375.00 | J204: Target Achieved | K204: 70.00 | L204: 22.95% | M204: Successful | N204: 2017-02-02
A205: 80 | B205: 2017-01-04 | D205: DEEPAKNTR | E205: Accu | F205: 99.50 | H205: 158 | I205: 158.00 | J205: Target Achieved | K205: 58.50 | L205: 58.79% | M205: Successful | N205: 2017-06-12
A206: 81 | B206: 2017-01-04 | D206: DEEPAKNTR | E206: Accu | F206: 99.50 | H206: 158 | I206: 158.00 | J206: Target Achieved | K206: 58.50 | L206: 58.79% | M206: Successful | N206: 2017-06-12
A207: 82 | B207: 2017-02-20 | D207: RECLTD | E207: Accu | F207: 140.50 | H207: 220 | I207: 220.00 | J207: Target Achieved | K207: =H207-F207 -> 79.50 | L207: =K207/F207 -> 56.58% | M207: Successful | N207: 2017-05-09
A208: 83 | B208: 2017-02-20 | D208: SUBROS | E208: Accu | F208: 202.50 | H208: 234 | I208: 234.00 | J208: Target Achieved | K208: 31.50 | L208: 15.56% | M208: Successful | N208: 2017-04-11
A209: 84 | B209: 2017-03-24 | D209: VRLLOG | E209: Accu | F209: 300.50 | H209: 417.5 | I209: 420.00 | J209: Profit of Rs.117/- | K209: =H209-F209 -> 117.00 | L209: =K209/F209 -> 38.94% | M209: Successful | N209: 2017-12-01
A210: 85 | B210: 2017-03-24 | D210: FIEMIND | E210: Accu | F210: 850.00 | H210: 1042.5 | I210: 1023.00 | J210: Profit of Rs 192.50/- | K210: 192.50 | L210: 22.65% | M210: Successful | N210: 2017-04-05
A211: 86 | B211: 2017-04-05 | D211: RATNAMANI | E211: Accu | F211: 785.00 | H211: 930 | I211: 920.00 | J211: Profit of Rs.145/- | K211: =H211-F211 -> 145.00 | L211: =K211/F211 -> 18.47% | M211: Successful | N211: 2017-08-29
A212: 87 | B212: 2017-04-06 | D212: ZEEMEDIA | E212: Accu | F212: 40 | H212: 13.10 | I212: 60.00 | J212: Loss of Rs.26.9/- | K212: -26.90 | L212: -67.25% | M212: Unsuccessful | N212: 2018-02-07
A213: 88 | B213: 2017-04-12 | D213: DABUR | E213: Accu | F213: 289.50 | H213: 354 | I213: 360.00 | J213: Profit of Rs.64.5/- | K213: =H213-F213 -> 64.50 | L213: =K213/F213 -> 22.28% | M213: Successful | N213: 2017-11-01
A214: 89 | B214: 2017-04-20 | D214: KPRMILL | E214: Accu | F214: 700.00 | H214: 840 | I214: 840.00 | J214: Profit of Rs.140/- | K214: 140.00 | L214: 20.00% | M214: Successful | N214: 2017-06-07
A215: 90 | B215: 2017-06-01 | D215: ESSELPACK | E215: Accu | F215: 130.00 | H215: 144.25 | I215: 170.00 | J215: Profit of Rs.14.25/- | K215: 14.25 | L215: 10.96% | M215: Successful | N215: 2019-07-29
A216: 91 | B216: 2017-06-15 | D216: KEI | E216: Accu | F216: 214.50 | H216: 262 | I216: 262.00 | J216: Profit of Rs.47.5/- | K216: 47.50 | L216: 22.14% | M216: Successful | N216: 2017-08-30
A217: 92 | B217: 2017-07-17 | D217: MAYURUNIQ | E217: Accu | F217: 370.00 | H217: 447.5 | I217: 450.00 | J217: Target Achieved | K217: 77.50 | L217: 20.95% | M217: Successful | N217: 2017-10-27
A218: 93 | B218: 2017-07-27 | D218: RAMCOCEM | E218: Accu | F218: 657.50 | H218: 825 | I218: 820.00 | J218: Target Achieved | K218: 167.50 | L218: 25.48% | M218: Successful | N218: 2017-12-21
A219: 94 | B219: 2017-08-17 | D219: FINPIPE | E219: Accu | F219: 605.00 | H219: 750 | I219: 750.00 | J219: Profit of Rs.145/- | K219: 145.00 | L219: 23.97% | M219: Successful | N219: 2017-10-19
A220: 95 | B220: 2017-09-01 | D220: SHK | E220: Accu | F220: 255 | H220: 217.25 | I220: 320.00 | J220: Loss of Rs.37.75/- | K220: -37.75 | L220: -15% | M220: Unsuccessful | N220: 2019-07-15
A221: 96 | B221: 2017-09-19 | D221: SKIPPER | E221: Accu | F221: 215.00 | H221: 258 | I221: 258.00 | J221: Target Achieved | K221: 43.00 | L221: 20.00% | M221: Successful | N221: 2017-11-01
A222: 97 | B222: 2017-09-19 | D222: SKIPPER | E222: Accu | F222: 215.00 | H222: 258 | I222: 258.00 | J222: Target Achieved | K222: 43.00 | L222: 20.00% | M222: Successful | N222: 2017-11-01
A223: 98 | B223: 2017-09-20 | D223: CAMLINFINE$ | E223: Accu | F223: 75.00 | H223: 90 | I223: 90.00 | J223: Profit of Rs.15.00/- | K223: =H223-F223 -> 15.00 | L223: =K223/F223 -> 20.00% | M223: Successful | N223: 2017-10-11
A224: 99 | B224: 2017-10-03 | D224: GNA | E224: Accu | F224: 315.00 | H224: 392 | I224: 384.00 | J224: Profit of Rs.77/- | K224: 77.00 | L224: 24.44% | M224: Successful | N224: 2017-10-09
A225: 100 | B225: 2017-10-05 | D225: NOCIL | E225: Accu | F225: 145.00 | H225: 179 | I225: 180.00 | J225: Profit of Rs.34/- | K225: 34.00 | L225: 23.45% | M225: Successful | N225: 2017-10-17
A226: 101 | B226: 2017-10-06 | D226: CENTURYPLY | E226: Accu | F226: 256.00 | H226: 323 | I226: 320.00 | J226: Target Achieved | K226: 67.00 | L226: 26.17% | M226: Successful | N226: 2017-11-28
A227: 102 | B227: 2017-10-09 | D227: EIHOTEL | E227: Accu | F227: 137.50 | H227: 184 | I227: 183.00 | J227: Profit of Rs.46.5/- | K227: 46.50 | L227: 33.82% | M227: Successful | N227: 2018-01-08
... 105 more rows
